Workbook

Sheet Introduction
A1: NCHRP Project 03-110: Estimating the Life-Cycle Cost of Intersection Designs
A2: Life-Cycle Cost Estimating Tool
A3: Introduction | B3: Overview of Tool
A4: The Life-Cycle Cost Estimating Tool (LCCET) was deveoped as part of NCHRP Project 03-110. The objective of this project was to develop a spreadsheet-based tool that can be used to compare the life-cycle costs of alternative designs for new and existing intersections. The tool will be applicable to the following types of intersections: stop-controlled, traffic signal, roundabout, and innovative designs. | B4: This spreadsheet tool provides life cycle cost comparisons between different intersection or influence area treatments. The tool incoporates the following costs: safety, vehicular delay, multimodal delay, operations, maintenance, initial capital costs and emissions. Any of these elements can be excluded from the analysis by unselecting them in the "Outputs" worksheet.
A5: Maintenance | B5: Tool Guidance
A6: Version: LCCET 1.0 | B6: Additional user guidance can be found in Chapter 3 of the NCHRP Project 03-110 Final Report, which is located at the following link: [Website to be determined by NCHRP]
A7: Maintained By: TBD
A8: Contact Information: TBD
A9: Disclaimers | B9: Legend
A10: This is draft material as submitted by the research agency. The opinions and conclusions expressed or implied in the material are those of the research agency. They are not necessarily those of the Transportation Research Board, the National Academies, or the program sponsors. No warranty is made by the developers or their employer as to the accuracy, completeness, or reliability of this software and its associated equations and documentation. No responsibility is assumed by the developers for incorrect results or damages resulting from the use of this software. | C10: Required data entry field
C11: Optional data entry field
C12: Data entry field not used
B13: [Value] | C13: Automated input
B14: Abc | C14: Comment/Guidance text
B15: Abc | C15: Warning/Error text
C16: Purple tabs are for reference values only. Modifying these sheets may cause the LCCET to cease functioning properly.
A17: How to Use the Life-Cycle Cost Estimating Tool
A18: 1. On the Organization Information sheet, provide basic project information. This is used for project context and attribution only.
A19: 2. The sheet CostParameters contains costs that are consistently applied across all project alternatives. The user should review these costs to ensure they are realistic for the location and also select the appropriate input type based on available data or applicable policies.
A20: 3. The GHG.Costs sheet contains discounted costs for greenhouse gases (GHGs). GHGs are handled separately because the discount rate for GHGs may vary from the discount rate applied to other costs.
A21: 4. The DemandParameters sheet details the flow profiles applied to all alternatives by mode. The purpose of this sheet is to calibrate peak hour data to annual data so that various inputs are in a consistent format.
A22: 5. The sheet Alternatives_MasterList is used to manage alternatives. This allows the analyst to add or remove alternatives and sets up the basic sheet titles. It also establishes the base alternative that will be used as a basis for comparison for all alternatives.
A23: 6. The sheet BaseCase provides cost inputs for the base case analysis. All other alternatives are compared to this alternative.
A24: 7. The worksheet Outputs is used to compile the summary information within the Net Present Value Table within each alternative. This sheet provides a plot of the results and a comparison.
A25: 8. Purple worksheet tabs are for calculations and formula references. These sheets should not be modified without a thorough knowledge of the VBA code used in the LCCET.

Sheet OrganizationInformation
A1: Organization Information | B1: This sheet provides general project information for reference purposes only.
A4: Organization Information
A5: Agency:
A6: Project Name:
A7: Project Reference:
A8: Location:
A9: City:
A10: State:
A11: Performing Department or Organization:
A12: Date:
A13: Analyst:

Sheet CostParameters
A1: Cost Parameters | C1: This sheet defines the basic cost parameters used in the benefit-cost analysis. You may either use the default values or override the defaults with your own values. Note that all costs must be in the same year dollars, preferably in base year dollars. Consult the Bureau of Labor Statistics web site for latest information on the consumer price index to adjust values to current year: http://www.bls.gov/cpi/
A3: Type | B3: Category group (select) | C3: Category | D3: Unit valuation | E3: Default value | F3: Override value | G3: Use value | H3: Override date | I3: Notes/References
A4: Base year for discounting | B4: N/A | C4: N/A | D4: N/A | E4: N/A | G4: =F4 -> 0 | I4: All costs will be discounted to the Base Year for Discounting. Enter the year in the "Override Value" column.
A5: Discount rate | B5: N/A | C5: N/A | D5: Percent | E5: 0.03 | G5: =IF(ISBLANK(F5),E5,F5) -> 0.03 | I5: OMB Circular A-4 recommends using both 3% and 7% real rates.
A6: Value of time | B6: N/A | C6: Person (weekday) | D6: $ per person hour | E6: 12.98 | G6: =IF(ISBLANK(F6),E6,F6) -> 12.98 | I6: USDOT Revised Departmental Guidance on Valuation of Travel Time in Economic Analysis (Revision 2 – corrected) April 2013
C7: Person (weekend) | D7: $ per person hour | E7: 12.98 | G7: =IF(ISBLANK(F7),E7,F7) -> 12.98
C8: Trucks | D8: $ per truck hour | E8: 25.75 | G8: =IF(ISBLANK(F8),E8,F8) -> 25.75
A9: Crashes | B9: TRUE | C9: =CrashTypeLabel_K_Fatality -> K - Fatality crashes | D9: $ per crash | E9: 9200000 | G9: =IF(IsChecked_CrashCategories_KABCO,IF(ISBLANK(F9),E9,F9),"") -> 9200000 | I9: National Highway Traffic Safety Administration, July 2011.
C10: =CrashTypeLabel_A_SevereInjury -> A - Severe injury crashes | D10: $ per crash | E10: 440125 | G10: =IF(IsChecked_CrashCategories_KABCO,IF(ISBLANK(F10),E10,F10),"") -> 440125
C11: =CrashTypeLabel_B_ModerateInjury -> B - Moderate injury crashes | D11: $ per crash | E11: 120167 | G11: =IF(IsChecked_CrashCategories_KABCO,IF(ISBLANK(F11),E11,F11),"") -> 120167
C12: =CrashTypeLabel_C_MinorInjury -> C - Minor injury crashes | D12: $ per crash | E12: 62114 | G12: =IF(IsChecked_CrashCategories_KABCO,IF(ISBLANK(F12),E12,F12),"") -> 62114
C13: =CrashTypeLabel_O_NoInjury -> O - No injury crashes | D13: $ per crash | E13: 6734 | G13: =IF(IsChecked_CrashCategories_KABCO,IF(ISBLANK(F13),E13,F13),"") -> 6734
B14: FALSE | C14: =CrashTypeLabel_Fatality -> Fatality crashes | D14: $ per crash | E14: 9200000 | G14: =IF(IsChecked_CrashCategories_FatalityInjuryPDO,IF(ISBLANK(F14),E14,F14),"") -> 
C15: =CrashTypeLabel_Injury -> Injury crashes | D15: $ per crash | E15: 167264 | G15: =IF(IsChecked_CrashCategories_FatalityInjuryPDO,IF(ISBLANK(F15),E15,F15),"") -> 
C16: =CrashTypeLabel_PDO -> Property damage only crashes | D16: $ per crash | E16: 6734 | G16: =IF(IsChecked_CrashCategories_FatalityInjuryPDO,IF(ISBLANK(F16),E16,F16),"") -> 
B17: FALSE | C17: =CrashTypeLabel_TotalCrashes -> Total crashes | D17: $ per crash | E17: N/A | G17: =IF(IsChecked_CrashCategories_TotalCrashes,IF(ISBLANK(F17),"",F17),"") -> 
B18: FALSE | C18: =Prompt_CrashType_UserDefined -> (Enter user defined categories) | D18: =IF(ISBLANK(C18),"",$D$9) -> $ per crash | E18: =IF(ISBLANK(C18),"","N/A") -> N/A | G18: =IF(IsChecked_CrashCategories_UserDefined,IF(ISBLANK(F18),"",F18),"") -> 
D19: =IF(ISBLANK(C19),"",$D$9) ->  | E19: =IF(ISBLANK(C19),"","N/A") ->  | G19: =IF(IsChecked_CrashCategories_UserDefined,IF(ISBLANK(F19),"",F19),"") -> 
D20: =IF(ISBLANK(C20),"",$D$9) ->  | E20: =IF(ISBLANK(C20),"","N/A") ->  | G20: =IF(IsChecked_CrashCategories_UserDefined,IF(ISBLANK(F20),"",F20),"") -> 
D21: =IF(ISBLANK(C21),"",$D$9) ->  | E21: =IF(ISBLANK(C21),"","N/A") ->  | G21: =IF(IsChecked_CrashCategories_UserDefined,IF(ISBLANK(F21),"",F21),"") -> 
D22: =IF(ISBLANK(C22),"",$D$9) ->  | E22: =IF(ISBLANK(C22),"","N/A") ->  | G22: =IF(IsChecked_CrashCategories_UserDefined,IF(ISBLANK(F22),"",F22),"") -> 
A23: Greenhouse gases | C23: CO2 equivalent | D23: $ per metric ton | E23: Values vary annually, see table in GHG.Costs | G23: See table in GHG.Costs sheet | I23: Technical Support Document: Technical Update of the Social Cost of Carbon for Regulatory Impact Analysis Under Executive Order 12866 (May 2013; revised November 2013)
B24: TRUE | C24: CO2 equivalent | D24: $ per metric ton | E24: N/A | G24: See table in GHG.Costs sheet | J24: =IF(AND(IsChecked_GHG_Values_UserDefined,MAX(GHG.Costs!G20:G156)<=0),"Warning: You have selected User defined but there are no corresponding cost entries in the GHG.Costs sheet","") -> 
A25: Criteria pollutants | B25: FALSE | C25: =CriteriaPollutantType_CO -> CO | D25: $ per metric ton | E25: 39600 | G25: =IF(IsChecked_CriteriaPollutantCategories_ByType,IF(ISBLANK(F25),E25,F25),"") -> 39600 | I25: Corporate Average Fuel Economy for MY2017- MY2025 Passenger Cars and Light Trucks (August 2012), page 922, Table VIII-16, "Economic Values Used for Benefits Computations (2010 dollars)"
C26: =CriteriaPollutantType_NOx -> NOx | D26: $ per metric ton | E26: 7887 | G26: 7887
C27: =CriteriaPollutantType_HC -> HC | D27: $ per metric ton | E27: 1700 | G27: 1700
C28: =CriteriaPollutantType_PM2_5 -> PM 2.5 | D28: $ per metric ton | E28: 306500 | G28: 306500
B29: FALSE | C29: (Enter user defined categories) | D29: $ per metric ton | E29: =IF(ISBLANK(C29),"","N/A") -> N/A | G29: =IF(AND(IsChecked_CriteriaPollutantCategories_UserDefined,NOT(ISBLANK(F29))),F29,"") -> 
D30: =IF(C30="","","$ / metric ton") ->  | G30: =IF(AND(IsChecked_CriteriaPollutantCategories_UserDefined,NOT(ISBLANK(F30))),F30,"") -> 
D31: =IF(C31="","","$ / metric ton") -> 
D32: =IF(C32="","","$ / metric ton") -> 

Sheet GHG.Costs
A1: Greenhouse Gas Costs
A3: This worksheet is used to provide discounted greenhouse gas costs. The default values in this sheet represent the latest values from the federal government as put forth in Executive Order 12866. Note that the discount rate for greenhouse gases may differ from the discount rate used for other costs in the life cycle cost analysis.
A5: GHG costs should be in the same year dollars as the costs in the CostParameters sheet.
B7: Exec order 12866 | C7: User defined
A8: Year of valuation | B8: 2013
A9: CPI for year of valuation | B9: 233.548
A10: ="CPI for base year: " &BaseYear -> CPI for base year: 0 | B10: 236.384
A11: Annual growth rate | B11: 0.01886974889
A12: Discount rate | B12: 0.03 | D12: Greenhouse gases are discounted separately because a different discount rate may be used
A18: Year | B18: Spot costs in dollars (from agency source) | D18: ="Discount factor for base year: "&BaseYear -> Discount factor for base year: 0 | F18: ="Discounted cost to base year: "&BaseYear&" in " & BaseYear&"$" -> Discounted cost to base year: 0 in 0$
B19: Exec order 12866 | C19: =C7 -> User defined | D19: Exec order 12866 | E19: =C19 -> User defined | F19: Exec order 12866 | G19: =C19 -> User defined
A20: 2014 | B20: 40 | D20: =(1+B$12)^($A20-BaseYear) -> 7.147769783e+25 | F20: =B20*D20*($B$10/B$9) -> 2.893826387e+27
A21: =A20+1 -> 2015 | B21: 42 | D21: =D20/(1+B$12) -> 6.939582314e+25 | E21: =IF($C$9="","",E20/(1+C$12)) ->  | F21: =B21*D21*($B$10/B$9) -> 2.95001719e+27
A22: =A21+1 -> 2016 | B22: 43 | D22: 6.737458557e+25 | F22: 2.932287082e+27
A23: 2017 | B23: 44 | D23: 6.5412219e+25 | F23: 2.91308719e+27
A24: 2018 | B24: 45 | D24: 6.350700874e+25 | F24: 2.892518171e+27
A25: 2019 | B25: 46 | D25: 6.165729004e+25 | F25: 2.870676071e+27
A26: 2020 | B26: 47 | D26: 5.986144664e+25 | F26: 2.847652498e+27
A27: 2021 | B27: 48 | D27: 5.811790936e+25 | F27: 2.823534804e+27
A28: 2022 | B28: 49 | D28: 5.642515472e+25 | F28: 2.798406258e+27
A29: 2023 | B29: 50 | D29: 5.478170361e+25 | F29: 2.772346204e+27
A30: 2024 | B30: 51 | D30: 5.318612001e+25 | F30: 2.745430222e+27
A31: 2025 | B31: 53 | D31: 5.163700972e+25 | F31: 2.769994322e+27
A32: 2026 | B32: 53 | D32: 5.013301914e+25 | F32: 2.689314876e+27
A33: 2027 | B33: 54 | D33: 4.867283412e+25 | F33: 2.66024919e+27
A34: 2028 | B34: 55 | D34: 4.725517876e+25 | F34: 2.630595208e+27
A35: 2029 | B35: 56 | D35: 4.587881433e+25 | F35: 2.600411856e+27
A36: 2030 | B36: 57 | D36: 4.454253818e+25 | F36: 2.569755128e+27
A37: 2031 | B37: 58 | D37: 4.32451827e+25 | F37: 2.538678205e+27
A38: 2032 | B38: 59 | D38: 4.198561427e+25 | F38: 2.507231572e+27
A39: 2033 | B39: 60 | D39: 4.07627323e+25 | F39: 2.475463129e+27
A40: 2034 | B40: 61 | D40: 3.957546825e+25 | F40: 2.443418298e+27
A41: 2035 | B41: 62 | D41: 3.842278471e+25 | F41: 2.411140132e+27
A42: 2036 | B42: 63 | D42: 3.730367448e+25 | F42: 2.378669407e+27
A43: 2037 | B43: 65 | D43: 3.621715969e+25 | F43: 2.382701671e+27
A44: 2038 | B44: 66 | D44: 3.516229096e+25 | F44: 2.348891864e+27
A45: 2039 | B45: 67 | D45: 3.413814656e+25 | F45: 2.315030228e+27
A46: 2040 | B46: 68 | D46: 3.314383161e+25 | F46: 2.281148464e+27
A47: 2041 | B47: 69 | D47: 3.21784773e+25 | F47: 2.247276471e+27
A48: 2042 | B48: 70 | D48: 3.124124009e+25 | F48: 2.213442422e+27
A49: 2043 | B49: 70 | D49: 3.033130106e+25 | F49: 2.148973226e+27
A50: 2044 | B50: 71 | D50: 2.944786511e+25 | F50: 2.116187226e+27
A51: 2045 | B51: 72 | D51: 2.85901603e+25 | F51: 2.083488039e+27
A52: 2046 | B52: 73 | D52: 2.775743718e+25 | F52: 2.05089842e+27
A53: 2047 | B53: 74 | D53: =D52/(1+B$12) -> 2.694896814e+25 | E53: =IF($C$9="","",E52/(1+C$12)) ->  | F53: 2.018439727e+27
A54: 2048 | B54: 76 | D54: 2.616404674e+25 | F54: 2.01261374e+27
A55: 2049 | B55: 77 | D55: 2.540198712e+25 | F55: 1.979704369e+27
A56: 2050 | B56: 78 | D56: 2.466212342e+25 | F56: 1.947004675e+27
A57: 2051 | B57: =B56*(1+$B$11) -> 79.47184041 | D57: 2.394380915e+25 | F57: 1.925965208e+27
A58: 2052 | B58: =B57*(1+$B$11) -> 80.97145409 | D58: 2.324641665e+25 | F58: 1.905153095e+27
A59: 2053 | B59: 82.49936509 | D59: 2.256933655e+25 | F59: 1.884565879e+27
A60: 2054 | B60: 84.05610739 | D60: 2.191197723e+25 | F60: 1.86420113e+27
A61: 2055 | B61: 85.64222503 | D61: 2.12737643e+25 | F61: 1.844056444e+27
A62: 2056 | B62: 87.25827231 | D62: 2.06541401e+25 | F62: 1.824129443e+27
A63: 2057 | B63: 88.904814 | D63: 2.00525632e+25 | F63: 1.804417774e+27
A64: 2058 | B64: 90.58242552 | D64: 1.946850797e+25 | F64: 1.784919111e+27
A65: 2059 | B65: 92.29169314 | D65: 1.890146404e+25 | F65: 1.765631152e+27
A66: 2060 | B66: 94.03321421 | D66: 1.835093597e+25 | F66: 1.74655162e+27
A67: 2061 | B67: 95.80759735 | D67: 1.781644269e+25 | F67: 1.727678262e+27
A68: 2062 | B68: 97.61546266 | D68: 1.729751717e+25 | F68: 1.709008852e+27
A69: 2063 | B69: 99.45744193 | D69: 1.679370599e+25 | F69: 1.690541184e+27
A70: 2064 | B70: 101.3341789 | D70: 1.630456892e+25 | F70: 1.672273079e+27
A71: 2065 | B71: 103.2463294 | D71: 1.582967857e+25 | F71: 1.654202381e+27
A72: 2066 | B72: 105.1945617 | D72: 1.536861997e+25 | F72: 1.636326956e+27
A73: 2067 | B73: 107.1795567 | D73: 1.492099026e+25 | F73: 1.618644694e+27
A74: 2068 | B74: 109.202008 | D74: 1.448639831e+25 | F74: 1.601153508e+27
A75: 2069 | B75: 111.2626225 | D75: 1.406446438e+25 | F75: 1.583851332e+27
A76: 2070 | B76: 113.3621202 | D76: 1.365481978e+25 | F76: 1.566736125e+27
A77: 2071 | B77: 115.5012349 | D77: 1.325710659e+25 | F77: 1.549805867e+27
A78: 2072 | B78: 117.6807142 | D78: 1.287097727e+25 | F78: 1.533058558e+27
A79: 2073 | B79: 119.9013198 | D79: 1.249609444e+25 | F79: 1.516492221e+27
A80: 2074 | B80: 122.1638276 | D80: 1.213213052e+25 | F80: 1.500104901e+27
A81: 2075 | B81: 124.4690283 | D81: 1.17787675e+25 | F81: 1.483894664e+27
A82: 2076 | B82: 126.8177276 | D82: 1.14356966e+25 | F82: 1.467859596e+27
A83: 2077 | B83: 129.2107463 | D83: 1.110261806e+25 | F83: 1.451997804e+27
A84: 2078 | B84: 131.6489206 | D84: 1.077924083e+25 | F84: 1.436307415e+27
A85: 2079 | B85: 134.1331027 | D85: =D84/(1+B$12) -> 1.046528236e+25 | E85: =IF($C$9="","",E84/(1+C$12)) ->  | F85: =B85*D85*($B$10/B$9) -> 1.420786578e+27
A86: =A85+1 -> 2080 | B86: 136.6641607 | D86: 1.016046831e+25 | F86: 1.40543346e+27
A87: 2081 | B87: 139.2429791 | D87: 9.864532341e+24 | F87: 1.390246249e+27
A88: 2082 | B88: 141.8704591 | D88: 9.577215865e+24 | F88: 1.375223152e+27
A89: 2083 | B89: 144.5475191 | D89: 9.29826783e+24 | F89: 1.360362396e+27
A90: 2084 | B90: 147.2750944 | D90: 9.027444495e+24 | F90: 1.345662226e+27
A91: 2085 | B91: 150.0541385 | D91: 8.764509218e+24 | F91: 1.331120907e+27
A92: 2086 | B92: 152.8856224 | D92: 8.509232251e+24 | F92: 1.316736723e+27
A93: 2087 | B93: 155.7705357 | D93: 8.261390535e+24 | F93: 1.302507975e+27
A94: 2088 | B94: 158.7098866 | D94: 8.02076751e+24 | F94: 1.288432984e+27
A95: 2089 | B95: 161.7047023 | D95: 7.787152922e+24 | F95: 1.274510088e+27
A96: 2090 | B96: 164.7560294 | D96: 7.560342643e+24 | F96: 1.260737644e+27
A97: 2091 | B97: 167.8649343 | D97: 7.340138488e+24 | F97: 1.247114026e+27
A98: 2092 | B98: 171.0325035 | D98: 7.126348047e+24 | F98: 1.233637626e+27
A99: 2093 | B99: 174.2598439 | D99: 6.918784511e+24 | F99: 1.220306852e+27
A100: 2094 | B100: 177.5480834 | D100: 6.717266516e+24 | F100: 1.207120132e+27
A101: 2095 | B101: 180.8983711 | D101: 6.521617976e+24 | F101: 1.194075909e+27
A102: 2096 | B102: 184.311878 | D102: 6.331667938e+24 | F102: 1.181172642e+27
A103: 2097 | B103: 187.7897968 | D103: 6.147250426e+24 | F103: 1.168408809e+27
A104: 2098 | B104: 191.3333431 | D104: 5.968204297e+24 | F104: 1.155782903e+27
A105: 2099 | B105: 194.9437553 | D105: 5.794373104e+24 | F105: 1.143293433e+27
A106: 2100 | B106: 198.622295 | D106: 5.625604955e+24 | F106: 1.130938925e+27
A107: 2101 | B107: 202.3702478 | D107: 5.461752383e+24 | F107: 1.118717921e+27
A108: 2102 | B108: 206.1889236 | D108: 5.302672217e+24 | F108: 1.106628978e+27
A109: 2103 | B109: 210.0796568 | D109: 5.148225453e+24 | F109: 1.094670669e+27
A110: 2104 | B110: 214.0438072 | D110: 4.998277139e+24 | F110: 1.082841582e+27
A111: 2105 | B111: 218.0827601 | D111: 4.852696252e+24 | F111: 1.071140321e+27
A112: 2106 | B112: 222.197927 | D112: 4.711355584e+24 | F112: 1.059565505e+27
A113: 2107 | B113: 226.3907461 | D113: 4.574131635e+24 | F113: 1.048115767e+27
A114: 2108 | B114: 230.6626826 | D114: 4.4409045e+24 | F114: 1.036789755e+27
A115: 2109 | B115: 235.0152295 | D115: 4.311557767e+24 | F115: 1.025586134e+27
A116: 2110 | B116: 239.4499079 | D116: 4.185978415e+24 | F116: 1.014503579e+27
A117: 2111 | B117: 243.9682675 | D117: =D116/(1+B$12) -> 4.064056713e+24 | E117: =IF($C$9="","",E116/(1+C$12)) ->  | F117: 1.003540783e+27
A118: 2112 | B118: 248.5718874 | D118: 3.945686129e+24 | F118: 9.926964525e+26
A119: 2113 | B119: 253.2623765 | D119: 3.830763232e+24 | F119: 9.819693061e+26
A120: 2114 | B120: 258.041374 | D120: 3.719187604e+24 | F120: 9.71358078e+26
A121: 2115 | B121: 262.9105499 | D121: 3.610861752e+24 | F121: 9.608615155e+26
A122: 2116 | B122: =B121*(1+$B$11) -> 267.871606 | D122: 3.505691021e+24 | F122: 9.504783796e+26
A123: 2117 | B123: 272.9262759 | D123: 3.403583516e+24 | F123: 9.402074447e+26
A124: 2118 | B124: 278.0763262 | D124: 3.304450015e+24 | F124: 9.300474981e+26
A125: 2119 | B125: 283.3235566 | D125: 3.208203898e+24 | F125: 9.199973406e+26
A126: 2120 | B126: 288.669801 | D126: 3.114761066e+24 | F126: 9.100557858e+26
A127: 2121 | B127: 294.1169277 | D127: 3.02403987e+24 | F127: 9.002216602e+26
A128: 2122 | B128: 299.6668402 | D128: 2.935961039e+24 | F128: 8.904938028e+26
A129: 2123 | B129: 305.3214783 | D129: 2.850447611e+24 | F129: 8.808710653e+26
A130: 2124 | B130: 311.0828179 | D130: 2.767424865e+24 | F130: 8.713523117e+26
A131: 2125 | B131: 316.9528725 | D131: 2.686820257e+24 | F131: 8.619364185e+26
A132: 2126 | B132: 322.9336937 | D132: 2.608563356e+24 | F132: 8.52622274e+26
A133: 2127 | B133: 329.0273714 | D133: 2.532585783e+24 | F133: 8.434087789e+26
A134: 2128 | B134: 335.2360352 | D134: 2.458821148e+24 | F134: 8.342948454e+26
A135: 2129 | B135: 341.561855 | D135: 2.387204998e+24 | F135: 8.252793977e+26
A136: 2130 | B136: 348.0070415 | D136: 2.317674756e+24 | F136: 8.163613716e+26
A137: 2131 | B137: 354.573847 | D137: 2.250169666e+24 | F137: 8.075397142e+26
A138: 2132 | B138: 361.2645664 | D138: 2.184630743e+24 | F138: 7.988133843e+26
A139: 2133 | B139: 368.0815381 | D139: 2.121000722e+24 | F139: 7.901813517e+26
A140: 2134 | B140: 375.0271443 | D140: 2.059224002e+24 | F140: 7.816425975e+26
A141: 2135 | B141: 382.1038123 | D141: 1.999246604e+24 | F141: 7.731961136e+26
A142: 2136 | B142: 389.3140153 | D142: 1.94101612e+24 | F142: 7.64840903e+26
A143: 2137 | B143: 396.660273 | D143: 1.88448167e+24 | F143: 7.565759794e+26
A144: 2138 | B144: 404.1451528 | D144: 1.829593854e+24 | F144: 7.484003672e+26
A145: 2139 | B145: 411.7712703 | D145: 1.776304713e+24 | F145: 7.403131011e+26
A146: 2140 | B146: 419.5412908 | D146: 1.724567682e+24 | F146: 7.323132266e+26
A147: 2141 | B147: 427.4579296 | D147: 1.674337556e+24 | F147: 7.243997994e+26
A148: 2142 | B148: 435.5239534 | D148: 1.625570442e+24 | F148: 7.165718851e+26
A149: 2143 | B149: 443.742181 | D149: =D148/(1+B$12) -> 1.578223731e+24 | E149: =IF($C$9="","",E148/(1+C$12)) ->  | F149: =B149*D149*($B$10/B$9) -> 7.088285599e+26
A150: =A149+1 -> 2144 | B150: 452.1154845 | D150: 1.532256049e+24 | F150: 7.011689095e+26
A151: 2145 | B151: 460.6467902 | D151: 1.487627232e+24 | F151: 6.935920299e+26
A152: 2146 | B152: 469.3390795 | D152: 1.444298284e+24 | F152: 6.860970265e+26
A153: 2147 | B153: 478.19539 | D153: 1.402231343e+24 | F153: 6.786830147e+26
A154: 2148 | B154: 487.218817 | D154: 1.361389654e+24 | F154: 6.713491191e+26
A155: 2149 | B155: 496.4125137 | D155: 1.321737528e+24 | F155: 6.640944742e+26
A156: 2150 | B156: 505.7796932 | D156: 1.283240318e+24 | F156: 6.569182235e+26

Sheet DemandParameters
A1: Demand Volume Profile | B1: This sheet creates demand profiles for specified years based on the major facility type and total entering AADT. You may either use the default hourly and daily factors or provide your own. These profiles are applied to all alternatives to convert peak hour information to annual delay estimates.
A4: Peak Hours and Facility Profile
B6: Peak Weekday Time Period | C6: From | D6: To
A7: Enter peak period begin and end times: | B7: AM peak | E7: =IF(OR(ISERR(Time_AM_Peak_Begin),ISERR(Time_AM_Peak_End),NOT(ISNUMBER(HOUR(Time_AM_Peak_Begin))),NOT(ISNUMBER(HOUR(Time_AM_Peak_End)))),"Please enter peak begin and end times in a recognizable time format: e.g., 6:00 am",IF(OR(MINUTE(Time_AM_Peak_Begin)<>0,MINUTE(Time_AM_Peak_End)<>0),"Warning: The LCCET only recognizes peak times defined on hour boundaries. Any minute specifications are ignored.",IF(HOUR(Time_AM_Peak_Begin)>=HOUR(Time_AM_Peak_End),"Warning: AM peak end hour must be one or more hours after AM peak begin hour",IF(OR(HOUR(Time_AM_Peak_Begin)>=12,HOUR(Time_AM_Peak_End)>=12),"Warning: Begin or end time of AM peak is specified outside morning period","")))) -> Warning: AM peak end hour must be one or more hours after AM peak begin hour
B8: PM peak | E8: =IF(OR(ISERR(Time_PM_Peak_Begin),ISERR(Time_PM_Peak_End),NOT(ISNUMBER(HOUR(Time_PM_Peak_Begin))),NOT(ISNUMBER(HOUR(Time_PM_Peak_End)))),"Please enter peak begin and end times in a recognizable time format: e.g., 5:00 pm",IF(OR(MINUTE(Time_PM_Peak_Begin)<>0,MINUTE(Time_PM_Peak_End)<>0),"Warning: The LCCET only recognizes peak times defined on hour boundaries. Any minute specifications are ignored.",IF(HOUR(Time_PM_Peak_Begin)>=HOUR(Time_PM_Peak_End),"Warning: PM peak end hour must be one or more hours after PM peak begin hour",IF(OR(HOUR(Time_PM_Peak_Begin)<12,HOUR(Time_PM_Peak_End)<12),"Warning: Begin or end time of PM peak is specified outside afternoon/evening period","")))) -> Warning: PM peak end hour must be one or more hours after PM peak begin hour
B9: Weekend peak | E9: =IF(OR(ISERR(Time_PM_Peak_Begin),ISERR(Time_PM_Peak_End),NOT(ISNUMBER(HOUR(Time_PM_Peak_Begin))),NOT(ISNUMBER(HOUR(Time_PM_Peak_End)))),"Please enter peak begin and end times in a recognizable time format: e.g., 5:00 pm",IF(OR(MINUTE(Time_PM_Peak_Begin)<>0,MINUTE(Time_PM_Peak_End)<>0),"Warning: The LCCET only recognizes peak times defined on hour boundaries. Any minute specifications are ignored.",IF(HOUR(Time_PM_Peak_Begin)>=HOUR(Time_PM_Peak_End),"Warning: PM peak end hour must be one or more hours after PM peak begin hour",IF(OR(HOUR(Time_PM_Peak_Begin)<12,HOUR(Time_PM_Peak_End)<12),"Warning: Begin or end time of PM peak is specified outside afternoon/evening period","")))) -> Warning: PM peak end hour must be one or more hours after PM peak begin hour
A11: Select Analysis Basis: | B11: 2 | F11: Weekday Count: | J11: Enter dates as "mm/dd/yyyy"
F12: Weekend Count: | J12: Enter dates as "mm/dd/yyyy"
A13: Select facility type: | B13: 3 | E13: At intersections of varying facilities select the roadway that will be more representative of the volume, or interpolate between values.
A15: Volume Adjustment Factor: | B15: Automated Adj. Factor | C15: Override Value | D15: Value Applied
A16: Weekday Adjustment: | B16: =IF($B$11=1,1,IF($B$11=2,(1/INDEX(B47:G53,WEEKDAY(G11,2),6))*(1/INDEX(B61:N72,MONTH(G11),13)))) -> 1.140857057 | D16: =IF(C16="",B16,C16) -> 1.140857057 | E16: This adjustment factor is used to align the input delay values within the alternatives sheets with the specific volume factor.
A17: Weekend Adjustment: | B17: =IF(OR($B$11=1,G12=""),1,(1/(INDEX(B47:G53,WEEKDAY(G12,2),6))*(1/INDEX(B61:N72,MONTH(G12),13)))) -> 1 | D17: =IF(C17="",B17,C17) -> 1 | E17: This adjustment factor is used to align the input delay values within the alternatives sheets with the specific volume factor.
B19: Base Analysis Volumes | C19: Adjusted Average Annual Volume | D19: Override Value | E19: Year 1 Value Applied
A20: AM peak hour: | C20: =IF(B20<>"",B20*D16,"") ->  | E20: =IF(D20="",C20,D20) ->  | F20: Volume entries are used to calibrate the volume-delay curve for a given alternative, and AADT values are used to develop demand profiles for each hour of each year. A minimum of one hourly volume must be entered within this table. If data is not available for a time period(s) please leave blank. Offpeak data is only used for calibrating the delay equation, not for AADT estimates.
A21: PM peak hour: | C21: =IF(B21<>"",B21*D16,"") ->  | E21: =IF(D21="",C21,D21) -> 
A22: Weekend peak hour: | C22: =IF(B22<>"",B22*D17,"") ->  | E22: =IF(D22="",C22,D22) -> 
A23: =IF(B11=1,"Average Annual Daily Traffic (AADT):","Specific Weekday Daily Traffic:") -> Specific Weekday Daily Traffic: | C23: =IF(AND(B23<>0,B11=1),B23,IF(B23<>0,B23*B16,IF(AND(B20<>0,B21<>0)=TRUE,(B20+B21)/(MAX(O76:O87)+MAX(O88:O99)),IF(AND(B20=0,B21<>0)=TRUE,B21/MAX(O88:O99),IF(AND(B20<>0,B21=0)=TRUE,B20/MAX(O76:O87),IF(B23<>0,B23,"Enter Volumes")))))) -> Enter Volumes | E23: =IF(D23<>"",D23,IF(C23<>"",C23,"")) -> Enter Volumes
A25: Adjust hourly volume profile to input peak hour volumes (Yes/No)? | B25: No | C25: If 'Yes' is selected the default hourly volume profiles will be adjusted to match the input peak hour volumes. Review plots of demand profiles to the right of Column "R" to assess the appropriateness of the profiles. | M25: Yes
M26: No
A27: Quantity (sum over all cordon approaches) | B27: Units | C27: Year | M27: Demand data must be entered for the opening year and end year for each alternative. Demand data must also be entered for any interim years specified for an alternative.
C28: Year 1 | D28: Year 2 | E28: Year 3 | F28: Year 4 | G28: Year 5 | H28: Year 6 | I28: Year 7 | J28: Year 8 | K28: Year 9 | L28: Year 10
C29: 2014 | D29: 2035
A30: Average annual daily traffic (AADT) | B30: Avg veh/day | C30: =IF(E23<>"",E23,"") -> Enter Volumes
A31: AM peak hour volume | B31: veh/hr | C31: =IF(B20<>"",B20,"") ->  | M31: Enter hourly volumes used to carry out travel time/delay calculations for intersection(s)
A32: PM peak hour volume | B32: veh/hr | C32: =IF(B21<>"",B21,"") -> 
A33: Weekend peak hour volume: | B33: veh/hr | C33: =IF(B22<>"",B22,"") -> 
A34: Average annual auto occupancy | B34: Passengers per vehicle | M34: Enter annual averages
A35: Average annual % trucks | B35: Average %
A36: Annual transit passengers | B36: Transit passengers per year | M36: Enter annual totals
A37: Annual cyclists | B37: Cyclists per year
A38: Annual pedestrians | B38: Pedestrians per year
A39: Click button when years are entered to set up calculations tables: | E39: This button should be pressed any time changes are made to the values above. This button creates a "typical" annual profile in rows 167 and below for various user types.
A43: Passenger Vehicle Demand Profile Parameters
B45: Note: All charts illustrating volume profiles are shown to right of Column "R"
A46: Review Daily Profile or Override Values: | B46: Day of Week | C46: Urban | D46: Rural | E46: Default Profile Value | F46: Override Value | G46: Applied Value | H46: Notes
A47: Chart shown at right | B47: Monday | C47: 0.98 | D47: 0.951 | E47: =IF($B$13>5,C47,IF($B$13>0,D47,"")) -> 0.951 | G47: =IF(F47="",E47,F47) -> 0.951
B48: Tuesday | C48: 0.98 | D48: 0.912 | E48: 0.912 | G48: 0.912
B49: Wednesday | C49: 1 | D49: 0.932 | E49: 0.932 | G49: 0.932
B50: Thursday | C50: 1.03 | D50: 0.981 | E50: 0.981 | G50: 0.981
B51: Friday | C51: 1.15 | D51: 1.162 | E51: 1.162 | G51: 1.162
B52: Saturday | C52: 0.99 | D52: 1.051 | E52: 1.051 | G52: 1.051
B53: Sunday | C53: 0.87 | D53: 1.011 | E53: 1.011 | G53: 1.011
A59: Review Monthly Profile or Override Values: | B59: Month | C59: Functional Class | L59: Default Profile Value | M59: Override Value | N59: Applied Value | O59: Notes
C60: Rural Interstate | D60: Rural Principal Arterial | E60: Rural Minor Arterial | F60: Rural Major Collector | G60: Rural Minor Collector | H60: Urban Interstate | I60: Urban Other Frwy & Expwy | J60: Urban Principal Arterial | K60: Urban Minor Arterial
A61: Chart shown at right | B61: January | C61: 0.747 | D61: 0.813 | E61: 0.834 | F61: 0.812 | G61: 0.812 | H61: 0.836 | I61: 0.802 | J61: 0.831 | K61: 0.881 | L61: =IF($B$13=1,C61,IF($B$13=2,D61,IF($B$13=3,E61,IF($B$13=4,F61,IF($B$13=5,G61,IF($B$13=6,H61,IF($B$13=7,I61,IF($B$13=8,J61,IF($B$13=9,K61))))))))) -> 0.834 | N61: =IF(M61="",L61,M61) -> 0.834
B62: February | C62: 0.828 | D62: 0.855 | E62: 0.935 | F62: 0.935 | G62: 0.935 | H62: 0.863 | I62: 0.874 | J62: 1.021 | K62: 0.944 | L62: 0.935 | N62: 0.935
B63: March | C63: 0.926 | D63: 0.891 | E63: 0.973 | F63: 0.977 | G63: 0.977 | H63: 0.936 | I63: 0.936 | J63: 1.03 | K63: 1.016 | L63: 0.973 | N63: 0.973
B64: April | C64: 0.994 | D64: 0.958 | E64: 1.004 | F64: 1.044 | G64: 1.044 | H64: 0.992 | I64: 0.958 | J64: 0.987 | K64: 0.844 | L64: 1.004 | N64: 1.004
B65: May | C65: 1.087 | D65: 1.091 | E65: 1.091 | F65: 1.009 | G65: 1.009 | H65: 0.99 | I65: 1.026 | J65: 1.012 | K65: 1.025 | L65: 1.091 | N65: 1.091
B66: June | C66: 1.105 | D66: 1.087 | E66: 1.106 | F66: 1.041 | G66: 1.041 | H66: 1.039 | I66: 1.068 | J66: 1.05 | K66: 1.06 | L66: 1.106 | N66: 1.106
B67: July | C67: 1.243 | D67: 1.125 | E67: 1.016 | F67: 0.982 | G67: 0.982 | H67: 1.152 | I67: 1.107 | J67: 0.991 | K67: 1.15 | L67: 1.016 | N67: 1.016
B68: August | C68: 1.137 | D68: 1.13 | E68: 1.015 | F68: 1.056 | G68: 1.056 | H68: 1.05 | I68: 1.142 | J68: 1.054 | K68: 1.11 | L68: 1.015 | N68: 1.015
B69: September | C69: 1.087 | D69: 1.038 | E69: 1.062 | F69: 1.054 | G69: 1.054 | H69: 1.081 | I69: 1.088 | J69: 1.091 | K69: 1.081 | L69: 1.062 | N69: 1.062
B70: October | C70: 0.996 | D70: 1.041 | E70: 1.08 | F70: 1.028 | G70: 1.028 | H70: 1.012 | I70: 1.069 | J70: 0.952 | K70: 1.036 | L70: 1.08 | N70: 1.08
B71: November | C71: 0.974 | D71: 0.965 | E71: 0.983 | F71: 1.007 | G71: 1.007 | H71: 1.012 | I71: 0.962 | J71: 0.992 | K71: 0.989 | L71: 0.983 | N71: 0.983
B72: December | C72: 0.872 | D72: 0.91 | E72: 0.966 | F72: 0.998 | G72: 0.998 | H72: 0.995 | I72: 0.933 | J72: 0.938 | K72: 0.903 | L72: 0.966 | N72: 0.966
A74: Review Weekday Hourly Demand Profile or Override Values: | B74: Category | C74: Hour Starting | D74: Functional Class | M74: Calibrated Profile Value | N74: Override Value | O74: Applied Value | P74: Notes
A75: Chart shown at right | D75: Rural Interstate | E75: Rural Principal Arterial | F75: Rural Minor Arterial | G75: Rural Major Collector | H75: Rural Minor Collector | I75: Urban Interstate | J75: Urban Other Frwy & Expwy | K75: Urban Principal Arterial | L75: Urban Minor Arterial | R75: =IF($B$13=1,D75,IF($B$13=2,E75,IF($B$13=3,F75,IF($B$13=4,G75,IF($B$13=5,H75,IF($B$13=6,I75,IF($B$13=7,J75,IF($B$13=8,K75,IF($B$13=9,L75))))))))) -> Rural Minor Arterial
B76: Weekday | C76: 00:00:00 | D76: 0.011 | E76: 0.009 | F76: 0.012 | G76: 0.012 | H76: 0.008 | I76: 0.011 | J76: 0.01 | K76: 0.01 | L76: 0.01 | M76: =IF($B$13=1,D76,IF($B$13=2,E76,IF($B$13=3,F76,IF($B$13=4,G76,IF($B$13=5,H76,IF($B$13=6,I76,IF($B$13=7,J76,IF($B$13=8,K76,IF($B$13=9,L76))))))))) -> 0.012 | O76: =IF(N76="",M76,N76) -> 0.012 | R76: =IF($B$13=1,D76,IF($B$13=2,E76,IF($B$13=3,F76,IF($B$13=4,G76,IF($B$13=5,H76,IF($B$13=6,I76,IF($B$13=7,J76,IF($B$13=8,K76,IF($B$13=9,L76))))))))) -> 0.012
C77: 01:00:00 | D77: 0.008 | E77: 0.005 | F77: 0.006 | G77: 0.005 | H77: 0.004 | I77: 0.006 | J77: 0.006 | K77: 0.006 | L77: 0.006 | M77: 0.006 | O77: =IF(N77="",M77,N77) -> 0.006 | R77: 0.006
C78: 02:00:00 | D78: 0.006 | E78: 0.003 | F78: 0.003 | G78: 0.004 | H78: 0.001 | I78: 0.005 | J78: 0.004 | K78: 0.005 | L78: 0.004 | M78: 0.003 | O78: 0.003 | R78: 0.003
C79: 03:00:00 | D79: 0.006 | E79: 0.003 | F79: 0.003 | G79: 0.003 | H79: 0.001 | I79: 0.004 | J79: 0.004 | K79: 0.005 | L79: 0.002 | M79: 0.003 | O79: 0.003 | R79: 0.003
C80: 04:00:00 | D80: 0.008 | E80: 0.006 | F80: 0.005 | G80: 0.004 | H80: 0.001 | I80: 0.007 | J80: 0.007 | K80: 0.009 | L80: 0.002 | M80: 0.005 | O80: 0.005 | R80: 0.005
C81: 05:00:00 | D81: 0.015 | E81: 0.019 | F81: 0.018 | G81: 0.01 | H81: 0.006 | I81: 0.022 | J81: 0.025 | K81: 0.03 | L81: 0.007 | M81: 0.018 | O81: 0.018 | R81: 0.018
C82: 06:00:00 | D82: 0.034 | E82: 0.048 | F82: 0.045 | G82: 0.028 | H82: 0.02 | I82: 0.051 | J82: 0.058 | K82: 0.054 | L82: 0.023 | M82: 0.045 | O82: 0.045 | R82: 0.045
C83: 07:00:00 | D83: 0.056 | E83: 0.072 | F83: 0.072 | G83: 0.063 | H83: 0.034 | I83: 0.069 | J83: 0.077 | K83: 0.071 | L83: 0.067 | M83: 0.1 | O83: 0.1 | R83: 0.072
C84: 08:00:00 | D84: 0.054 | E84: 0.059 | F84: 0.06 | G84: 0.06 | H84: 0.035 | I84: 0.055 | J84: 0.053 | K84: 0.058 | L84: 0.066 | M84: 0.08333333333 | O84: 0.08333333333 | R84: 0.06
C85: 09:00:00 | D85: 0.053 | E85: 0.05 | F85: 0.044 | G85: 0.049 | H85: 0.037 | I85: 0.046 | J85: 0.037 | K85: 0.047 | L85: 0.054 | M85: 0.044 | O85: 0.044 | R85: 0.044
C86: 10:00:00 | D86: 0.056 | E86: 0.051 | F86: 0.044 | G86: 0.048 | H86: 0.047 | I86: 0.046 | J86: 0.037 | K86: 0.046 | L86: 0.051 | M86: 0.044 | O86: 0.044 | R86: 0.044
C87: 11:00:00 | D87: 0.058 | E87: 0.053 | F87: 0.046 | G87: 0.05 | H87: 0.056 | I87: 0.049 | J87: 0.042 | K87: 0.05 | L87: 0.056 | M87: 0.046 | O87: 0.046 | R87: 0.046
C88: 12:00:00 | D88: 0.06 | E88: 0.054 | F88: 0.049 | G88: 0.052 | H88: 0.055 | I88: 0.052 | J88: 0.045 | K88: 0.053 | L88: 0.071 | M88: 0.049 | O88: 0.049 | R88: 0.049
C89: 13:00:00 | D89: 0.062 | E89: 0.057 | F89: 0.05 | G89: 0.055 | H89: 0.056 | I89: 0.053 | J89: 0.045 | K89: 0.054 | L89: 0.066 | M89: 0.05 | O89: 0.05 | R89: 0.05
C90: 14:00:00 | D90: 0.067 | E90: 0.064 | F90: 0.056 | G90: 0.062 | H90: 0.061 | I90: 0.06 | J90: 0.057 | K90: 0.063 | L90: 0.06 | M90: 0.056 | O90: 0.056 | R90: 0.056
C91: 15:00:00 | D91: 0.074 | E91: 0.075 | F91: 0.08 | G91: 0.071 | H91: 0.071 | I91: 0.07 | J91: 0.073 | K91: 0.069 | L91: 0.062 | M91: 0.08 | O91: 0.08 | R91: 0.08
C92: 16:00:00 | D92: 0.08 | E92: 0.083 | F92: 0.088 | G92: 0.083 | H92: 0.08 | I92: 0.077 | J92: 0.087 | K92: 0.072 | L92: 0.063 | M92: 0.088 | O92: 0.088 | R92: 0.088
C93: 17:00:00 | D93: 0.077 | E93: 0.083 | F93: 0.089 | G93: 0.093 | H93: 0.107 | I93: 0.081 | J93: 0.09 | K93: 0.077 | L93: 0.075 | M93: 0.1 | O93: 0.1 | R93: 0.089
C94: 18:00:00 | D94: 0.06 | E94: 0.062 | F94: 0.059 | G94: 0.072 | H94: 0.085 | I94: 0.065 | J94: 0.068 | K94: 0.062 | L94: 0.07 | M94: 0.059 | O94: 0.059 | R94: 0.059
C95: 19:00:00 | D95: 0.045 | E95: 0.043 | F95: 0.048 | G95: 0.049 | H95: 0.066 | I95: 0.049 | J95: 0.049 | K95: 0.044 | L95: 0.053 | M95: 0.048 | O95: 0.048 | R95: 0.048
C96: 20:00:00 | D96: 0.036 | E96: 0.034 | F96: 0.036 | G96: 0.04 | H96: 0.06 | I96: 0.039 | J96: 0.04 | K96: 0.035 | L96: 0.044 | M96: 0.036 | O96: 0.036 | R96: 0.036
C97: 21:00:00 | D97: 0.031 | E97: 0.03 | F97: 0.031 | G97: 0.039 | H97: 0.049 | I97: 0.036 | J97: 0.037 | K97: 0.033 | L97: 0.035 | M97: 0.031 | O97: 0.031 | R97: 0.031
C98: 22:00:00 | D98: 0.024 | E98: 0.023 | F98: 0.026 | G98: 0.028 | H98: 0.038 | I98: 0.028 | J98: 0.029 | K98: 0.026 | L98: 0.033 | M98: 0.026 | O98: 0.026 | R98: 0.026
C99: 23:00:00 | D99: 0.018 | E99: 0.016 | F99: 0.02 | G99: 0.019 | H99: 0.02 | I99: 0.02 | J99: 0.019 | K99: 0.021 | L99: 0.019 | M99: 0.02 | O99: 0.02 | R99: 0.02
C100: Total | M100: =SUM(M76:M99) -> 1.052333333 | N100: =SUM(N76:N99) -> 0 | O100: =SUM(O76:O99) -> 1.052333333
A101: Review Weekend Hourly Demand Profile or Override Values: | B101: Weekend | C101: 00:00:00 | D101: 0.016 | E101: 0.016 | F101: 0.024 | G101: 0.022 | H101: 0.016 | I101: 0.021 | J101: 0.023 | K101: 0.023 | L101: 0.028 | M101: =IF($B$13=1,D101,IF($B$13=2,E101,IF($B$13=3,F101,IF($B$13=4,G101,IF($B$13=5,H101,IF($B$13=6,I101,IF($B$13=7,J101,IF($B$13=8,K101,IF($B$13=9,L101))))))))) -> 0.024 | O101: =IF(N101="",M101,N101) -> 0.024 | R101: 0.024
A102: Chart shown at right | C102: 01:00:00 | D102: 0.011 | E102: 0.01 | F102: 0.013 | G102: 0.012 | H102: 0.009 | I102: 0.014 | J102: 0.015 | K102: 0.014 | L102: 0.023 | M102: 0.013 | O102: 0.013 | R102: 0.013
C103: 02:00:00 | D103: 0.009 | E103: 0.006 | F103: 0.007 | G103: 0.007 | H103: 0.004 | I103: 0.01 | J103: 0.008 | K103: 0.01 | L103: 0.021 | M103: 0.007 | O103: 0.007 | R103: 0.007
C104: 03:00:00 | D104: 0.007 | E104: 0.005 | F104: 0.005 | G104: 0.005 | H104: 0.002 | I104: 0.006 | J104: 0.005 | K104: 0.006 | L104: 0.008 | M104: 0.005 | O104: 0.005 | R104: 0.005
C105: 04:00:00 | D105: 0.007 | E105: 0.005 | F105: 0.005 | G105: 0.004 | H105: 0.002 | I105: 0.006 | J105: 0.005 | K105: 0.006 | L105: 0.005 | M105: 0.005 | O105: 0.005 | R105: 0.005
C106: 05:00:00 | D106: 0.01 | E106: 0.009 | F106: 0.008 | G106: 0.006 | H106: 0.002 | I106: 0.01 | J106: 0.009 | K106: 0.01 | L106: 0.005 | M106: 0.008 | O106: 0.008 | R106: 0.008
C107: 06:00:00 | D107: 0.017 | E107: 0.016 | F107: 0.016 | G107: 0.01 | H107: 0.007 | I107: 0.017 | J107: 0.016 | K107: 0.017 | L107: 0.011 | M107: 0.016 | O107: 0.016 | R107: 0.016
C108: 07:00:00 | D108: 0.027 | E108: 0.025 | F108: 0.025 | G108: 0.018 | H108: 0.014 | I108: 0.025 | J108: 0.023 | K108: 0.024 | L108: 0.018 | M108: 0.025 | O108: 0.025 | R108: 0.025
C109: 08:00:00 | D109: 0.039 | E109: 0.036 | F109: 0.033 | G109: 0.028 | H109: 0.025 | I109: 0.035 | J109: 0.036 | K109: 0.035 | L109: 0.03 | M109: 0.033 | O109: 0.033 | R109: 0.033
C110: 09:00:00 | D110: 0.052 | E110: 0.05 | F110: 0.045 | G110: 0.039 | H110: 0.046 | I110: 0.047 | J110: 0.045 | K110: 0.046 | L110: 0.048 | M110: 0.045 | O110: 0.045 | R110: 0.045
C111: 10:00:00 | D111: 0.063 | E111: 0.062 | F111: 0.055 | G111: 0.049 | H111: 0.058 | I111: 0.057 | J111: 0.057 | K111: 0.056 | L111: 0.054 | M111: 0.055 | O111: 0.055 | R111: 0.055
C112: 11:00:00 | D112: 0.07 | E112: 0.07 | F112: 0.063 | G112: 0.06 | H112: 0.063 | I112: 0.065 | J112: 0.066 | K112: 0.054 | L112: 0.057 | M112: 0.063 | O112: 0.063 | R112: 0.063
C113: 12:00:00 | D113: 0.072 | E113: 0.075 | F113: 0.072 | G113: 0.068 | H113: 0.086 | I113: 0.072 | J113: 0.076 | K113: 0.071 | L113: 0.074 | M113: 0.072 | O113: 0.072 | R113: 0.072
C114: 13:00:00 | D114: 0.072 | E114: 0.075 | F114: 0.073 | G114: 0.071 | H114: 0.081 | I114: 0.072 | J114: 0.073 | K114: 0.071 | L114: 0.071 | M114: 0.073 | O114: 0.073 | R114: 0.073
C115: 14:00:00 | D115: 0.073 | E115: 0.075 | F115: 0.072 | G115: 0.073 | H115: 0.077 | I115: 0.071 | J115: 0.074 | K115: 0.072 | L115: 0.069 | M115: 0.072 | O115: 0.072 | R115: 0.072
C116: 15:00:00 | D116: 0.075 | E116: 0.077 | F116: 0.082 | G116: 0.074 | H116: 0.077 | I116: 0.073 | J116: 0.075 | K116: 0.073 | L116: 0.067 | M116: 0.082 | O116: 0.082 | R116: 0.082
C117: 16:00:00 | D117: 0.075 | E117: 0.078 | F117: 0.075 | G117: 0.079 | H117: 0.086 | I117: 0.073 | J117: 0.075 | K117: 0.073 | L117: 0.071 | M117: 0.075 | O117: 0.075 | R117: 0.075
C118: 17:00:00 | D118: 0.071 | E118: 0.075 | F118: 0.074 | G118: 0.08 | H118: 0.086 | I118: 0.072 | J118: 0.071 | K118: 0.073 | L118: 0.068 | M118: 0.074 | O118: 0.074 | R118: 0.074
C119: 18:00:00 | D119: 0.061 | E119: 0.065 | F119: 0.067 | G119: 0.075 | H119: 0.067 | I119: 0.064 | J119: 0.063 | K119: 0.063 | L119: 0.067 | M119: 0.067 | O119: 0.067 | R119: 0.067
C120: 19:00:00 | D120: 0.051 | E120: 0.051 | F120: 0.054 | G120: 0.063 | H120: 0.056 | I120: 0.052 | J120: 0.051 | K120: 0.052 | L120: 0.056 | M120: 0.054 | O120: 0.054 | R120: 0.054
C121: 20:00:00 | D121: 0.041 | E121: 0.041 | F121: 0.043 | G121: 0.052 | H121: 0.051 | I121: 0.043 | J121: 0.043 | K121: 0.044 | L121: 0.049 | M121: 0.043 | O121: 0.043 | R121: 0.043
C122: 21:00:00 | D122: 0.033 | E122: 0.033 | F122: 0.035 | G122: 0.045 | H122: 0.039 | I122: 0.038 | J122: 0.037 | K122: 0.038 | L122: 0.04 | M122: 0.035 | O122: 0.035 | R122: 0.035
C123: 22:00:00 | D123: 0.026 | E123: 0.026 | F123: 0.029 | G123: 0.034 | H123: 0.032 | I123: 0.032 | J123: 0.032 | K123: 0.033 | L123: 0.035 | M123: 0.029 | O123: 0.029 | R123: 0.029
C124: 23:00:00 | D124: 0.019 | E124: 0.019 | F124: 0.024 | G124: 0.025 | H124: 0.019 | I124: 0.025 | J124: 0.023 | K124: 0.026 | L124: 0.024 | M124: 0.024 | O124: 0.024 | R124: 0.024
C125: Total | M125: =SUM(M101:M124) -> 0.999 | N125: =SUM(N101:N124) -> 0 | O125: =SUM(O101:O124) -> 0.999
A126: Annual Transit Demand Profile
B128: Average Daily Transit Profile | F128: These inputs are used to convert annual transit ridership to daily values.
B129: Daily Transit Ratio | C129: Weekday | D129: Saturday | E129: Sunday
C130: 0.82 | D130: 0.14 | E130: 0.04 | F130: =IF(SUM(TransitSplit_DayType)<>1,"Error, values do not add to 100%","") -> 
B131: Hour Starting | C131: Average Hourly Transit Profile
C132: Weekday | D132: Saturday | E132: Sunday
B133: 00:00:00 | C133: 0.0025 | D133: 0 | E133: 0
B134: 01:00:00 | C134: 0.0005 | D134: 0 | E134: 0
B135: 02:00:00 | C135: 0.0002 | D135: 0 | E135: 0
B136: 03:00:00 | C136: 0.0002 | D136: 0 | E136: 0
B137: 04:00:00 | C137: 0.0005 | D137: 0 | E137: 0
B138: 05:00:00 | C138: 0.009 | D138: 0.007181328546 | E138: 0.007181328546
B139: 06:00:00 | C139: 0.0435 | D139: 0.007181328546 | E139: 0.007181328546
B140: 07:00:00 | C140: 0.1237 | D140: 0.02692998205 | E140: 0.02692998205
B141: 08:00:00 | C141: 0.0874 | D141: 0.03231597846 | E141: 0.03231597846
B142: 09:00:00 | C142: 0.052 | D142: 0.05206463196 | E142: 0.05206463196
B143: 10:00:00 | C143: 0.0448 | D143: 0.02872531418 | E143: 0.02872531418
B144: 11:00:00 | C144: 0.0442 | D144: 0.06463195691 | E144: 0.06463195691
B145: 12:00:00 | C145: 0.0497 | D145: 0.07181328546 | E145: 0.07181328546
B146: 13:00:00 | C146: 0.0464 | D146: 0.078994614 | E146: 0.078994614
B147: 14:00:00 | C147: 0.0628 | D147: 0.08976660682 | E147: 0.08976660682
B148: 15:00:00 | C148: 0.1323 | D148: 0.1005385996 | E148: 0.1005385996
B149: 16:00:00 | C149: 0.0914 | D149: 0.08976660682 | E149: 0.08976660682
B150: 17:00:00 | C150: 0.0741 | D150: 0.08617594255 | E150: 0.08617594255
B151: 18:00:00 | C151: 0.0474 | D151: 0.07360861759 | E151: 0.07360861759
B152: 19:00:00 | C152: 0.0284 | D152: 0.05206463196 | E152: 0.05206463196
B153: 20:00:00 | C153: 0.0218 | D153: 0.04488330341 | E153: 0.04488330341
B154: 21:00:00 | C154: 0.0193 | D154: 0.02872531418 | E154: 0.02872531418
B155: 22:00:00 | C155: 0.012 | D155: 0.04667863555 | E155: 0.04667863555
B156: 23:00:00 | C156: 0.0059 | D156: 0.01795332136 | E156: 0.01795332136
B157: Total | C157: =SUM(C133:C156) -> 1 | D157: =SUM(D133:D156) -> 1 | E157: =SUM(E133:E156) -> 1
A158: Calculations Section
B159: N hours/yr in time period
B160: N_AMpeak_Hours | C160: =SUM(D167:D8926) -> 0
B161: N_PMpeak_Hours | C161: =SUM(E167:E8926) -> 0
B162: N_Offpeak_Hours | C162: =SUM(F167:F8926) -> 8760
A164: No additional inputs below. This section illustrates the volume profiles on an annual calendar.
A165: Typical Annual Profile | B165: Weekday/ Holiday Code | C165: Time period (AM pk, PM pk, offpk) | D165: AM Peak | E165: PM Peak | F165: Off Peak | G165: =C29 -> 2014 | K165: =D29 -> 2035
G166: Total Entering Vehicles | H166: Auto Passengers | I166: Trucks | J166: Transit Passengers | K166: Total Entering Vehicles | L166: Auto Passengers | M166: Trucks | N166: Transit Passengers
A167: 2014-01-01 | B167: =IF(ISNUMBER(VLOOKUP(INT($A167),HolidayTable,2,FALSE)),VLOOKUP(INT($A167),HolidayTable,2,FALSE),WEEKDAY($A167,2)) -> 3 | C167: =IF($B167<=5,IF(AND(HOUR($A167)>=HOUR(Time_AM_Peak_Begin),HOUR($A167)<HOUR(Time_AM_Peak_End)),Code_AM_Peak,IF(AND(HOUR($A167)>=HOUR(Time_PM_Peak_Begin),HOUR($A167)<HOUR(Time_PM_Peak_End)),Code_PM_Peak,Code_Offpeak)),Code_Offpeak) -> 3 | D167: =IF(C167=Code_AM_Peak,1,0) -> 0 | E167: =IF(C167=Code_PM_Peak,1,0) -> 0 | F167: =IF(C167=Code_Offpeak,1,0) -> 1 | G167: =$C$30*INDEX($G$47:$G$53,$B167,1)*INDEX($N$61:$N$72,MONTH($A167),1)*IF($B167<=5,INDEX($O$76:$O$99,HOUR($A167)+1,1),INDEX($O$101:$O$124,HOUR($A167)+1,1)) ->  | H167: =G167*(1-$C$35)*$C$34 ->  | I167: =G167*$C$35 ->  | J167: =($C$36*7)/(5+($D$130/$C$130)+($E$130/$C$130))*IF($B$167<=5,INDEX($C$133:$E$156,HOUR($A167)+1,1),IF($B$167=6,INDEX($C$133:$E$156,HOUR($A167)+1,2),INDEX($C$133:$E$156,HOUR($A167)+1,3))) -> 0 | K167: =$D$30*INDEX($G$47:$G$53,$B167,1)*INDEX($N$61:$N$72,MONTH($A167),1)*IF($B167<=5,INDEX($O$76:$O$99,HOUR($A167)+1,1),INDEX($O$101:$O$124,HOUR($A167)+1,1)) -> 0 | L167: =K167*(1-$D$35)*$D$34 -> 0 | M167: =K167*$D$35 -> 0 | N167: =($D$36*7)/(5+($D$130/$C$130)+($E$130/$C$130))*IF($B$167<=5,INDEX($C$133:$E$156,HOUR($A167)+1,1),IF($B$167=6,INDEX($C$133:$E$156,HOUR($A167)+1,2),INDEX($C$133:$E$156,HOUR($A167)+1,3))) -> 0
A168: 2014-01-01T01:00:00 | B168: 3 | C168: 3 | D168: 0 | E168: 0 | F168: 1 | G168: =$C$30*INDEX($G$47:$G$53,$B168,1)*INDEX($N$61:$N$72,MONTH($A168),1)*IF($B168<=5,INDEX($O$76:$O$99,HOUR($A168)+1,1),INDEX($O$101:$O$124,HOUR($A168)+1,1)) ->  | H168: =G168*(1-$C$35)*$C$34 ->  | I168: =G168*$C$35 ->  | J168: =($C$36*7)/(5+($D$130/$C$130)+($E$130/$C$130))*IF($B168<=5,INDEX($C$133:$E$156,HOUR($A168)+1,1),IF($B168=6,INDEX($C$133:$E$156,HOUR($A168)+1,2),INDEX($C$133:$E$156,HOUR($A168)+1,3))) -> 0 | K168: =$D$30*INDEX($G$47:$G$53,$B168,1)*INDEX($N$61:$N$72,MONTH($A168),1)*IF($B168<=5,INDEX($O$76:$O$99,HOUR($A168)+1,1),INDEX($O$101:$O$124,HOUR($A168)+1,1)) -> 0 | L168: =K168*(1-$D$35)*$D$34 -> 0 | M168: =K168*$D$35 -> 0 | N168: =($D$36*7)/(5+($D$130/$C$130)+($E$130/$C$130))*IF($B$167<=5,INDEX($C$133:$E$156,HOUR($A168)+1,1),IF($B$167=6,INDEX($C$133:$E$156,HOUR($A168)+1,2),INDEX($C$133:$E$156,HOUR($A168)+1,3))) -> 0
A169: 2014-01-01T02:00:00 | B169: 3 | C169: 3 | D169: 0 | E169: 0 | F169: 1 | J169: =($C$36*7)/(5+($D$130/$C$130)+($E$130/$C$130))*IF($B$167<=5,INDEX($C$133:$E$156,HOUR($A169)+1,1),IF($B$167=6,INDEX($C$133:$E$156,HOUR($A169)+1,2),INDEX($C$133:$E$156,HOUR($A169)+1,3))) -> 0 | K169: 0 | L169: 0 | M169: 0 | N169: 0
A170: 2014-01-01T03:00:00 | B170: 3 | C170: 3 | D170: 0 | E170: 0 | F170: 1 | J170: 0 | K170: 0 | L170: 0 | M170: 0 | N170: 0
A171: 2014-01-01T04:00:00 | B171: 3 | C171: 3 | D171: 0 | E171: 0 | F171: 1 | J171: 0 | K171: 0 | L171: 0 | M171: 0 | N171: 0
A172: 2014-01-01T05:00:00 | B172: 3 | C172: 3 | D172: 0 | E172: 0 | F172: 1 | J172: 0 | K172: 0 | L172: 0 | M172: 0 | N172: 0
A173: 2014-01-01T06:00:00 | B173: 3 | C173: 3 | D173: 0 | E173: 0 | F173: 1 | J173: 0 | K173: 0 | L173: 0 | M173: 0 | N173: 0
A174: 2014-01-01T07:00:00 | B174: 3 | C174: 3 | D174: 0 | E174: 0 | F174: 1 | J174: 0 | K174: 0 | L174: 0 | M174: 0 | N174: 0
A175: 2014-01-01T08:00:00 | B175: 3 | C175: 3 | D175: 0 | E175: 0 | F175: 1 | J175: 0 | K175: 0 | L175: 0 | M175: 0 | N175: 0
A176: 2014-01-01T09:00:00 | B176: 3 | C176: 3 | D176: 0 | E176: 0 | F176: 1 | J176: 0 | K176: 0 | L176: 0 | M176: 0 | N176: 0
A177: 2014-01-01T10:00:00 | B177: 3 | C177: 3 | D177: 0 | E177: 0 | F177: 1 | J177: 0 | K177: 0 | L177: 0 | M177: 0 | N177: 0
A178: 2014-01-01T11:00:00 | B178: 3 | C178: 3 | D178: 0 | E178: 0 | F178: 1 | J178: 0 | K178: 0 | L178: 0 | M178: 0 | N178: 0
A179: 2014-01-01T12:00:00 | B179: 3 | C179: 3 | D179: 0 | E179: 0 | F179: 1 | J179: 0 | K179: 0 | L179: 0 | M179: 0 | N179: 0
A180: 2014-01-01T13:00:00 | B180: 3 | C180: 3 | D180: 0 | E180: 0 | F180: 1 | J180: 0 | K180: 0 | L180: 0 | M180: 0 | N180: 0
A181: 2014-01-01T14:00:00 | B181: 3 | C181: 3 | D181: 0 | E181: 0 | F181: 1 | J181: 0 | K181: 0 | L181: 0 | M181: 0 | N181: 0
A182: 2014-01-01T15:00:00 | B182: 3 | C182: 3 | D182: 0 | E182: 0 | F182: 1 | J182: 0 | K182: 0 | L182: 0 | M182: 0 | N182: 0
A183: 2014-01-01T16:00:00 | B183: 3 | C183: 3 | D183: 0 | E183: 0 | F183: 1 | J183: 0 | K183: 0 | L183: 0 | M183: 0 | N183: 0
A184: 2014-01-01T17:00:00 | B184: 3 | C184: 3 | D184: 0 | E184: 0 | F184: 1 | J184: 0 | K184: 0 | L184: 0 | M184: 0 | N184: 0
A185: 2014-01-01T18:00:00 | B185: 3 | C185: 3 | D185: 0 | E185: 0 | F185: 1 | J185: 0 | K185: 0 | L185: 0 | M185: 0 | N185: 0
A186: 2014-01-01T19:00:00 | B186: 3 | C186: 3 | D186: 0 | E186: 0 | F186: 1 | J186: 0 | K186: 0 | L186: 0 | M186: 0 | N186: 0
A187: 2014-01-01T20:00:00 | B187: 3 | C187: 3 | D187: 0 | E187: 0 | F187: 1 | J187: 0 | K187: 0 | L187: 0 | M187: 0 | N187: 0
A188: 2014-01-01T21:00:00 | B188: 3 | C188: 3 | D188: 0 | E188: 0 | F188: 1 | J188: 0 | K188: 0 | L188: 0 | M188: 0 | N188: 0
A189: 2014-01-01T22:00:00 | B189: 3 | C189: 3 | D189: 0 | E189: 0 | F189: 1 | J189: 0 | K189: 0 | L189: 0 | M189: 0 | N189: 0
A190: 2014-01-01T23:00:00 | B190: 3 | C190: 3 | D190: 0 | E190: 0 | F190: 1 | J190: 0 | K190: 0 | L190: 0 | M190: 0 | N190: 0
A191: 2014-01-02 | B191: 4 | C191: 3 | D191: 0 | E191: 0 | F191: 1 | J191: 0 | K191: 0 | L191: 0 | M191: 0 | N191: 0
A192: 2014-01-02T01:00:00 | B192: 4 | C192: 3 | D192: 0 | E192: 0 | F192: 1 | J192: 0 | K192: 0 | L192: 0 | M192: 0 | N192: 0
A193: 2014-01-02T02:00:00 | B193: 4 | C193: 3 | D193: 0 | E193: 0 | F193: 1 | J193: 0 | K193: 0 | L193: 0 | M193: 0 | N193: 0
A194: 2014-01-02T03:00:00 | B194: 4 | C194: 3 | D194: 0 | E194: 0 | F194: 1 | J194: 0 | K194: 0 | L194: 0 | M194: 0 | N194: 0
A195: 2014-01-02T04:00:00 | B195: 4 | C195: 3 | D195: 0 | E195: 0 | F195: 1 | J195: 0 | K195: 0 | L195: 0 | M195: 0 | N195: 0
A196: 2014-01-02T05:00:00 | B196: 4 | C196: 3 | D196: 0 | E196: 0 | F196: 1 | J196: 0 | K196: 0 | L196: 0 | M196: 0 | N196: 0
A197: 2014-01-02T06:00:00 | B197: 4 | C197: 3 | D197: 0 | E197: 0 | F197: 1 | J197: 0 | K197: 0 | L197: 0 | M197: 0 | N197: 0
A198: 2014-01-02T07:00:00 | B198: 4 | C198: 3 | D198: 0 | E198: 0 | F198: 1 | J198: 0 | K198: 0 | L198: 0 | M198: 0 | N198: 0
A199: 2014-01-02T08:00:00 | B199: 4 | C199: 3 | D199: 0 | E199: 0 | F199: 1 | J199: 0 | K199: 0 | L199: 0 | M199: 0 | N199: 0
A200: 2014-01-02T09:00:00 | B200: 4 | C200: 3 | D200: 0 | E200: 0 | F200: 1 | J200: 0 | K200: 0 | L200: 0 | M200: 0 | N200: 0
A201: 2014-01-02T10:00:00 | B201: 4 | C201: 3 | D201: 0 | E201: 0 | F201: 1 | J201: 0 | K201: 0 | L201: 0 | M201: 0 | N201: 0
A202: 2014-01-02T11:00:00 | B202: 4 | C202: 3 | D202: 0 | E202: 0 | F202: 1 | J202: 0 | K202: 0 | L202: 0 | M202: 0 | N202: 0
A203: 2014-01-02T12:00:00 | B203: 4 | C203: 3 | D203: 0 | E203: 0 | F203: 1 | J203: 0 | K203: 0 | L203: 0 | M203: 0 | N203: 0
A204: 2014-01-02T13:00:00 | B204: 4 | C204: 3 | D204: 0 | E204: 0 | F204: 1 | J204: 0 | K204: 0 | L204: 0 | M204: 0 | N204: 0
A205: 2014-01-02T14:00:00 | B205: 4 | C205: 3 | D205: 0 | E205: 0 | F205: 1 | J205: 0 | K205: 0 | L205: 0 | M205: 0 | N205: 0
A206: 2014-01-02T15:00:00 | B206: 4 | C206: 3 | D206: 0 | E206: 0 | F206: 1 | J206: 0 | K206: 0 | L206: 0 | M206: 0 | N206: 0
A207: 2014-01-02T16:00:00 | B207: 4 | C207: 3 | D207: 0 | E207: 0 | F207: 1 | J207: 0 | K207: 0 | L207: 0 | M207: 0 | N207: 0
A208: 2014-01-02T17:00:00 | B208: 4 | C208: 3 | D208: 0 | E208: 0 | F208: 1 | J208: 0 | K208: 0 | L208: 0 | M208: 0 | N208: 0
A209: 2014-01-02T18:00:00 | B209: 4 | C209: 3 | D209: 0 | E209: 0 | F209: 1 | J209: 0 | K209: 0 | L209: 0 | M209: 0 | N209: 0
A210: 2014-01-02T19:00:00 | B210: 4 | C210: 3 | D210: 0 | E210: 0 | F210: 1 | J210: 0 | K210: 0 | L210: 0 | M210: 0 | N210: 0
A211: 2014-01-02T20:00:00 | B211: 4 | C211: 3 | D211: 0 | E211: 0 | F211: 1 | J211: 0 | K211: 0 | L211: 0 | M211: 0 | N211: 0
A212: 2014-01-02T21:00:00 | B212: 4 | C212: 3 | D212: 0 | E212: 0 | F212: 1 | J212: 0 | K212: 0 | L212: 0 | M212: 0 | N212: 0
A213: 2014-01-02T22:00:00 | B213: 4 | C213: 3 | D213: 0 | E213: 0 | F213: 1 | J213: 0 | K213: 0 | L213: 0 | M213: 0 | N213: 0
A214: 2014-01-02T23:00:00 | B214: 4 | C214: 3 | D214: 0 | E214: 0 | F214: 1 | J214: 0 | K214: 0 | L214: 0 | M214: 0 | N214: 0
A215: 2014-01-03 | B215: 5 | C215: 3 | D215: 0 | E215: 0 | F215: 1 | J215: 0 | K215: 0 | L215: 0 | M215: 0 | N215: 0
A216: 2014-01-03T01:00:00 | B216: 5 | C216: 3 | D216: 0 | E216: 0 | F216: 1 | J216: 0 | K216: 0 | L216: 0 | M216: 0 | N216: 0
A217: 2014-01-03T02:00:00 | B217: 5 | C217: 3 | D217: 0 | E217: 0 | F217: 1 | J217: 0 | K217: 0 | L217: 0 | M217: 0 | N217: 0
A218: 2014-01-03T03:00:00 | B218: 5 | C218: 3 | D218: 0 | E218: 0 | F218: 1 | J218: 0 | K218: 0 | L218: 0 | M218: 0 | N218: 0
A219: 2014-01-03T04:00:00 | B219: 5 | C219: 3 | D219: 0 | E219: 0 | F219: 1 | J219: 0 | K219: 0 | L219: 0 | M219: 0 | N219: 0
... 4281 more rows

Sheet Alternatives_MasterList
A1: Alternatives Master List | C1: This sheet is used to manage the alternatives
A7: Alternatives
A8: Alternative # | B8: Short Name | C8: Description | D8: Notes
A9: Alternative 0 | B9: Base Case | C9: Add text

Sheet BaseCase
A1: =AlternativeNumber_0&" - "&IF(OR(AlternativeShortName_0="",AlternativeShortName_0=Alternatives_DefaultAlternativeShortName),DefinedAlternative_Prompt_AlternativeShortName,AlternativeShortName_0) -> Alternative 0 - Base Case
A3: Description: | B3: =IF(OR(AlternativeDescription_0="",AlternativeDescription_0=Alternatives_DefaultAlternativeDescription),DefinedAlternative_Prompt_AlternativeDescription,AlternativeDescription_0) -> Add text
A4: A summary of the net present value for this alternative is shown to the right in Column "J"
A5: Planning & construction period | B5: Begin planning & construction | D5: First year of planning & construction
A6: Operating period | B6: Opening year | D6: Travel time/delay and demand forecasts for the opening year must be provided. | J6: Net Present Value Summary
B7: Interim year 1 | D7: Travel time/delay and demand forecasts for up to three years between the opening year and the end year may be provided. | H7: =IF(OR(AND(C7="",OR(ISNUMBER(C8),ISNUMBER(C9))),AND(C8="",ISNUMBER(C9))),"Please enter interim years in increasing order beginning with Interim year 1","") -> 
B8: Interim year 2 | J8: Planning & Construction Costs | K8: =B127 -> 0
B9: Interim year 3 | J9: Operating & Maintenance Costs | K9: =L146 -> 0
B10: End year | D10: Travel time/delay and demand forecasts for the end (horizon) year must be provided. | J10: Auto Passenger Time | K10: =IF(ISNUMBER(K162),IF(K162>0,K162,"--"),"--") -> -- | L10: =IF(AND(ISNUMBER(K10),ISNUMBER(K11),ISNUMBER(K12),ISNUMBER(K13),ISNUMBER(K14),ISNUMBER(K15),ISNUMBER(K16),ISNUMBER(K17),ISNUMBER(K18),ISNUMBER(K19),ISNUMBER(K20)),"","Warning: A zero entry for a cost category indicates that the data needed to calculate that cost have either not been entered or have been entered incorrectly. If you believe this is an error please review your entries in this sheet.") -> Warning: A zero entry for a cost category indicates that the data needed to calculate that cost have either not been entered or have been entered incorrectly. If you believe this is an error please review your entries in this sheet.
A11: Worksheet setup | D11: Once you have entered begin planning & construction, opening, and end years, click this button to set up the worksheet. You may enter other inputs at any time. | J11: Auto Passenger Reliability | K11: =IF(ISNUMBER(K163),IF(K163>0,K163,"--"),"--") -> --
A12: Planning & construction costs | B12: Units | C12: Planning & construction year(s) | H12: Notes | J12: Truck Time | K12: --
C13: =IF(ISBLANK($C$5),"",$C$5) ->  | D13: =IF(ISNUMBER(C13),C13+1,"") ->  | E13: =IF(ISNUMBER(D13),D13+1,"") ->  | F13: =IF(ISNUMBER(E13),E13+1,"") ->  | G13: =IF(ISNUMBER(F13),F13+1,"") ->  | J13: Truck Reliability | K13: --
A14: Planning, design | B14: Dollars | C14: 0 | J14: Transit Passenger Time | K14: --
A15: Survey | B15: Dollars | C15: 0 | J15: Transit Passenger Reliability | K15: --
A16: Right of way | B16: Dollars | C16: 0 | J16: Bicyclist Time | K16: --
A17: Equipment, signs | B17: Dollars | C17: 0 | J17: Pedestrian Time | K17: --
A18: Utilities | B18: Dollars | C18: 0 | J18: Safety | K18: --
A19: Construction | B19: Dollars | C19: 0 | J19: Greenhouse Gases | K19: --
A20: Landscaping | B20: Dollars | J20: Criteria Pollutants | K20: --
A21: =DefinedAlternative_OtherPlanningConstructionCosts_Prompt -> (Other planning & construction costs) | B21: Dollars | J21: Total Net Present Value | K21: =SUM(K8:K20) -> 0
A22: (Other planning & construction costs) | B22: Dollars
A23: (Other planning & construction costs) | B23: Dollars
A24: (Other planning & construction costs) | B24: Dollars | J24: =IF(NOT(ISNUMBER(K21)),"If the total NPV seems wrong some entries may be missing, inconsistent, or wrong","") -> 
A25: (Other planning & construction costs) | B25: Dollars
A26: (Other planning & construction costs) | B26: Dollars
A27: (Other planning & construction costs) | B27: Dollars
A28: (Other planning & construction costs) | B28: Dollars
A29: (Other planning & construction costs) | B29: Dollars
A30: (Other planning & construction costs) | B30: Dollars
A32: Operating & maintenance costs | B32: Units | C32: Begin year | D32: Period (years) | E32: Cost | F32: Notes
A33: Power | B33: Dollars | I33: Calculations can be reviewed within table beginning in cell K133.
A34: Inspection | B34: Dollars
A35: Repaving | B35: Dollars
A36: Signing, striping | B36: Dollars
A37: =DefinedAlternative_OtherOMCosts_Prompt -> (Other O&M costs) | B37: Dollars
A38: (Other O&M costs) | B38: Dollars
A39: (Other O&M costs) | B39: Dollars
A40: (Other O&M costs) | B40: Dollars
A41: (Other O&M costs) | B41: Dollars
A42: (Other O&M costs) | B42: Dollars
A43: (Other O&M costs) | B43: Dollars
A44: (Other O&M costs) | B44: Dollars
A45: (Other O&M costs) | B45: Dollars
A46: (Other O&M costs) | B46: Dollars
A48: Demand & travel time / delay | B48: Average travel time / delay | D48: Opening year | E48: Interim year(s) | H48: End year | I48: Notes
B49: Time Period | C49: Units | D49: =$C$6 -> 0 | E49: =IF($C$7="","",$C$7) ->  | F49: =IF($C$8="","",$C$8) ->  | G49: =IF($C$9="","",$C$9) ->  | H49: =$C$10 -> 0
A50: Average vehicle travel time or delay | B50: AM peak | C50: seconds/veh | K50: =IF(OR(COUNT(D50:D52)=0,COUNT(H50:H52)=0,AND(E49<>"",COUNT(E50:E52)=0),AND(F49<>"",COUNT(F50:F52)=0),AND(G49<>"",COUNT(G50:G52)=0)),"NOTE: At least one travel time/delay value must be entered for each year specified",IF(COUNT(D50:H52)<>COUNT(D84:H86),"Number of travel time/delay entries is different from the number of peak/offpeak hourly volumes entered in the DemandParameters sheet. Please correct the discrepancy and re-run Setup for this sheet.","")) -> NOTE: At least one travel time/delay value must be entered for each year specified
B51: PM peak | C51: seconds/veh
B52: Weekend peak | C52: seconds/veh
A53: Standard deviation of vehicle travel time or delay | B53: AM peak | C53: seconds/veh | K53: =IF(AND(COUNT(D53:H55)>0,OR(AND(D50<>"",D53=""),AND(D51<>"",D54=""),AND(E49<>"",OR(AND(E50<>"",E53=""),AND(E51<>"",E54=""))),AND(F49<>"",OR(AND(F50<>"",F53=""),AND(F51<>"",F54=""))),AND(G49<>"",OR(AND(G50<>"",G53=""),AND(G51<>"",G54=""))),AND(H50<>"",H53=""),AND(H51<>"",H54=""))),"NOTE: If reliability )standard deviations) are entered, there must be a corresponding standard deviation entry for each peak period travel time/delay entry","") -> 
B54: PM peak | C54: seconds/veh
B55: Weekend peak | C55: seconds/veh
A56: Average bicycle travel time or delay | B56: All time periods | C56: seconds/bike
A57: Average pedestrian travel time or delay | B57: All time periods | C57: seconds/ped
A59: Safety | B59: Crash type | C59: Units
A60: =IF(IsChecked_CrashCategories_KABCO,CrashCategoryLabel_KABCO,IF(IsChecked_CrashCategories_FatalityInjuryPDO,CrashCategoryLabel_FatalInjuryPDO,IF(IsChecked_CrashCategories_TotalCrashes,CrashCategoryLabel_TotalCrashes,CrashCategoryLabel_UserDefined))) -> KABCO | B60: =IF(IsChecked_CrashCategories_KABCO,INDEX(CostParameters!$C$9:$C$13,CELL("row",J60)-CELL("row",$J$59)),IF(IsChecked_CrashCategories_FatalityInjuryPDO,IF(ISERROR(INDEX(CostParameters!$C$14:$C$16,CELL("row",J60)-CELL("row",$J$59))),"",INDEX(CostParameters!$C$14:$C$16,CELL("row",J60)-CELL("row",$J$59))),IF(IsChecked_CrashCategories_TotalCrashes,IF(ISERROR(INDEX(CostParameters!$C$17,CELL("row",J60)-CELL("row",$J$59))),"",INDEX(CostParameters!$C$17,CELL("row",J60)-CELL("row",$J$59))),IF(IsChecked_CrashCategories_UserDefined,IF(INDEX(CostParameters!$C$18:$C$22,CELL("row",J60)-CELL("row",$J$59))="","",INDEX(CostParameters!$C$18:$C$22,CELL("row",J60)-CELL("row",$J$59))),"Error!")))) -> K - Fatality crashes | C60: crashes/year
B61: =IF(IsChecked_CrashCategories_KABCO,INDEX(CostParameters!$C$9:$C$13,CELL("row",J61)-CELL("row",$J$59)),IF(IsChecked_CrashCategories_FatalityInjuryPDO,IF(ISERROR(INDEX(CostParameters!$C$14:$C$16,CELL("row",J61)-CELL("row",$J$59))),"",INDEX(CostParameters!$C$14:$C$16,CELL("row",J61)-CELL("row",$J$59))),IF(IsChecked_CrashCategories_TotalCrashes,IF(ISERROR(INDEX(CostParameters!$C$17,CELL("row",J61)-CELL("row",$J$59))),"",INDEX(CostParameters!$C$17,CELL("row",J61)-CELL("row",$J$59))),IF(IsChecked_CrashCategories_UserDefined,IF(INDEX(CostParameters!$C$18:$C$22,CELL("row",J61)-CELL("row",$J$59))="","",INDEX(CostParameters!$C$18:$C$22,CELL("row",J61)-CELL("row",$J$59))),"Error!")))) -> A - Severe injury crashes | C61: =IF(LEN(TRIM(B61))>0,"crashes/year","") -> crashes/year
B62: =IF(IsChecked_CrashCategories_KABCO,INDEX(CostParameters!$C$9:$C$13,CELL("row",J62)-CELL("row",$J$59)),IF(IsChecked_CrashCategories_FatalityInjuryPDO,IF(ISERROR(INDEX(CostParameters!$C$14:$C$16,CELL("row",J62)-CELL("row",$J$59))),"",INDEX(CostParameters!$C$14:$C$16,CELL("row",J62)-CELL("row",$J$59))),IF(IsChecked_CrashCategories_TotalCrashes,IF(ISERROR(INDEX(CostParameters!$C$17,CELL("row",J62)-CELL("row",$J$59))),"",INDEX(CostParameters!$C$17,CELL("row",J62)-CELL("row",$J$59))),IF(IsChecked_CrashCategories_UserDefined,IF(INDEX(CostParameters!$C$18:$C$22,CELL("row",J62)-CELL("row",$J$59))="","",INDEX(CostParameters!$C$18:$C$22,CELL("row",J62)-CELL("row",$J$59))),"Error!")))) -> B - Moderate injury crashes | C62: =IF(LEN(TRIM(B62))>0,"crashes/year","") -> crashes/year
B63: =IF(IsChecked_CrashCategories_KABCO,INDEX(CostParameters!$C$9:$C$13,CELL("row",J63)-CELL("row",$J$59)),IF(IsChecked_CrashCategories_FatalityInjuryPDO,IF(ISERROR(INDEX(CostParameters!$C$14:$C$16,CELL("row",J63)-CELL("row",$J$59))),"",INDEX(CostParameters!$C$14:$C$16,CELL("row",J63)-CELL("row",$J$59))),IF(IsChecked_CrashCategories_TotalCrashes,IF(ISERROR(INDEX(CostParameters!$C$17,CELL("row",J63)-CELL("row",$J$59))),"",INDEX(CostParameters!$C$17,CELL("row",J63)-CELL("row",$J$59))),IF(IsChecked_CrashCategories_UserDefined,IF(INDEX(CostParameters!$C$18:$C$22,CELL("row",J63)-CELL("row",$J$59))="","",INDEX(CostParameters!$C$18:$C$22,CELL("row",J63)-CELL("row",$J$59))),"Error!")))) -> C - Minor injury crashes | C63: =IF(LEN(TRIM(B63))>0,"crashes/year","") -> crashes/year
B64: =IF(IsChecked_CrashCategories_KABCO,INDEX(CostParameters!$C$9:$C$13,CELL("row",J64)-CELL("row",$J$59)),IF(IsChecked_CrashCategories_FatalityInjuryPDO,IF(ISERROR(INDEX(CostParameters!$C$14:$C$16,CELL("row",J64)-CELL("row",$J$59))),"",INDEX(CostParameters!$C$14:$C$16,CELL("row",J64)-CELL("row",$J$59))),IF(IsChecked_CrashCategories_TotalCrashes,IF(ISERROR(INDEX(CostParameters!$C$17,CELL("row",J64)-CELL("row",$J$59))),"",INDEX(CostParameters!$C$17,CELL("row",J64)-CELL("row",$J$59))),IF(IsChecked_CrashCategories_UserDefined,IF(INDEX(CostParameters!$C$18:$C$22,CELL("row",J64)-CELL("row",$J$59))="","",INDEX(CostParameters!$C$18:$C$22,CELL("row",J64)-CELL("row",$J$59))),"Error!")))) -> O - No injury crashes | C64: =IF(LEN(TRIM(B64))>0,"crashes/year","") -> crashes/year
A66: Emissions | B66: Type | C66: Units
A67: ="Greenhouse gases -- "&IF(IsChecked_GHG_Values_FederalMethod,"Federal method (Exec. Order 12866)","user defined costs") -> Greenhouse gases -- Federal method (Exec. Order 12866) | B67: CO2 equivalent | C67: =IF(LEN(TRIM(B67))>0,"metric tons/year","") -> metric tons/year
A68: ="Criteria pollutants -- " & IF(IsChecked_CriteriaPollutantCategories_ByType,"by type","user defined categories") -> Criteria pollutants -- by type | B68: =IF(IsChecked_CriteriaPollutantCategories_ByType,CostParameters!C25,IF(CostParameters!C29="","",CostParameters!C29)) -> CO | C68: metric tons/year
B69: =IF(IsChecked_CriteriaPollutantCategories_ByType,CostParameters!C26,IF(CostParameters!C30="","",CostParameters!C30)) -> NOx | C69: metric tons/year
B70: =IF(IsChecked_CriteriaPollutantCategories_ByType,CostParameters!C27,IF(CostParameters!C31="","",CostParameters!C31)) -> HC | C70: metric tons/year
B71: =IF(IsChecked_CriteriaPollutantCategories_ByType,CostParameters!C28,IF(CostParameters!C32="","",CostParameters!C32)) -> PM 2.5 | C71: metric tons/year
A74: Calculations
A77: This section contains the formulas that carry out the detailed cost calculations. Modifications to this section will affect the program code.
A80: Delay model
D81: logs of vehicle volumes and travel times/delays
A82: Travel time/delay | B82: Average travel time/delay | D82: Opening Year | E82: Interim Year(s) | H82: End year
B83: Time period | C83: Units | D83: =$C$6 -> 0 | E83: =IF($C$7="","",$C$7) ->  | F83: =IF($C$8="","",$C$8) ->  | G83: =IF($C$9="","",$C$9) ->  | H83: =$C$10 -> 0
A84: Log total entering vehicles | B84: AM peak hour | C84: log(vehicles/hr) | D84: 6.907755279
B85: PM peak hour | C85: log(vehicles/hr) | D85: 6.907755279
B86: Average offpeak hourly | C86: log(vehicles/hr)
A87: Log average vehicle travel time / delay | B87: =B84 -> AM peak hour | C87: log(seconds/veh) | D87: =IF(D50="","",IF(ISNUMBER(D50),IF(D50>0,LN(D50),""),"")) ->  | E87: =IF(E50="","",IF(ISNUMBER(E50),IF(E50>0,LN(E50),""),"")) -> 
B88: =B85 -> PM peak hour | C88: log(seconds/veh) | D88: =IF(D51="","",IF(ISNUMBER(D51),IF(D51>0,LN(D51),""),"")) -> 
B89: Average offpeak hourly | C89: log(seconds/veh) | D89: =IF(D52="","",IF(ISNUMBER(D52),IF(D52>0,LN(D52),""),"")) -> 
A91: Travel time / delay mode; | G91: predicted delay
A92: X'X | C92: (X'X)^-1 | E92: Delay model coeff | G92: =$C$6 -> 0 | H92: =IF($C$7="","",$C$7) ->  | I92: =IF($C$8="","",$C$8) ->  | J92: =IF($C$9="","",$C$9) ->  | K92: =$C$10 -> 0
A93: =COUNT(D84:H86) -> 2 | B93: =A94 -> 13.81551056 | C93: =MINVERSE(A93:B94) ->  | E93: const | F93: =MMULT(C93:D94,B95:B96) ->  | G93: =IF(D84="","",EXP($F$93+$F$94*D84)) -> 
A94: =SUM(D84:H86) -> 13.81551056 | B94: =SUMSQ(D84:H86) -> 95.43416599 | E94: exp
A95: X'y | B95: =SUM(D87:H89) -> 0 | C95: std err estimate | D95: =IF(COUNT(D84:H86)<2,"NA",SQRT(SUMXMY2(G93:K95,D50:H52)/(COUNT(D84:H86)-2))) ->  | E95: seconds
B96: =SUMPRODUCT(D84:H86,D87:H89) -> 0
B99: Base year | C99: Planning and construction years
C100: Year 1 | D100: Year 2 | E100: Year 3 | F100: Year 4 | G100: Year 5
B101: =IF(BaseYear="",DefaultYearPrompt,BaseYear) -> 0 | C101: =IF(ISNUMBER($C$5),$C$5,"") ->  | D101: =IF(ISNUMBER(C101),C101+1,"") ->  | E101: =IF(ISNUMBER(D101),D101+1,"") ->  | F101: =IF(ISNUMBER(E101),E101+1,"") ->  | G101: =IF(ISNUMBER(F101),F101+1,"") -> 
A104: Discount factor | B104: =1/((1+Discount_Rate)^(B$101-BaseYear)) -> 1 | C104: =IF(ISNUMBER(C101),1/((1+Discount_Rate)^(C$101-BaseYear)),0) -> 0 | D104: =IF(ISNUMBER(D101),1/((1+Discount_Rate)^(D$101-BaseYear)),0) -> 0 | E104: =IF(ISNUMBER(E101),1/((1+Discount_Rate)^(E$101-BaseYear)),0) -> 0 | F104: =IF(ISNUMBER(F101),1/((1+Discount_Rate)^(F$101-BaseYear)),0) -> 0 | G104: =IF(ISNUMBER(G101),1/((1+Discount_Rate)^(G$101-BaseYear)),0) -> 0
A106: Planning & Construction Costs
A109: =A14 -> Planning, design | C109: =C14 -> 0 | D109: 0 | E109: 0 | F109: 0 | G109: 0
A110: Survey | C110: 0 | D110: 0 | E110: 0 | F110: 0 | G110: 0
A111: Right of way | C111: 0 | D111: 0 | E111: 0 | F111: 0 | G111: 0
A112: Equipment, signs | C112: 0 | D112: 0 | E112: 0 | F112: 0 | G112: 0
A113: Utilities | C113: 0 | D113: 0 | E113: 0 | F113: 0 | G113: 0
A114: Construction | C114: 0 | D114: 0 | E114: 0 | F114: 0 | G114: 0
A115: Landscaping | C115: 0 | D115: 0 | E115: 0 | F115: 0 | G115: 0
A116: (Other planning & construction costs) | C116: 0 | D116: 0 | E116: 0 | F116: 0 | G116: 0
A117: (Other planning & construction costs) | C117: 0 | D117: 0 | E117: 0 | F117: 0 | G117: 0
A118: (Other planning & construction costs) | C118: 0 | D118: 0 | E118: 0 | F118: 0 | G118: 0
A119: (Other planning & construction costs) | C119: =C24 -> 0 | D119: 0 | E119: 0 | F119: 0 | G119: 0
A120: (Other planning & construction costs) | C120: 0 | D120: 0 | E120: 0 | F120: 0 | G120: 0
A121: (Other planning & construction costs) | C121: 0 | D121: 0 | E121: 0 | F121: 0 | G121: 0
A122: (Other planning & construction costs) | C122: 0 | D122: 0 | E122: 0 | F122: 0 | G122: 0
A123: (Other planning & construction costs) | C123: 0 | D123: 0 | E123: 0 | F123: 0 | G123: 0
A124: (Other planning & construction costs) | C124: 0 | D124: 0 | E124: 0 | F124: 0 | G124: 0
A125: (Other planning & construction costs) | C125: 0 | D125: 0 | E125: 0 | F125: 0 | G125: 0
A126: Sum - planning & construction | C126: =SUM(C109:C125) -> 0 | D126: =SUM(D109:D125) -> 0 | E126: =SUM(E109:E125) -> 0 | F126: =SUM(F109:F125) -> 0 | G126: =SUM(G109:G125) -> 0
A127: NPV - planning & construction | B127: =SUMPRODUCT($C$104:$G$104,C126:G126) -> 0
K128: Year ---> | L128: =$C$6 -> 0 | M128: =IF(AND(L128+1<=$C$10,L128+1>$C$6),L128+1,0) -> 0 | N128: =IF(AND(M128+1<=$C$10,M128+1>$C$6),M128+1,0) -> 0 | O128: 0 | P128: 0 | Q128: 0 | R128: 0 | S128: 0 | T128: 0 | U128: 0 | V128: 0 | W128: 0 | X128: 0 | Y128: 0 | Z128: 0 | AA128: 0 | AB128: 0 | AC128: 0 | AD128: 0 | AE128: 0 | AF128: 0 | AG128: 0 | AH128: 0 | AI128: 0 | AJ128: 0 | AK128: 0 | AL128: 0 | AM128: 0 | AN128: 0 | AO128: 0 | AP128: 0 | AQ128: 0 | AR128: 0 | AS128: 0 | AT128: 0 | AU128: 0 | AV128: 0 | AW128: 0 | AX128: 0 | AY128: 0 | AZ128: 0 | BA128: 0 | BB128: 0 | BC128: 0 | BD128: 0 | BE128: 0 | BF128: 0 | BG128: 0 | BH128: 0 | BI128: 0 | BJ128: 0 | BK128: 0 | BL128: 0 | BM128: 0 | BN128: 0 | BO128: 0 | BP128: 0 | BQ128: 0 | BR128: 0 | BS128: 0 | BT128: 0 | BU128: 0 | BV128: 0 | BW128: 0 | BX128: 0 | BY128: 0 | BZ128: =IF(AND(BY128+1<=$C$10,BY128+1>$C$6),BY128+1,0) -> 0 | CA128: 0 | CB128: 0 | CC128: 0 | CD128: 0 | CE128: 0 | CF128: 0 | CG128: 0 | CH128: 0 | CI128: 0 | CJ128: 0 | CK128: 0 | CL128: 0 | CM128: 0 | CN128: 0 | CO128: 0 | CP128: 0 | CQ128: 0 | CR128: 0 | CS128: 0 | CT128: 0 | CU128: 0 | CV128: 0 | CW128: 0 | CX128: 0 | CY128: 0 | CZ128: 0 | DA128: 0 | DB128: 0 | DC128: 0 | DD128: 0 | DE128: 0 | DF128: 0 | DG128: 0
K129: Discount factor ---> | L129: =IF(L$128>0,(1+Discount_Rate)^(-(L$128-BaseYear)),0) -> 0 | M129: 0 | N129: 0 | O129: 0 | P129: 0 | Q129: 0 | R129: 0 | S129: 0 | T129: 0 | U129: 0 | V129: 0 | W129: 0 | X129: 0 | Y129: 0 | Z129: 0 | AA129: 0 | AB129: 0 | AC129: 0 | AD129: 0 | AE129: 0 | AF129: 0 | AG129: 0 | AH129: 0 | AI129: 0 | AJ129: 0 | AK129: 0 | AL129: 0 | AM129: 0 | AN129: 0 | AO129: 0 | AP129: 0 | AQ129: 0 | AR129: =IF(AR$128>0,(1+Discount_Rate)^(-(AR$128-BaseYear)),0) -> 0 | AS129: 0 | AT129: 0 | AU129: 0 | AV129: 0 | AW129: 0 | AX129: 0 | AY129: 0 | AZ129: 0 | BA129: 0 | BB129: 0 | BC129: 0 | BD129: 0 | BE129: 0 | BF129: 0 | BG129: 0 | BH129: 0 | BI129: 0 | BJ129: 0 | BK129: 0 | BL129: 0 | BM129: 0 | BN129: 0 | BO129: 0 | BP129: 0 | BQ129: 0 | BR129: 0 | BS129: 0 | BT129: 0 | BU129: 0 | BV129: 0 | BW129: 0 | BX129: =IF(BX$128>0,(1+Discount_Rate)^(-(BX$128-BaseYear)),0) -> 0 | BY129: 0 | BZ129: 0 | CA129: 0 | CB129: 0 | CC129: 0 | CD129: 0 | CE129: 0 | CF129: 0 | CG129: 0 | CH129: 0 | CI129: 0 | CJ129: 0 | CK129: 0 | CL129: 0 | CM129: 0 | CN129: 0 | CO129: 0 | CP129: 0 | CQ129: 0 | CR129: 0 | CS129: 0 | CT129: 0 | CU129: 0 | CV129: 0 | CW129: 0 | CX129: 0 | CY129: 0 | CZ129: 0 | DA129: 0 | DB129: 0 | DC129: 0 | DD129: 0 | DE129: 0 | DF129: 0 | DG129: 0
A130: Post-Opening Costs | B130: Units | C130: Begin year | D130: Period (years) | E130: Cost | K130: Post-opening O&M
A131: Power | B131: Dollars | C131: =IF(C33="","",C33) ->  | K131: =A131 -> Power | L131: =IF(OR($C131="",$E131="",$C131<$C$6,L$128<$C131),0,IF(MOD(L$128-$C131,IF(OR($D131="",$D131=0),1000,$D131))=0,$E131,0)) -> 0 | M131: 0 | N131: 0 | O131: 0 | P131: 0 | Q131: 0 | R131: 0 | S131: 0 | T131: 0 | U131: 0 | V131: =IF(OR($C131="",$E131="",$C131<$C$6,V$128<$C131),0,IF(MOD(V$128-$C131,IF(OR($D131="",$D131=0),1000,$D131))=0,$E131,0)) -> 0 | W131: 0 | X131: 0 | Y131: 0 | Z131: 0 | AA131: 0 | AB131: 0 | AC131: 0 | AD131: 0 | AE131: 0 | AF131: =IF(OR($C131="",$E131="",$C131<$C$6,AF$128<$C131),0,IF(MOD(AF$128-$C131,IF(OR($D131="",$D131=0),1000,$D131))=0,$E131,0)) -> 0 | AG131: 0 | AH131: 0 | AI131: 0 | AJ131: 0 | AK131: 0 | AL131: 0 | AM131: 0 | AN131: 0 | AO131: 0 | AP131: =IF(OR($C131="",$E131="",$C131<$C$6,AP$128<$C131),0,IF(MOD(AP$128-$C131,IF(OR($D131="",$D131=0),1000,$D131))=0,$E131,0)) -> 0 | AQ131: 0 | AR131: 0 | AS131: 0 | AT131: 0 | AU131: 0 | AV131: 0 | AW131: 0 | AX131: 0 | AY131: 0 | AZ131: =IF(OR($C131="",$E131="",$C131<$C$6,AZ$128<$C131),0,IF(MOD(AZ$128-$C131,IF(OR($D131="",$D131=0),1000,$D131))=0,$E131,0)) -> 0 | BA131: 0 | BB131: 0 | BC131: 0 | BD131: 0 | BE131: 0 | BF131: 0 | BG131: 0 | BH131: 0 | BI131: 0 | BJ131: =IF(OR($C131="",$E131="",$C131<$C$6,BJ$128<$C131),0,IF(MOD(BJ$128-$C131,IF(OR($D131="",$D131=0),1000,$D131))=0,$E131,0)) -> 0 | BK131: 0 | BL131: 0 | BM131: 0 | BN131: 0 | BO131: 0 | BP131: 0 | BQ131: 0 | BR131: 0 | BS131: 0 | BT131: =IF(OR($C131="",$E131="",$C131<$C$6,BT$128<$C131),0,IF(MOD(BT$128-$C131,IF(OR($D131="",$D131=0),1000,$D131))=0,$E131,0)) -> 0 | BU131: 0 | BV131: 0 | BW131: 0 | BX131: 0 | BY131: 0 | BZ131: 0 | CA131: 0 | CB131: 0 | CC131: 0 | CD131: =IF(OR($C131="",$E131="",$C131<$C$6,CD$128<$C131),0,IF(MOD(CD$128-$C131,IF(OR($D131="",$D131=0),1000,$D131))=0,$E131,0)) -> 0 | CE131: 0 | CF131: 0 | CG131: 0 | CH131: 0 | CI131: 0 | CJ131: 0 | CK131: 0 | CL131: 0 | CM131: 0 | CN131: =IF(OR($C131="",$E131="",$C131<$C$6,CN$128<$C131),0,IF(MOD(CN$128-$C131,IF(OR($D131="",$D131=0),1000,$D131))=0,$E131,0)) -> 0 | CO131: 0 | CP131: 0 | CQ131: 0 | CR131: 0 | CS131: 0 | CT131: 0 | CU131: 0 | CV131: 0 | CW131: 0 | CX131: =IF(OR($C131="",$E131="",$C131<$C$6,CX$128<$C131),0,IF(MOD(CX$128-$C131,IF(OR($D131="",$D131=0),1000,$D131))=0,$E131,0)) -> 0 | CY131: 0 | CZ131: 0 | DA131: 0 | DB131: 0 | DC131: 0 | DD131: 0 | DE131: 0 | DF131: 0 | DG131: 0
A132: Inspection | B132: Dollars | K132: Inspection | L132: 0 | M132: 0 | N132: 0 | O132: 0 | P132: 0 | Q132: 0 | R132: 0 | S132: 0 | T132: 0 | U132: 0 | V132: 0 | W132: 0 | X132: 0 | Y132: 0 | Z132: 0 | AA132: 0 | AB132: 0 | AC132: 0 | AD132: 0 | AE132: 0 | AF132: 0 | AG132: 0 | AH132: 0 | AI132: 0 | AJ132: 0 | AK132: 0 | AL132: 0 | AM132: 0 | AN132: 0 | AO132: 0 | AP132: 0 | AQ132: 0 | AR132: 0 | AS132: 0 | AT132: 0 | AU132: 0 | AV132: 0 | AW132: 0 | AX132: 0 | AY132: 0 | AZ132: 0 | BA132: 0 | BB132: 0 | BC132: 0 | BD132: 0 | BE132: 0 | BF132: 0 | BG132: 0 | BH132: 0 | BI132: 0 | BJ132: 0 | BK132: 0 | BL132: 0 | BM132: 0 | BN132: 0 | BO132: 0 | BP132: 0 | BQ132: 0 | BR132: 0 | BS132: 0 | BT132: 0 | BU132: 0 | BV132: 0 | BW132: 0 | BX132: 0 | BY132: 0 | BZ132: 0 | CA132: 0 | CB132: 0 | CC132: 0 | CD132: 0 | CE132: 0 | CF132: 0 | CG132: 0 | CH132: 0 | CI132: 0 | CJ132: 0 | CK132: 0 | CL132: 0 | CM132: 0 | CN132: 0 | CO132: 0 | CP132: 0 | CQ132: 0 | CR132: 0 | CS132: 0 | CT132: 0 | CU132: 0 | CV132: 0 | CW132: 0 | CX132: 0 | CY132: 0 | CZ132: 0 | DA132: 0 | DB132: 0 | DC132: 0 | DD132: 0 | DE132: 0 | DF132: 0 | DG132: 0
A133: Repaving | B133: Dollars | K133: Repaving | L133: 0 | M133: 0 | N133: 0 | O133: 0 | P133: 0 | Q133: 0 | R133: 0 | S133: 0 | T133: 0 | U133: 0 | V133: 0 | W133: 0 | X133: 0 | Y133: 0 | Z133: 0 | AA133: 0 | AB133: 0 | AC133: 0 | AD133: 0 | AE133: 0 | AF133: 0 | AG133: 0 | AH133: 0 | AI133: 0 | AJ133: 0 | AK133: 0 | AL133: 0 | AM133: 0 | AN133: 0 | AO133: 0 | AP133: 0 | AQ133: 0 | AR133: 0 | AS133: 0 | AT133: 0 | AU133: 0 | AV133: 0 | AW133: 0 | AX133: 0 | AY133: 0 | AZ133: 0 | BA133: 0 | BB133: 0 | BC133: 0 | BD133: 0 | BE133: 0 | BF133: 0 | BG133: 0 | BH133: 0 | BI133: 0 | BJ133: 0 | BK133: 0 | BL133: 0 | BM133: 0 | BN133: 0 | BO133: 0 | BP133: 0 | BQ133: 0 | BR133: 0 | BS133: 0 | BT133: 0 | BU133: 0 | BV133: 0 | BW133: 0 | BX133: 0 | BY133: 0 | BZ133: 0 | CA133: 0 | CB133: 0 | CC133: 0 | CD133: 0 | CE133: 0 | CF133: 0 | CG133: 0 | CH133: 0 | CI133: 0 | CJ133: 0 | CK133: 0 | CL133: 0 | CM133: 0 | CN133: 0 | CO133: 0 | CP133: 0 | CQ133: 0 | CR133: 0 | CS133: 0 | CT133: 0 | CU133: 0 | CV133: 0 | CW133: 0 | CX133: 0 | CY133: 0 | CZ133: 0 | DA133: 0 | DB133: 0 | DC133: 0 | DD133: 0 | DE133: 0 | DF133: 0 | DG133: 0
A134: Signing, striping | B134: Dollars | K134: Signing, striping | L134: 0 | M134: 0 | N134: 0 | O134: 0 | P134: 0 | Q134: 0 | R134: 0 | S134: 0 | T134: 0 | U134: 0 | V134: 0 | W134: 0 | X134: 0 | Y134: 0 | Z134: 0 | AA134: 0 | AB134: 0 | AC134: 0 | AD134: 0 | AE134: 0 | AF134: 0 | AG134: 0 | AH134: 0 | AI134: 0 | AJ134: 0 | AK134: 0 | AL134: 0 | AM134: 0 | AN134: 0 | AO134: 0 | AP134: 0 | AQ134: 0 | AR134: 0 | AS134: 0 | AT134: 0 | AU134: 0 | AV134: 0 | AW134: 0 | AX134: 0 | AY134: 0 | AZ134: 0 | BA134: 0 | BB134: 0 | BC134: 0 | BD134: 0 | BE134: 0 | BF134: 0 | BG134: 0 | BH134: 0 | BI134: 0 | BJ134: 0 | BK134: 0 | BL134: 0 | BM134: 0 | BN134: 0 | BO134: 0 | BP134: 0 | BQ134: 0 | BR134: 0 | BS134: 0 | BT134: 0 | BU134: 0 | BV134: 0 | BW134: 0 | BX134: 0 | BY134: 0 | BZ134: 0 | CA134: 0 | CB134: 0 | CC134: 0 | CD134: 0 | CE134: 0 | CF134: 0 | CG134: 0 | CH134: 0 | CI134: 0 | CJ134: 0 | CK134: 0 | CL134: 0 | CM134: 0 | CN134: 0 | CO134: 0 | CP134: 0 | CQ134: 0 | CR134: 0 | CS134: 0 | CT134: 0 | CU134: 0 | CV134: 0 | CW134: 0 | CX134: 0 | CY134: 0 | CZ134: 0 | DA134: 0 | DB134: 0 | DC134: 0 | DD134: 0 | DE134: 0 | DF134: 0 | DG134: 0
A135: [Other O&M costs] | B135: Dollars | K135: [Other O&M costs] | L135: 0 | M135: 0 | N135: 0 | O135: 0 | P135: 0 | Q135: 0 | R135: 0 | S135: 0 | T135: 0 | U135: 0 | V135: 0 | W135: 0 | X135: 0 | Y135: 0 | Z135: 0 | AA135: 0 | AB135: 0 | AC135: 0 | AD135: 0 | AE135: 0 | AF135: 0 | AG135: 0 | AH135: 0 | AI135: 0 | AJ135: 0 | AK135: 0 | AL135: 0 | AM135: 0 | AN135: 0 | AO135: 0 | AP135: 0 | AQ135: 0 | AR135: 0 | AS135: 0 | AT135: 0 | AU135: 0 | AV135: 0 | AW135: 0 | AX135: 0 | AY135: 0 | AZ135: 0 | BA135: 0 | BB135: 0 | BC135: 0 | BD135: 0 | BE135: 0 | BF135: 0 | BG135: 0 | BH135: 0 | BI135: 0 | BJ135: 0 | BK135: 0 | BL135: 0 | BM135: 0 | BN135: 0 | BO135: 0 | BP135: 0 | BQ135: 0 | BR135: 0 | BS135: 0 | BT135: 0 | BU135: 0 | BV135: 0 | BW135: 0 | BX135: 0 | BY135: 0 | BZ135: 0 | CA135: 0 | CB135: 0 | CC135: 0 | CD135: 0 | CE135: 0 | CF135: 0 | CG135: 0 | CH135: 0 | CI135: 0 | CJ135: 0 | CK135: 0 | CL135: 0 | CM135: 0 | CN135: 0 | CO135: 0 | CP135: 0 | CQ135: 0 | CR135: 0 | CS135: 0 | CT135: 0 | CU135: 0 | CV135: 0 | CW135: 0 | CX135: 0 | CY135: 0 | CZ135: 0 | DA135: 0 | DB135: 0 | DC135: 0 | DD135: 0 | DE135: 0 | DF135: 0 | DG135: 0
A136: [Other O&M costs] | B136: Dollars | K136: [Other O&M costs] | L136: 0 | M136: 0 | N136: 0 | O136: 0 | P136: 0 | Q136: 0 | R136: 0 | S136: 0 | T136: 0 | U136: 0 | V136: 0 | W136: 0 | X136: 0 | Y136: 0 | Z136: 0 | AA136: 0 | AB136: 0 | AC136: 0 | AD136: 0 | AE136: 0 | AF136: 0 | AG136: 0 | AH136: 0 | AI136: 0 | AJ136: 0 | AK136: 0 | AL136: 0 | AM136: 0 | AN136: 0 | AO136: 0 | AP136: 0 | AQ136: 0 | AR136: 0 | AS136: 0 | AT136: 0 | AU136: 0 | AV136: 0 | AW136: 0 | AX136: 0 | AY136: 0 | AZ136: 0 | BA136: 0 | BB136: 0 | BC136: 0 | BD136: 0 | BE136: 0 | BF136: 0 | BG136: 0 | BH136: 0 | BI136: 0 | BJ136: 0 | BK136: 0 | BL136: 0 | BM136: 0 | BN136: 0 | BO136: 0 | BP136: 0 | BQ136: 0 | BR136: 0 | BS136: 0 | BT136: 0 | BU136: 0 | BV136: 0 | BW136: 0 | BX136: 0 | BY136: 0 | BZ136: 0 | CA136: 0 | CB136: 0 | CC136: 0 | CD136: 0 | CE136: 0 | CF136: 0 | CG136: 0 | CH136: 0 | CI136: 0 | CJ136: 0 | CK136: 0 | CL136: 0 | CM136: 0 | CN136: 0 | CO136: 0 | CP136: 0 | CQ136: 0 | CR136: 0 | CS136: 0 | CT136: 0 | CU136: 0 | CV136: 0 | CW136: 0 | CX136: 0 | CY136: 0 | CZ136: 0 | DA136: 0 | DB136: 0 | DC136: 0 | DD136: 0 | DE136: 0 | DF136: 0 | DG136: 0
A137: [Other O&M costs] | B137: Dollars | K137: [Other O&M costs] | L137: 0 | M137: 0 | N137: 0 | O137: 0 | P137: 0 | Q137: 0 | R137: 0 | S137: 0 | T137: 0 | U137: 0 | V137: 0 | W137: 0 | X137: 0 | Y137: 0 | Z137: 0 | AA137: 0 | AB137: 0 | AC137: 0 | AD137: 0 | AE137: 0 | AF137: 0 | AG137: 0 | AH137: 0 | AI137: 0 | AJ137: 0 | AK137: 0 | AL137: 0 | AM137: 0 | AN137: 0 | AO137: 0 | AP137: 0 | AQ137: 0 | AR137: 0 | AS137: 0 | AT137: 0 | AU137: 0 | AV137: 0 | AW137: 0 | AX137: 0 | AY137: 0 | AZ137: 0 | BA137: 0 | BB137: 0 | BC137: 0 | BD137: 0 | BE137: 0 | BF137: 0 | BG137: 0 | BH137: 0 | BI137: 0 | BJ137: 0 | BK137: 0 | BL137: 0 | BM137: 0 | BN137: 0 | BO137: 0 | BP137: 0 | BQ137: 0 | BR137: 0 | BS137: 0 | BT137: 0 | BU137: 0 | BV137: 0 | BW137: 0 | BX137: 0 | BY137: 0 | BZ137: 0 | CA137: 0 | CB137: 0 | CC137: 0 | CD137: 0 | CE137: 0 | CF137: 0 | CG137: 0 | CH137: 0 | CI137: 0 | CJ137: 0 | CK137: 0 | CL137: 0 | CM137: 0 | CN137: 0 | CO137: 0 | CP137: 0 | CQ137: 0 | CR137: 0 | CS137: 0 | CT137: 0 | CU137: 0 | CV137: 0 | CW137: 0 | CX137: 0 | CY137: 0 | CZ137: 0 | DA137: 0 | DB137: 0 | DC137: 0 | DD137: 0 | DE137: 0 | DF137: 0 | DG137: 0
A138: [Other O&M costs] | B138: Dollars | K138: [Other O&M costs] | L138: 0 | M138: 0 | N138: 0 | O138: 0 | P138: 0 | Q138: 0 | R138: 0 | S138: 0 | T138: 0 | U138: 0 | V138: 0 | W138: 0 | X138: 0 | Y138: 0 | Z138: 0 | AA138: 0 | AB138: 0 | AC138: 0 | AD138: 0 | AE138: 0 | AF138: 0 | AG138: 0 | AH138: 0 | AI138: 0 | AJ138: 0 | AK138: 0 | AL138: 0 | AM138: 0 | AN138: 0 | AO138: 0 | AP138: 0 | AQ138: 0 | AR138: 0 | AS138: 0 | AT138: 0 | AU138: 0 | AV138: 0 | AW138: 0 | AX138: 0 | AY138: 0 | AZ138: 0 | BA138: 0 | BB138: 0 | BC138: 0 | BD138: 0 | BE138: 0 | BF138: 0 | BG138: 0 | BH138: 0 | BI138: 0 | BJ138: 0 | BK138: 0 | BL138: 0 | BM138: 0 | BN138: 0 | BO138: 0 | BP138: 0 | BQ138: 0 | BR138: 0 | BS138: 0 | BT138: 0 | BU138: 0 | BV138: 0 | BW138: 0 | BX138: 0 | BY138: 0 | BZ138: 0 | CA138: 0 | CB138: 0 | CC138: 0 | CD138: 0 | CE138: 0 | CF138: 0 | CG138: 0 | CH138: 0 | CI138: 0 | CJ138: 0 | CK138: 0 | CL138: 0 | CM138: 0 | CN138: 0 | CO138: 0 | CP138: 0 | CQ138: 0 | CR138: 0 | CS138: 0 | CT138: 0 | CU138: 0 | CV138: 0 | CW138: 0 | CX138: 0 | CY138: 0 | CZ138: 0 | DA138: 0 | DB138: 0 | DC138: 0 | DD138: 0 | DE138: 0 | DF138: 0 | DG138: 0
A139: [Other O&M costs] | B139: Dollars | K139: [Other O&M costs] | L139: 0 | M139: 0 | N139: 0 | O139: 0 | P139: 0 | Q139: 0 | R139: 0 | S139: 0 | T139: 0 | U139: 0 | V139: 0 | W139: 0 | X139: 0 | Y139: 0 | Z139: 0 | AA139: 0 | AB139: 0 | AC139: 0 | AD139: 0 | AE139: 0 | AF139: 0 | AG139: 0 | AH139: 0 | AI139: 0 | AJ139: 0 | AK139: 0 | AL139: 0 | AM139: 0 | AN139: 0 | AO139: 0 | AP139: 0 | AQ139: 0 | AR139: 0 | AS139: 0 | AT139: 0 | AU139: 0 | AV139: 0 | AW139: 0 | AX139: 0 | AY139: 0 | AZ139: 0 | BA139: 0 | BB139: 0 | BC139: 0 | BD139: 0 | BE139: 0 | BF139: 0 | BG139: 0 | BH139: 0 | BI139: 0 | BJ139: 0 | BK139: 0 | BL139: 0 | BM139: 0 | BN139: 0 | BO139: 0 | BP139: 0 | BQ139: 0 | BR139: 0 | BS139: 0 | BT139: 0 | BU139: 0 | BV139: 0 | BW139: 0 | BX139: 0 | BY139: 0 | BZ139: 0 | CA139: 0 | CB139: 0 | CC139: 0 | CD139: 0 | CE139: 0 | CF139: 0 | CG139: 0 | CH139: 0 | CI139: 0 | CJ139: 0 | CK139: 0 | CL139: 0 | CM139: 0 | CN139: 0 | CO139: 0 | CP139: 0 | CQ139: 0 | CR139: 0 | CS139: 0 | CT139: 0 | CU139: 0 | CV139: 0 | CW139: 0 | CX139: 0 | CY139: 0 | CZ139: 0 | DA139: 0 | DB139: 0 | DC139: 0 | DD139: 0 | DE139: 0 | DF139: 0 | DG139: 0
A140: [Other O&M costs] | B140: Dollars | K140: [Other O&M costs] | L140: 0 | M140: 0 | N140: 0 | O140: 0 | P140: 0 | Q140: 0 | R140: 0 | S140: 0 | T140: 0 | U140: 0 | V140: 0 | W140: 0 | X140: 0 | Y140: 0 | Z140: 0 | AA140: 0 | AB140: 0 | AC140: 0 | AD140: 0 | AE140: 0 | AF140: 0 | AG140: 0 | AH140: 0 | AI140: 0 | AJ140: 0 | AK140: 0 | AL140: 0 | AM140: 0 | AN140: 0 | AO140: 0 | AP140: 0 | AQ140: 0 | AR140: 0 | AS140: 0 | AT140: 0 | AU140: 0 | AV140: 0 | AW140: 0 | AX140: 0 | AY140: 0 | AZ140: 0 | BA140: 0 | BB140: 0 | BC140: 0 | BD140: 0 | BE140: 0 | BF140: 0 | BG140: 0 | BH140: 0 | BI140: 0 | BJ140: 0 | BK140: 0 | BL140: 0 | BM140: 0 | BN140: 0 | BO140: 0 | BP140: 0 | BQ140: 0 | BR140: 0 | BS140: 0 | BT140: 0 | BU140: 0 | BV140: 0 | BW140: 0 | BX140: 0 | BY140: 0 | BZ140: 0 | CA140: 0 | CB140: 0 | CC140: 0 | CD140: 0 | CE140: 0 | CF140: 0 | CG140: 0 | CH140: 0 | CI140: 0 | CJ140: 0 | CK140: 0 | CL140: 0 | CM140: 0 | CN140: 0 | CO140: 0 | CP140: 0 | CQ140: 0 | CR140: 0 | CS140: 0 | CT140: 0 | CU140: 0 | CV140: 0 | CW140: 0 | CX140: 0 | CY140: 0 | CZ140: 0 | DA140: 0 | DB140: 0 | DC140: 0 | DD140: 0 | DE140: 0 | DF140: 0 | DG140: 0
A141: [Other O&M costs] | B141: Dollars | K141: [Other O&M costs] | L141: 0 | M141: 0 | N141: 0 | O141: 0 | P141: 0 | Q141: 0 | R141: 0 | S141: 0 | T141: 0 | U141: 0 | V141: 0 | W141: 0 | X141: 0 | Y141: 0 | Z141: 0 | AA141: 0 | AB141: 0 | AC141: 0 | AD141: 0 | AE141: 0 | AF141: 0 | AG141: 0 | AH141: 0 | AI141: 0 | AJ141: 0 | AK141: 0 | AL141: 0 | AM141: 0 | AN141: 0 | AO141: 0 | AP141: 0 | AQ141: 0 | AR141: 0 | AS141: 0 | AT141: 0 | AU141: 0 | AV141: 0 | AW141: 0 | AX141: 0 | AY141: 0 | AZ141: 0 | BA141: 0 | BB141: 0 | BC141: 0 | BD141: 0 | BE141: 0 | BF141: 0 | BG141: 0 | BH141: 0 | BI141: 0 | BJ141: 0 | BK141: 0 | BL141: 0 | BM141: 0 | BN141: 0 | BO141: 0 | BP141: 0 | BQ141: 0 | BR141: 0 | BS141: 0 | BT141: 0 | BU141: 0 | BV141: 0 | BW141: 0 | BX141: 0 | BY141: 0 | BZ141: 0 | CA141: 0 | CB141: 0 | CC141: 0 | CD141: 0 | CE141: 0 | CF141: 0 | CG141: 0 | CH141: 0 | CI141: 0 | CJ141: 0 | CK141: 0 | CL141: 0 | CM141: 0 | CN141: 0 | CO141: 0 | CP141: 0 | CQ141: 0 | CR141: 0 | CS141: 0 | CT141: 0 | CU141: 0 | CV141: 0 | CW141: 0 | CX141: 0 | CY141: 0 | CZ141: 0 | DA141: 0 | DB141: 0 | DC141: 0 | DD141: 0 | DE141: 0 | DF141: 0 | DG141: 0
A142: [Other O&M costs] | B142: Dollars | K142: [Other O&M costs] | L142: 0 | M142: 0 | N142: 0 | O142: 0 | P142: 0 | Q142: 0 | R142: 0 | S142: 0 | T142: 0 | U142: 0 | V142: 0 | W142: 0 | X142: 0 | Y142: 0 | Z142: 0 | AA142: 0 | AB142: 0 | AC142: 0 | AD142: 0 | AE142: 0 | AF142: 0 | AG142: 0 | AH142: 0 | AI142: 0 | AJ142: 0 | AK142: 0 | AL142: 0 | AM142: 0 | AN142: 0 | AO142: 0 | AP142: 0 | AQ142: 0 | AR142: 0 | AS142: 0 | AT142: 0 | AU142: 0 | AV142: 0 | AW142: 0 | AX142: 0 | AY142: 0 | AZ142: 0 | BA142: 0 | BB142: 0 | BC142: 0 | BD142: 0 | BE142: 0 | BF142: 0 | BG142: 0 | BH142: 0 | BI142: 0 | BJ142: 0 | BK142: 0 | BL142: 0 | BM142: 0 | BN142: 0 | BO142: 0 | BP142: 0 | BQ142: 0 | BR142: 0 | BS142: 0 | BT142: 0 | BU142: 0 | BV142: 0 | BW142: 0 | BX142: 0 | BY142: 0 | BZ142: 0 | CA142: 0 | CB142: 0 | CC142: 0 | CD142: 0 | CE142: 0 | CF142: 0 | CG142: 0 | CH142: 0 | CI142: 0 | CJ142: 0 | CK142: 0 | CL142: 0 | CM142: 0 | CN142: 0 | CO142: 0 | CP142: 0 | CQ142: 0 | CR142: 0 | CS142: 0 | CT142: 0 | CU142: 0 | CV142: 0 | CW142: 0 | CX142: 0 | CY142: 0 | CZ142: 0 | DA142: 0 | DB142: 0 | DC142: 0 | DD142: 0 | DE142: 0 | DF142: 0 | DG142: 0
A143: [Other O&M costs] | B143: Dollars | K143: [Other O&M costs] | L143: 0 | M143: 0 | N143: 0 | O143: 0 | P143: 0 | Q143: 0 | R143: 0 | S143: 0 | T143: 0 | U143: 0 | V143: 0 | W143: 0 | X143: 0 | Y143: 0 | Z143: 0 | AA143: 0 | AB143: 0 | AC143: 0 | AD143: 0 | AE143: 0 | AF143: 0 | AG143: 0 | AH143: 0 | AI143: 0 | AJ143: 0 | AK143: 0 | AL143: 0 | AM143: 0 | AN143: 0 | AO143: 0 | AP143: 0 | AQ143: 0 | AR143: 0 | AS143: 0 | AT143: 0 | AU143: 0 | AV143: 0 | AW143: 0 | AX143: 0 | AY143: 0 | AZ143: 0 | BA143: 0 | BB143: 0 | BC143: 0 | BD143: 0 | BE143: 0 | BF143: 0 | BG143: 0 | BH143: 0 | BI143: 0 | BJ143: 0 | BK143: 0 | BL143: 0 | BM143: 0 | BN143: 0 | BO143: 0 | BP143: 0 | BQ143: 0 | BR143: 0 | BS143: 0 | BT143: 0 | BU143: 0 | BV143: 0 | BW143: 0 | BX143: 0 | BY143: 0 | BZ143: 0 | CA143: 0 | CB143: 0 | CC143: 0 | CD143: 0 | CE143: 0 | CF143: 0 | CG143: 0 | CH143: 0 | CI143: 0 | CJ143: 0 | CK143: 0 | CL143: 0 | CM143: 0 | CN143: 0 | CO143: 0 | CP143: 0 | CQ143: 0 | CR143: 0 | CS143: 0 | CT143: 0 | CU143: 0 | CV143: 0 | CW143: 0 | CX143: 0 | CY143: 0 | CZ143: 0 | DA143: 0 | DB143: 0 | DC143: 0 | DD143: 0 | DE143: 0 | DF143: 0 | DG143: 0
A144: [Other O&M costs] | B144: Dollars | K144: [Other O&M costs] | L144: 0 | M144: 0 | N144: 0 | O144: 0 | P144: 0 | Q144: 0 | R144: 0 | S144: 0 | T144: 0 | U144: 0 | V144: 0 | W144: 0 | X144: 0 | Y144: 0 | Z144: 0 | AA144: 0 | AB144: 0 | AC144: 0 | AD144: 0 | AE144: 0 | AF144: 0 | AG144: 0 | AH144: 0 | AI144: 0 | AJ144: 0 | AK144: 0 | AL144: 0 | AM144: 0 | AN144: 0 | AO144: 0 | AP144: 0 | AQ144: 0 | AR144: 0 | AS144: 0 | AT144: 0 | AU144: 0 | AV144: 0 | AW144: 0 | AX144: 0 | AY144: 0 | AZ144: 0 | BA144: 0 | BB144: 0 | BC144: 0 | BD144: 0 | BE144: 0 | BF144: 0 | BG144: 0 | BH144: 0 | BI144: 0 | BJ144: 0 | BK144: 0 | BL144: 0 | BM144: 0 | BN144: 0 | BO144: 0 | BP144: 0 | BQ144: 0 | BR144: 0 | BS144: 0 | BT144: 0 | BU144: 0 | BV144: 0 | BW144: 0 | BX144: 0 | BY144: 0 | BZ144: 0 | CA144: 0 | CB144: 0 | CC144: 0 | CD144: 0 | CE144: 0 | CF144: 0 | CG144: 0 | CH144: 0 | CI144: 0 | CJ144: 0 | CK144: 0 | CL144: 0 | CM144: 0 | CN144: 0 | CO144: 0 | CP144: 0 | CQ144: 0 | CR144: 0 | CS144: 0 | CT144: 0 | CU144: 0 | CV144: 0 | CW144: 0 | CX144: 0 | CY144: 0 | CZ144: 0 | DA144: 0 | DB144: 0 | DC144: 0 | DD144: 0 | DE144: 0 | DF144: 0 | DG144: 0
K145: Sum O&M (year) | L145: =SUM(L131:L144) -> 0 | M145: =SUM(M131:M144) -> 0 | N145: 0 | O145: 0 | P145: 0 | Q145: 0 | R145: 0 | S145: 0 | T145: 0 | U145: 0 | V145: 0 | W145: 0 | X145: 0 | Y145: 0 | Z145: 0 | AA145: 0 | AB145: 0 | AC145: 0 | AD145: 0 | AE145: 0 | AF145: 0 | AG145: 0 | AH145: 0 | AI145: 0 | AJ145: 0 | AK145: 0 | AL145: 0 | AM145: 0 | AN145: 0 | AO145: 0 | AP145: 0 | AQ145: 0 | AR145: 0 | AS145: 0 | AT145: 0 | AU145: 0 | AV145: 0 | AW145: 0 | AX145: 0 | AY145: 0 | AZ145: 0 | BA145: 0 | BB145: 0 | BC145: 0 | BD145: 0 | BE145: 0 | BF145: 0 | BG145: 0 | BH145: 0 | BI145: 0 | BJ145: 0 | BK145: 0 | BL145: 0 | BM145: 0 | BN145: 0 | BO145: 0 | BP145: 0 | BQ145: 0 | BR145: 0 | BS145: 0 | BT145: 0 | BU145: 0 | BV145: 0 | BW145: 0 | BX145: 0 | BY145: =SUM(BY131:BY144) -> 0 | BZ145: 0 | CA145: 0 | CB145: 0 | CC145: 0 | CD145: 0 | CE145: 0 | CF145: 0 | CG145: 0 | CH145: 0 | CI145: 0 | CJ145: 0 | CK145: 0 | CL145: 0 | CM145: 0 | CN145: 0 | CO145: 0 | CP145: 0 | CQ145: 0 | CR145: 0 | CS145: 0 | CT145: 0 | CU145: 0 | CV145: 0 | CW145: 0 | CX145: 0 | CY145: 0 | CZ145: 0 | DA145: 0 | DB145: 0 | DC145: 0 | DD145: 0 | DE145: 0 | DF145: 0 | DG145: 0
K146: NPV O&M | L146: =SUMPRODUCT($L$129:$DG$129,L145:DG145) -> 0
A149: Demand & travel time/delay | B149: Average travel time/delay | D149: Opening Year | E149: Interim Year(s) | H149: End year
B150: Time period | C150: Units | D150: =$C$6 -> 0 | E150: =IF($C$7="","",$C$7) ->  | F150: =IF($C$8="","",$C$8) ->  | G150: =IF($C$9="","",$C$9) ->  | H150: =$C$10 -> 0
A151: Standard deviation of vehicle travel time / delay | B151: AM peak | C151: seconds/veh | D151: =IF(ISNUMBER(D53),D53/SecondsPerHour,IF(ISNUMBER(D54),D54/SecondsPerHour,IF(ISNUMBER(D55),D55/SecondsPerHour,0))) -> 0 | E151: =IF(ISNUMBER(E53),E53/SecondsPerHour,IF(ISNUMBER(E54),E54/SecondsPerHour,IF(ISNUMBER(E55),E55/SecondsPerHour,0))) -> 0 | F151: =IF(ISNUMBER(F53),F53/SecondsPerHour,IF(ISNUMBER(F54),F54/SecondsPerHour,IF(ISNUMBER(F55),F55/SecondsPerHour,0))) -> 0 | G151: =IF(ISNUMBER(G53),G53/SecondsPerHour,IF(ISNUMBER(G54),G54/SecondsPerHour,IF(ISNUMBER(G55),G55/SecondsPerHour,0))) -> 0 | H151: =IF(ISNUMBER(H53),H53/SecondsPerHour,IF(ISNUMBER(H54),H54/SecondsPerHour,IF(ISNUMBER(H55),H55/SecondsPerHour,0))) -> 0
B152: PM peak | C152: seconds/veh | D152: =IF(ISNUMBER(D54),D54/SecondsPerHour,IF(ISNUMBER(D53/SecondsPerHour),D53,IF(ISNUMBER(D55),D55/SecondsPerHour,0))) -> 0 | E152: =IF(ISNUMBER(E54),E54/SecondsPerHour,IF(ISNUMBER(E53/SecondsPerHour),E53,IF(ISNUMBER(E55),E55/SecondsPerHour,0))) -> 0 | F152: =IF(ISNUMBER(F54),F54/SecondsPerHour,IF(ISNUMBER(F53/SecondsPerHour),F53,IF(ISNUMBER(F55),F55/SecondsPerHour,0))) -> 0 | G152: =IF(ISNUMBER(G54),G54/SecondsPerHour,IF(ISNUMBER(G53/SecondsPerHour),G53,IF(ISNUMBER(G55),G55/SecondsPerHour,0))) -> 0 | H152: =IF(ISNUMBER(H54),H54/SecondsPerHour,IF(ISNUMBER(H53/SecondsPerHour),H53,IF(ISNUMBER(H55),H55/SecondsPerHour,0))) -> 0
B153: Offpeak | C153: seconds/veh | D153: =IF(ISNUMBER(D55),D55/SecondsPerHour,0) -> 0 | E153: =IF(ISNUMBER(E55),E55/SecondsPerHour,0) -> 0 | F153: =IF(ISNUMBER(F55),F55/SecondsPerHour,0) -> 0 | G153: =IF(ISNUMBER(G55),G55/SecondsPerHour,0) -> 0 | H153: =IF(ISNUMBER(H55),H55/SecondsPerHour,0) -> 0
A154: Average bike travel time / delay | B154: All | C154: seconds/bike | D154: =D56 -> 0 | E154: 0 | F154: 0 | G154: 0 | H154: 0
A155: Average ped travel time / delay | B155: All | C155: seconds/ped | D155: 0 | E155: 0 | F155: 0 | G155: 0 | H155: 0
A157: User & nonuser costs | J157: DefinedAlternative_InterpolationFormulaTemplate | K157: =IF(NOT(AND(ISNUMBER(DummyCellReference_1),ISNUMBER(DummyCellReference_2))),0,IF(AND(DummyCellReference_1>0,DummyCellReference_2>0),DummyCellReference_1*(DummyCellReference_2/DummyCellReference_1)^((DummyCellReference_4-DummyCellReference_3)/(DummyCellReference_5-DummyCellReference_3)),0)) -> 0
D159: Summary costs for user specified years
A160: Cost category | D160: Opening Year | E160: Interim Year(s) | H160: End year | J160: NPV calculations | K160: Total NPV | L160: Spot values
D161: =$C$6 -> 0 | E161: =IF($C$7="","",$C$7) ->  | F161: =IF($C$8="","",$C$8) ->  | G161: =IF($C$9="","",$C$9) ->  | H161: =$C$10 -> 0
A162: Auto passenger time cost | D162: =IF(ISNUMBER(D$150),SUM(D$203:D$8962),"") ->  | E162: =IF(ISNUMBER(E$150),SUM(L$203:L$8962),0) -> 0 | F162: =IF(ISNUMBER(F$150),SUM(T$203:T$8962),0) -> 0 | G162: =IF(ISNUMBER(G$150),SUM(AB$203:AB$8962),"") ->  | H162: =IF(ISNUMBER(H$150),SUM(AJ$203:AJ$8962),"") -> 0 | J162: =A162 -> Auto passenger time cost | K162: =SUMPRODUCT(L162:DG162,$L$129:$DG$129) ->  | L162: =D162 ->  | M162: =IF(NOT(AND(ISNUMBER(L162),ISNUMBER(AG162))),0,IF(AND(L162>0,AG162>0),L162*(AG162/L162)^((M$128-L$128)/(AG$128-L$128)),0)) -> 0 | N162: =IF(NOT(AND(ISNUMBER(L162),ISNUMBER(AG162))),0,IF(AND(L162>0,AG162>0),L162*(AG162/L162)^((N$128-L$128)/(AG$128-L$128)),0)) -> 0 | O162: =IF(NOT(AND(ISNUMBER(L162),ISNUMBER(AG162))),0,IF(AND(L162>0,AG162>0),L162*(AG162/L162)^((O$128-L$128)/(AG$128-L$128)),0)) -> 0 | P162: =IF(NOT(AND(ISNUMBER(L162),ISNUMBER(AG162))),0,IF(AND(L162>0,AG162>0),L162*(AG162/L162)^((P$128-L$128)/(AG$128-L$128)),0)) -> 0 | Q162: =IF(NOT(AND(ISNUMBER(L162),ISNUMBER(AG162))),0,IF(AND(L162>0,AG162>0),L162*(AG162/L162)^((Q$128-L$128)/(AG$128-L$128)),0)) -> 0 | R162: =IF(NOT(AND(ISNUMBER(L162),ISNUMBER(AG162))),0,IF(AND(L162>0,AG162>0),L162*(AG162/L162)^((R$128-L$128)/(AG$128-L$128)),0)) -> 0 | S162: =IF(NOT(AND(ISNUMBER(L162),ISNUMBER(AG162))),0,IF(AND(L162>0,AG162>0),L162*(AG162/L162)^((S$128-L$128)/(AG$128-L$128)),0)) -> 0 | T162: =IF(NOT(AND(ISNUMBER(L162),ISNUMBER(AG162))),0,IF(AND(L162>0,AG162>0),L162*(AG162/L162)^((T$128-L$128)/(AG$128-L$128)),0)) -> 0 | U162: =IF(NOT(AND(ISNUMBER(L162),ISNUMBER(AG162))),0,IF(AND(L162>0,AG162>0),L162*(AG162/L162)^((U$128-L$128)/(AG$128-L$128)),0)) -> 0 | V162: =IF(NOT(AND(ISNUMBER(L162),ISNUMBER(AG162))),0,IF(AND(L162>0,AG162>0),L162*(AG162/L162)^((V$128-L$128)/(AG$128-L$128)),0)) -> 0 | W162: =IF(NOT(AND(ISNUMBER(L162),ISNUMBER(AG162))),0,IF(AND(L162>0,AG162>0),L162*(AG162/L162)^((W$128-L$128)/(AG$128-L$128)),0)) -> 0 | X162: =IF(NOT(AND(ISNUMBER(L162),ISNUMBER(AG162))),0,IF(AND(L162>0,AG162>0),L162*(AG162/L162)^((X$128-L$128)/(AG$128-L$128)),0)) -> 0 | Y162: =IF(NOT(AND(ISNUMBER(L162),ISNUMBER(AG162))),0,IF(AND(L162>0,AG162>0),L162*(AG162/L162)^((Y$128-L$128)/(AG$128-L$128)),0)) -> 0 | Z162: =IF(NOT(AND(ISNUMBER(L162),ISNUMBER(AG162))),0,IF(AND(L162>0,AG162>0),L162*(AG162/L162)^((Z$128-L$128)/(AG$128-L$128)),0)) -> 0 | AA162: =IF(NOT(AND(ISNUMBER(L162),ISNUMBER(AG162))),0,IF(AND(L162>0,AG162>0),L162*(AG162/L162)^((AA$128-L$128)/(AG$128-L$128)),0)) -> 0 | AB162: =IF(NOT(AND(ISNUMBER(L162),ISNUMBER(AG162))),0,IF(AND(L162>0,AG162>0),L162*(AG162/L162)^((AB$128-L$128)/(AG$128-L$128)),0)) -> 0 | AC162: =IF(NOT(AND(ISNUMBER(L162),ISNUMBER(AG162))),0,IF(AND(L162>0,AG162>0),L162*(AG162/L162)^((AC$128-L$128)/(AG$128-L$128)),0)) -> 0 | AD162: =IF(NOT(AND(ISNUMBER(L162),ISNUMBER(AG162))),0,IF(AND(L162>0,AG162>0),L162*(AG162/L162)^((AD$128-L$128)/(AG$128-L$128)),0)) -> 0 | AE162: =IF(NOT(AND(ISNUMBER(L162),ISNUMBER(AG162))),0,IF(AND(L162>0,AG162>0),L162*(AG162/L162)^((AE$128-L$128)/(AG$128-L$128)),0)) -> 0 | AF162: =IF(NOT(AND(ISNUMBER(L162),ISNUMBER(AG162))),0,IF(AND(L162>0,AG162>0),L162*(AG162/L162)^((AF$128-L$128)/(AG$128-L$128)),0)) -> 0 | AG162: =H162 -> 0
A163: Auto passenger reliability cost | D163: =IF(ISNUMBER(D$150),SUM(E$203:E$8962),"") ->  | E163: =IF(ISNUMBER(E$150),SUM(M$203:M$8962),"") ->  | F163: =IF(ISNUMBER(F$150),SUM(U$203:U$8962),0) -> 0 | G163: =IF(ISNUMBER(G$150),SUM(AC$203:AC$8962),"") ->  | H163: =IF(ISNUMBER(H$150),SUM(AK$203:AK$8962),"") -> 0 | J163: =A163 -> Auto passenger reliability cost | K163: =SUMPRODUCT(L163:DG163,$L$129:$DG$129) ->  | L163: =D163 ->  | M163: =IF(NOT(AND(ISNUMBER(L163),ISNUMBER(AG163))),0,IF(AND(L163>0,AG163>0),L163*(AG163/L163)^((M$128-L$128)/(AG$128-L$128)),0)) -> 0 | N163: =IF(NOT(AND(ISNUMBER(L163),ISNUMBER(AG163))),0,IF(AND(L163>0,AG163>0),L163*(AG163/L163)^((N$128-L$128)/(AG$128-L$128)),0)) -> 0 | O163: =IF(NOT(AND(ISNUMBER(L163),ISNUMBER(AG163))),0,IF(AND(L163>0,AG163>0),L163*(AG163/L163)^((O$128-L$128)/(AG$128-L$128)),0)) -> 0 | P163: =IF(NOT(AND(ISNUMBER(L163),ISNUMBER(AG163))),0,IF(AND(L163>0,AG163>0),L163*(AG163/L163)^((P$128-L$128)/(AG$128-L$128)),0)) -> 0 | Q163: =IF(NOT(AND(ISNUMBER(L163),ISNUMBER(AG163))),0,IF(AND(L163>0,AG163>0),L163*(AG163/L163)^((Q$128-L$128)/(AG$128-L$128)),0)) -> 0 | R163: =IF(NOT(AND(ISNUMBER(L163),ISNUMBER(AG163))),0,IF(AND(L163>0,AG163>0),L163*(AG163/L163)^((R$128-L$128)/(AG$128-L$128)),0)) -> 0 | S163: =IF(NOT(AND(ISNUMBER(L163),ISNUMBER(AG163))),0,IF(AND(L163>0,AG163>0),L163*(AG163/L163)^((S$128-L$128)/(AG$128-L$128)),0)) -> 0 | T163: =IF(NOT(AND(ISNUMBER(L163),ISNUMBER(AG163))),0,IF(AND(L163>0,AG163>0),L163*(AG163/L163)^((T$128-L$128)/(AG$128-L$128)),0)) -> 0 | U163: =IF(NOT(AND(ISNUMBER(L163),ISNUMBER(AG163))),0,IF(AND(L163>0,AG163>0),L163*(AG163/L163)^((U$128-L$128)/(AG$128-L$128)),0)) -> 0 | V163: =IF(NOT(AND(ISNUMBER(L163),ISNUMBER(AG163))),0,IF(AND(L163>0,AG163>0),L163*(AG163/L163)^((V$128-L$128)/(AG$128-L$128)),0)) -> 0 | W163: =IF(NOT(AND(ISNUMBER(L163),ISNUMBER(AG163))),0,IF(AND(L163>0,AG163>0),L163*(AG163/L163)^((W$128-L$128)/(AG$128-L$128)),0)) -> 0 | X163: =IF(NOT(AND(ISNUMBER(L163),ISNUMBER(AG163))),0,IF(AND(L163>0,AG163>0),L163*(AG163/L163)^((X$128-L$128)/(AG$128-L$128)),0)) -> 0 | Y163: =IF(NOT(AND(ISNUMBER(L163),ISNUMBER(AG163))),0,IF(AND(L163>0,AG163>0),L163*(AG163/L163)^((Y$128-L$128)/(AG$128-L$128)),0)) -> 0 | Z163: =IF(NOT(AND(ISNUMBER(L163),ISNUMBER(AG163))),0,IF(AND(L163>0,AG163>0),L163*(AG163/L163)^((Z$128-L$128)/(AG$128-L$128)),0)) -> 0 | AA163: =IF(NOT(AND(ISNUMBER(L163),ISNUMBER(AG163))),0,IF(AND(L163>0,AG163>0),L163*(AG163/L163)^((AA$128-L$128)/(AG$128-L$128)),0)) -> 0 | AB163: =IF(NOT(AND(ISNUMBER(L163),ISNUMBER(AG163))),0,IF(AND(L163>0,AG163>0),L163*(AG163/L163)^((AB$128-L$128)/(AG$128-L$128)),0)) -> 0 | AC163: =IF(NOT(AND(ISNUMBER(L163),ISNUMBER(AG163))),0,IF(AND(L163>0,AG163>0),L163*(AG163/L163)^((AC$128-L$128)/(AG$128-L$128)),0)) -> 0 | AD163: =IF(NOT(AND(ISNUMBER(L163),ISNUMBER(AG163))),0,IF(AND(L163>0,AG163>0),L163*(AG163/L163)^((AD$128-L$128)/(AG$128-L$128)),0)) -> 0 | AE163: =IF(NOT(AND(ISNUMBER(L163),ISNUMBER(AG163))),0,IF(AND(L163>0,AG163>0),L163*(AG163/L163)^((AE$128-L$128)/(AG$128-L$128)),0)) -> 0 | AF163: =IF(NOT(AND(ISNUMBER(L163),ISNUMBER(AG163))),0,IF(AND(L163>0,AG163>0),L163*(AG163/L163)^((AF$128-L$128)/(AG$128-L$128)),0)) -> 0 | AG163: =H163 -> 0
A164: Truck time cost | D164: =IF(ISNUMBER(D$150),SUM(F$203:F$8962),"") ->  | E164: =IF(ISNUMBER(E$150),SUM(N$203:N$8962),"") ->  | F164: =IF(ISNUMBER(F$150),SUM(V$203:V$8962),0) -> 0 | G164: =IF(ISNUMBER(G$150),SUM(AD$203:AD$8962),"") ->  | H164: =IF(ISNUMBER(H$150),SUM(AL$203:AL$8962),"") -> 0 | J164: Truck time cost | M164: 0 | N164: 0 | O164: 0 | P164: 0 | Q164: 0 | R164: 0 | S164: 0 | T164: 0 | U164: 0 | V164: 0 | W164: 0 | X164: 0 | Y164: 0 | Z164: 0 | AA164: 0 | AB164: 0 | AC164: 0 | AD164: 0 | AE164: 0 | AF164: 0 | AG164: 0
A165: Truck reliability cost | D165: =IF(ISNUMBER(D$150),SUM(G$203:G$8962),"") ->  | E165: =IF(ISNUMBER(E$150),SUM(O$203:O$8962),"") ->  | F165: =IF(ISNUMBER(F$150),SUM(W$203:W$8962),0) -> 0 | G165: =IF(ISNUMBER(G$150),SUM(AE$203:AE$8962),"") ->  | H165: =IF(ISNUMBER(H$150),SUM(AM$203:AM$8962),"") -> 0 | J165: Truck reliability cost | M165: 0 | N165: 0 | O165: 0 | P165: 0 | Q165: 0 | R165: 0 | S165: 0 | T165: 0 | U165: 0 | V165: 0 | W165: 0 | X165: 0 | Y165: 0 | Z165: 0 | AA165: 0 | AB165: 0 | AC165: 0 | AD165: 0 | AE165: 0 | AF165: 0 | AG165: 0
A166: Transit passenger time cost | D166: =IF(ISNUMBER(D$150),SUM(H$203:H$8962),"") ->  | E166: =IF(ISNUMBER(E$150),SUM(P$203:P$8962),"") ->  | F166: =IF(ISNUMBER(F$150),SUM(X$203:X$8962),0) -> 0 | G166: =IF(ISNUMBER(G$150),SUM(AF$203:AF$8962),"") ->  | H166: =IF(ISNUMBER(H$150),SUM(AN$203:AN$8962),"") -> 0 | J166: Transit passenger time cost | M166: 0 | N166: 0 | O166: 0 | P166: 0 | Q166: 0 | R166: 0 | S166: 0 | T166: 0 | U166: 0 | V166: 0 | W166: 0 | X166: 0 | Y166: 0 | Z166: 0 | AA166: 0 | AB166: 0 | AC166: 0 | AD166: 0 | AE166: 0 | AF166: 0 | AG166: 0
A167: Transit passenger reliability cost | D167: =IF(ISNUMBER(D$150),SUM(I$203:I$8962),"") -> 0 | E167: =IF(ISNUMBER(E$150),SUM(Q$203:Q$8962),"") ->  | F167: =IF(ISNUMBER(F$150),SUM(Y$203:Y$8962),0) -> 0 | G167: =IF(ISNUMBER(G$150),SUM(AG$203:AG$8962),"") ->  | H167: =IF(ISNUMBER(H$150),SUM(AO$203:AO$8962),"") -> 0 | J167: Transit passenger reliability cost | K167: 0 | L167: 0 | M167: 0 | N167: 0 | O167: 0 | P167: 0 | Q167: 0 | R167: 0 | S167: 0 | T167: 0 | U167: 0 | V167: 0 | W167: 0 | X167: 0 | Y167: 0 | Z167: 0 | AA167: 0 | AB167: 0 | AC167: 0 | AD167: 0 | AE167: 0 | AF167: 0 | AG167: 0
A168: Bicycle time cost | D168: =DemandParameters!C37*(D56/SecondsPerHour)*DaysPerYear*TimeValue_Person_Offpeak -> 0 | F168: =DemandParameters!C37*F56*DaysPerYear*TimeValue_Person_Offpeak -> 0 | H168: =DemandParameters!D37*(H56/SecondsPerHour)*DaysPerYear*TimeValue_Person_Offpeak -> 0 | J168: Bicycle time cost | K168: 0 | L168: 0 | M168: 0 | N168: 0 | O168: 0 | P168: 0 | Q168: 0 | R168: 0 | S168: 0 | T168: 0 | U168: 0 | V168: 0 | W168: 0 | X168: 0 | Y168: 0 | Z168: 0 | AA168: 0 | AB168: 0 | AC168: 0 | AD168: 0 | AE168: 0 | AF168: 0 | AG168: 0
A169: Pedestrian time cost | D169: =DemandParameters!C38*(D57/SecondsPerHour)*DaysPerYear*TimeValue_Person_Offpeak -> 0 | F169: =DemandParameters!C38*F57*DaysPerYear*TimeValue_Person_Offpeak -> 0 | H169: =DemandParameters!D38*(H57/SecondsPerHour)*DaysPerYear*TimeValue_Person_Offpeak -> 0 | J169: =A169 -> Pedestrian time cost | K169: 0 | L169: 0 | M169: 0 | N169: 0 | O169: 0 | P169: 0 | Q169: 0 | R169: 0 | S169: 0 | T169: 0 | U169: 0 | V169: 0 | W169: 0 | X169: 0 | Y169: 0 | Z169: 0 | AA169: 0 | AB169: 0 | AC169: 0 | AD169: 0 | AE169: 0 | AF169: 0 | AG169: 0
A170: Crash cost | D170: =IF(OR(NOT(ISNUMBER($C$177)),NOT(ISNUMBER(D$60))),0,SUMPRODUCT($C$177:$C$181,D$60:D$64)) -> 0 | E170: =IF(OR(NOT(ISNUMBER($C$177)),NOT(ISNUMBER(E$60))),0,SUMPRODUCT($C$177:$C$181,E$60:E$64)) -> 0 | F170: =IF(OR(NOT(ISNUMBER($C$177)),NOT(ISNUMBER(F$60))),0,SUMPRODUCT($C$177:$C$181,F$60:F$64)) -> 0 | G170: =IF(OR(NOT(ISNUMBER($C$177)),NOT(ISNUMBER(G$60))),0,SUMPRODUCT($C$177:$C$181,G$60:G$64)) -> 0 | H170: =IF(OR(NOT(ISNUMBER($C$177)),NOT(ISNUMBER(H$60))),0,SUMPRODUCT($C$177:$C$181,H$60:H$64)) -> 0 | J170: Crash cost | K170: =SUMPRODUCT(L170:DG170,$L$129:$DG$129) -> 0 | L170: 0 | M170: 0 | N170: 0 | O170: 0 | P170: 0 | Q170: 0 | R170: 0 | S170: 0 | T170: 0 | U170: 0 | V170: 0 | W170: 0 | X170: 0 | Y170: 0 | Z170: 0 | AA170: 0 | AB170: 0 | AC170: 0 | AD170: 0 | AE170: 0 | AF170: 0 | AG170: 0
A171: GHG cost | D171: =IF(D67="","",D67*IF(IsChecked_GHG_Values_FederalMethod,VLOOKUP(D49,GHG.Costs!$A$20:$G$156,6,7))) ->  | E171: =IF(E67="","",E67*IF(IsChecked_GHG_Values_FederalMethod,VLOOKUP(E49,GHG.Costs!$A$20:$G$156,6,7))) ->  | F171: =IF(F67="","",F67*IF(IsChecked_GHG_Values_FederalMethod,VLOOKUP(F49,GHG.Costs!$A$20:$G$156,6,7))) ->  | G171: =IF(G67="","",G67*IF(IsChecked_GHG_Values_FederalMethod,VLOOKUP(G49,GHG.Costs!$A$20:$G$156,6,7))) ->  | H171: =IF(H67="","",H67*IF(IsChecked_GHG_Values_FederalMethod,VLOOKUP(H49,GHG.Costs!$A$20:$G$156,6,7))) ->  | J171: GHG cost | K171: =SUM(L171:DG171) -> 0 | M171: 0 | N171: 0 | O171: 0 | P171: 0 | Q171: 0 | R171: 0 | S171: 0 | T171: 0 | U171: 0 | V171: 0 | W171: 0 | X171: 0 | Y171: 0 | Z171: 0 | AA171: 0 | AB171: 0 | AC171: 0 | AD171: 0 | AE171: 0 | AF171: 0
A172: Criteria pollutant cost | D172: =IF(IsChecked_CriteriaPollutantCategories_ByType,SUMPRODUCT(D68:D71,CostParameters!$G$25:$G$28),SUMPRODUCT(D68:D71,CostParameters!$G$29:$G$32)) -> 0 | E172: =IF(IsChecked_CriteriaPollutantCategories_ByType,SUMPRODUCT(E68:E71,CostParameters!$G$25:$G$28),SUMPRODUCT(E68:E71,CostParameters!$G$29:$G$32)) -> 0 | F172: =IF(IsChecked_CriteriaPollutantCategories_ByType,SUMPRODUCT(F68:F71,CostParameters!$G$25:$G$28),SUMPRODUCT(F68:F71,CostParameters!$G$29:$G$32)) -> 0 | G172: =IF(IsChecked_CriteriaPollutantCategories_ByType,SUMPRODUCT(G68:G71,CostParameters!$G$25:$G$28),SUMPRODUCT(G68:G71,CostParameters!$G$29:$G$32)) -> 0 | H172: =IF(IsChecked_CriteriaPollutantCategories_ByType,SUMPRODUCT(H68:H71,CostParameters!$G$25:$G$28),SUMPRODUCT(H68:H71,CostParameters!$G$29:$G$32)) -> 0 | J172: Criteria pollutant cost | K172: =SUMPRODUCT(L172:DG172,$L$129:$DG$129) -> 0 | L172: 0 | M172: 0 | N172: 0 | O172: 0 | P172: 0 | Q172: 0 | R172: 0 | S172: 0 | T172: 0 | U172: 0 | V172: 0 | W172: 0 | X172: 0 | Y172: 0 | Z172: 0 | AA172: 0 | AB172: 0 | AC172: 0 | AD172: 0 | AE172: 0 | AF172: 0 | AG172: 0
I174: index
A175: Safety | B175: Crash type | C175: Valuation | D175: Opening Year | E175: Interim Year(s) | H175: End year
D176: =$C$6 -> 0 | E176: =IF($C$7="","",$C$7) ->  | F176: =IF($C$8="","",$C$8) ->  | G176: =IF($C$9="","",$C$9) ->  | H176: =$C$10 -> 0
A177: =IF(IsChecked_CrashCategories_KABCO,CrashCategoryLabel_KABCO,IF(IsChecked_CrashCategories_FatalityInjuryPDO,CrashCategoryLabel_FatalInjuryPDO,IF(IsChecked_CrashCategories_TotalCrashes,CrashCategoryLabel_TotalCrashes,CrashCategoryLabel_UserDefined))) -> KABCO | B177: =IF(B60="","",B60) -> K - Fatality crashes | C177: =IF(IsChecked_CrashCategories_KABCO,IF(ISERROR(INDEX(CrashValuations_KABCO,$I177)),"",INDEX(CrashValuations_KABCO,$I177)),IF(IsChecked_CrashCategories_FatalityInjuryPDO,IF(ISERROR(INDEX(CrashValuations_FatalityInjuryPDO,$I177)),"",INDEX(CrashValuations_FatalityInjuryPDO,$I177)),IF(IsChecked_CrashCategories_TotalCrashes,IF(ISERROR(INDEX(CrashValuations_TotalCrashes,$I177)),"",INDEX(CrashValuations_TotalCrashes,$I177)),IF(IsChecked_CrashCategories_UserDefined,IF(ISERROR(INDEX(CrashValuations_UserDefined,$I177)),"",IF(INDEX(CrashValuations_UserDefined,$I177)="","",INDEX(CrashValuations_UserDefined,$I177))),#N/A)))) -> 9200000 | I177: 1
B178: =IF(B61="","",B61) -> A - Severe injury crashes | C178: =IF(IsChecked_CrashCategories_KABCO,IF(ISERROR(INDEX(CrashValuations_KABCO,$I178)),"",INDEX(CrashValuations_KABCO,$I178)),IF(IsChecked_CrashCategories_FatalityInjuryPDO,IF(ISERROR(INDEX(CrashValuations_FatalityInjuryPDO,$I178)),"",INDEX(CrashValuations_FatalityInjuryPDO,$I178)),IF(IsChecked_CrashCategories_TotalCrashes,IF(ISERROR(INDEX(CrashValuations_TotalCrashes,$I178)),"",INDEX(CrashValuations_TotalCrashes,$I178)),IF(IsChecked_CrashCategories_UserDefined,IF(ISERROR(INDEX(CrashValuations_UserDefined,$I178)),"",IF(INDEX(CrashValuations_UserDefined,$I178)="","",INDEX(CrashValuations_UserDefined,$I178))),#N/A)))) -> 440125 | I178: 2
B179: =IF(B62="","",B62) -> B - Moderate injury crashes | C179: =IF(IsChecked_CrashCategories_KABCO,IF(ISERROR(INDEX(CrashValuations_KABCO,$I179)),"",INDEX(CrashValuations_KABCO,$I179)),IF(IsChecked_CrashCategories_FatalityInjuryPDO,IF(ISERROR(INDEX(CrashValuations_FatalityInjuryPDO,$I179)),"",INDEX(CrashValuations_FatalityInjuryPDO,$I179)),IF(IsChecked_CrashCategories_TotalCrashes,IF(ISERROR(INDEX(CrashValuations_TotalCrashes,$I179)),"",INDEX(CrashValuations_TotalCrashes,$I179)),IF(IsChecked_CrashCategories_UserDefined,IF(ISERROR(INDEX(CrashValuations_UserDefined,$I179)),"",IF(INDEX(CrashValuations_UserDefined,$I179)="","",INDEX(CrashValuations_UserDefined,$I179))),#N/A)))) -> 120167 | I179: 3
B180: =IF(B63="","",B63) -> C - Minor injury crashes | C180: =IF(IsChecked_CrashCategories_KABCO,IF(ISERROR(INDEX(CrashValuations_KABCO,$I180)),"",INDEX(CrashValuations_KABCO,$I180)),IF(IsChecked_CrashCategories_FatalityInjuryPDO,IF(ISERROR(INDEX(CrashValuations_FatalityInjuryPDO,$I180)),"",INDEX(CrashValuations_FatalityInjuryPDO,$I180)),IF(IsChecked_CrashCategories_TotalCrashes,IF(ISERROR(INDEX(CrashValuations_TotalCrashes,$I180)),"",INDEX(CrashValuations_TotalCrashes,$I180)),IF(IsChecked_CrashCategories_UserDefined,IF(ISERROR(INDEX(CrashValuations_UserDefined,$I180)),"",IF(INDEX(CrashValuations_UserDefined,$I180)="","",INDEX(CrashValuations_UserDefined,$I180))),#N/A)))) -> 62114 | I180: 4
B181: =IF(B64="","",B64) -> O - No injury crashes | C181: =IF(IsChecked_CrashCategories_KABCO,IF(ISERROR(INDEX(CrashValuations_KABCO,$I181)),"",INDEX(CrashValuations_KABCO,$I181)),IF(IsChecked_CrashCategories_FatalityInjuryPDO,IF(ISERROR(INDEX(CrashValuations_FatalityInjuryPDO,$I181)),"",INDEX(CrashValuations_FatalityInjuryPDO,$I181)),IF(IsChecked_CrashCategories_TotalCrashes,IF(ISERROR(INDEX(CrashValuations_TotalCrashes,$I181)),"",INDEX(CrashValuations_TotalCrashes,$I181)),IF(IsChecked_CrashCategories_UserDefined,IF(ISERROR(INDEX(CrashValuations_UserDefined,$I181)),"",IF(INDEX(CrashValuations_UserDefined,$I181)="","",INDEX(CrashValuations_UserDefined,$I181))),#N/A)))) -> 6734 | I181: 5
A184: Emissions | B184: Type
A186: =A67 -> Greenhouse gases -- Federal method (Exec. Order 12866) | B186: =IF(B67="","",B67) -> CO2 equivalent | C186: (see next row)
A190: =A68 -> Criteria pollutants -- by type | B190: =IF(B68="","",B68) -> CO | C190: =IF(IsChecked_CriteriaPollutantCategories_ByType,CostParameters!G25,CostParameters!G29) -> 39600 | I190: 1
B191: =IF(B69="","",B69) -> NOx | C191: =IF(IsChecked_CriteriaPollutantCategories_ByType,CostParameters!G26,CostParameters!G30) -> 7887 | I191: 2
B192: HC | C192: =IF(IsChecked_CriteriaPollutantCategories_ByType,CostParameters!G27,CostParameters!G31) -> 1700 | I192: 3
B193: PM 2.5 | C193: =IF(IsChecked_CriteriaPollutantCategories_ByType,CostParameters!G28,CostParameters!G32) -> 306500 | I193: 6
A196: Year | C196: time per | D196: std dev | K196: time per | L196: std dev | S196: time per | T196: std dev | AA196: time per | AB196: std dev | AI196: time per | AJ196: std dev
A197: Year type ---> | B197: Opening year | C197: AM | D197: =D151 -> 0 | J197: Int yr 1 | K197: AM | L197: =E151 -> 0 | R197: Int yr 2 | S197: AM | T197: =F151 -> 0 | Z197: Int yr 3 | AA197: AM | AB197: =G151 -> 0 | AH197: End year | AI197: AM | AJ197: =H151 -> 0
A198: Year ------> | B198: =$C$6 -> 0 | C198: PM | D198: =D152 -> 0 | J198: =IF($C$7="","",$C$7) ->  | K198: PM | L198: =E152 -> 0 | R198: =IF($C$8="","",$C$8) ->  | S198: PM | T198: =F152 -> 0 | Z198: =IF($C$9="","",$C$9) ->  | AA198: PM | AB198: =G152 -> 0 | AH198: =IF($C$10="","",$C$10) ->  | AI198: PM | AJ198: =H152 -> 0
A199: Year col in demand sheet ---> | B199: 0 | C199: Offpk | D199: =D153 -> 0 | J199: 0 | K199: Offpk | L199: =E153 -> 0 | R199: 0 | S199: Offpk | T199: =F153 -> 0 | Z199: 0 | AA199: Offpk | AB199: =G153 -> 0 | AH199: 0 | AI199: Offpk | AJ199: =H153 -> 0
A200: Year number (1 = opening, 5 = end, etc) | B200: 1 | C200: 1 | D200: 1 | E200: 1 | F200: 1 | G200: 1 | H200: 1 | I200: 1 | J200: 2 | K200: 2 | L200: 2 | M200: 2 | N200: 2 | O200: 2 | P200: 2 | Q200: 2 | R200: 3 | S200: 3 | T200: 3 | U200: 3 | V200: 3 | W200: 3 | X200: 3 | Y200: 3 | Z200: 4 | AA200: 4 | AB200: 4 | AC200: 4 | AD200: 4 | AE200: 4 | AF200: 4 | AG200: 4 | AH200: 5 | AI200: 5 | AJ200: 5 | AK200: 5 | AL200: 5 | AM200: 5 | AN200: 5
A202: Date/time | B202: average travel time or delay per vehicle (hr) | C202: reliability "insurance" time | D202: auto passenger time cost | E202: auto passenger reliability cost | F202: truck time cost | G202: truck reliability cost | H202: transit passenger time cost | I202: transit passenger reliability cost | J202: average travel time or delay per vehicle (hr) | K202: reliability "insurance" time | L202: auto passenger time cost | M202: auto passenger reliability cost | N202: truck time cost | O202: truck reliability cost | P202: transit passenger time cost | Q202: transit passenger reliability cost | R202: average travel time or delay per vehicle (hr) | S202: reliability "insurance" time | T202: auto passenger time cost | U202: auto passenger reliability cost | V202: truck time cost | W202: truck reliability cost | X202: transit passenger time cost | Y202: transit passenger reliability cost | Z202: average travel time or delay per vehicle (hr) | AA202: reliability "insurance" time | AB202: auto passenger time cost | AC202: auto passenger reliability cost | AD202: truck time cost | AE202: truck reliability cost | AF202: transit passenger time cost | AG202: transit passenger reliability cost | AH202: average travel time or delay per vehicle (hr) | AI202: reliability "insurance" time | AJ202: auto passenger time cost | AK202: auto passenger reliability cost | AL202: truck time cost | AM202: truck reliability cost | AN202: transit passenger time cost | AO202: transit passenger reliability cost
A203: 2014-01-01 | B203: =IF(DemandParameters!G167>0,EXP(AverageTravelTimeModel_Constant+AverageTravelTimeModel_LogVolumeParameter*LN(DemandParameters!G167))/SecondsPerHour,0) ->  | C203: =IF(INDEX(StandardDeviationTable,DemandParameters!C167,1)=0,0,ReliabilityInsuranceTime(0.99, B203, INDEX(StandardDeviationTable,DemandParameters!C167,1), Discount_Rate)) -> 0 | D203: =B203*DemandParameters!H167*IF(DemandParameters!C167=Code_Offpeak,TimeValue_Person_Offpeak,TimeValue_Person_Peak) ->  | E203: =C203*DemandParameters!H167*IF(DemandParameters!C167=Code_Offpeak,TimeValue_Person_Offpeak,TimeValue_Person_Peak) ->  | F203: =B203*DemandParameters!I167*TimeValue_Truck ->  | G203: =C203*DemandParameters!I167*TimeValue_Truck ->  | H203: =B203*DemandParameters!J167*IF(DemandParameters!C167=Code_Offpeak,TimeValue_Person_Offpeak,TimeValue_Person_Peak) ->  | I203: =C203*DemandParameters!J167*IF(DemandParameters!C167=Code_Offpeak,TimeValue_Person_Offpeak,TimeValue_Person_Peak) -> 0 | AH203: =IF(DemandParameters!K167>0,EXP(AverageTravelTimeModel_Constant+AverageTravelTimeModel_LogVolumeParameter*LN(DemandParameters!K167))/SecondsPerHour,0) -> 0 | AI203: =IF(INDEX(StandardDeviationTable,DemandParameters!C167,5)=0,0,ReliabilityInsuranceTime(0.99, AH203, INDEX(StandardDeviationTable,DemandParameters!C167,5), Discount_Rate)) -> 0 | AJ203: =AH203*DemandParameters!L167*IF(DemandParameters!C167=Code_Offpeak,TimeValue_Person_Offpeak,TimeValue_Person_Peak) -> 0 | AK203: =AI203*DemandParameters!L167*IF(DemandParameters!C167=Code_Offpeak,TimeValue_Person_Offpeak,TimeValue_Person_Peak) -> 0 | AL203: =AH203*DemandParameters!M167*TimeValue_Truck -> 0 | AM203: =AI203*DemandParameters!M167*TimeValue_Truck -> 0 | AN203: =AH203*DemandParameters!N167*IF(DemandParameters!C167=Code_Offpeak,TimeValue_Person_Offpeak,TimeValue_Person_Peak) -> 0 | AO203: =AI203*DemandParameters!N167*IF(DemandParameters!C167=Code_Offpeak,TimeValue_Person_Offpeak,TimeValue_Person_Peak) -> 0
A204: 2014-01-01T01:00:00 | B204: =IF(DemandParameters!G168>0,EXP(AverageTravelTimeModel_Constant+AverageTravelTimeModel_LogVolumeParameter*LN(DemandParameters!G168))/SecondsPerHour,0) ->  | C204: =IF(INDEX(StandardDeviationTable,DemandParameters!C168,1)=0,0,ReliabilityInsuranceTime(0.99, B204, INDEX(StandardDeviationTable,DemandParameters!C168,1), Discount_Rate)) -> 0 | D204: =B204*DemandParameters!H168*IF(DemandParameters!C168=Code_Offpeak,TimeValue_Person_Offpeak,TimeValue_Person_Peak) ->  | E204: =C204*DemandParameters!H168*IF(DemandParameters!C168=Code_Offpeak,TimeValue_Person_Offpeak,TimeValue_Person_Peak) ->  | F204: =B204*DemandParameters!I168*TimeValue_Truck ->  | G204: =C204*DemandParameters!I168*TimeValue_Truck ->  | H204: =B204*DemandParameters!J168*IF(DemandParameters!C168=Code_Offpeak,TimeValue_Person_Offpeak,TimeValue_Person_Peak) ->  | I204: =C204*DemandParameters!J168*IF(DemandParameters!C168=Code_Offpeak,TimeValue_Person_Offpeak,TimeValue_Person_Peak) -> 0 | AH204: =IF(DemandParameters!K168>0,EXP(AverageTravelTimeModel_Constant+AverageTravelTimeModel_LogVolumeParameter*LN(DemandParameters!K168))/SecondsPerHour,0) -> 0 | AI204: =IF(INDEX(StandardDeviationTable,DemandParameters!C168,5)=0,0,ReliabilityInsuranceTime(0.99, AH204, INDEX(StandardDeviationTable,DemandParameters!C168,5), Discount_Rate)) -> 0 | AJ204: =AH204*DemandParameters!L168*IF(DemandParameters!C168=Code_Offpeak,TimeValue_Person_Offpeak,TimeValue_Person_Peak) -> 0 | AK204: =AI204*DemandParameters!L168*IF(DemandParameters!C168=Code_Offpeak,TimeValue_Person_Offpeak,TimeValue_Person_Peak) -> 0 | AL204: =AH204*DemandParameters!M168*TimeValue_Truck -> 0 | AM204: =AI204*DemandParameters!M168*TimeValue_Truck -> 0 | AN204: =AH204*DemandParameters!N168*IF(DemandParameters!C168=Code_Offpeak,TimeValue_Person_Offpeak,TimeValue_Person_Peak) -> 0 | AO204: =AI204*DemandParameters!N168*IF(DemandParameters!C168=Code_Offpeak,TimeValue_Person_Offpeak,TimeValue_Person_Peak) -> 0
A205: 2014-01-01T02:00:00 | B205: =IF(DemandParameters!G169>0,EXP(AverageTravelTimeModel_Constant+AverageTravelTimeModel_LogVolumeParameter*LN(DemandParameters!G169))/SecondsPerHour,0) ->  | C205: =IF(INDEX(StandardDeviationTable,DemandParameters!C169,1)=0,0,ReliabilityInsuranceTime(0.99, B205, INDEX(StandardDeviationTable,DemandParameters!C169,1), Discount_Rate)) -> 0 | D205: =B205*DemandParameters!H169*IF(DemandParameters!C169=Code_Offpeak,TimeValue_Person_Offpeak,TimeValue_Person_Peak) ->  | E205: =C205*DemandParameters!H169*IF(DemandParameters!C169=Code_Offpeak,TimeValue_Person_Offpeak,TimeValue_Person_Peak) ->  | F205: =B205*DemandParameters!I169*TimeValue_Truck ->  | G205: =C205*DemandParameters!I169*TimeValue_Truck ->  | H205: =B205*DemandParameters!J169*IF(DemandParameters!C169=Code_Offpeak,TimeValue_Person_Offpeak,TimeValue_Person_Peak) ->  | I205: =C205*DemandParameters!J169*IF(DemandParameters!C169=Code_Offpeak,TimeValue_Person_Offpeak,TimeValue_Person_Peak) -> 0 | AH205: =IF(DemandParameters!K169>0,EXP(AverageTravelTimeModel_Constant+AverageTravelTimeModel_LogVolumeParameter*LN(DemandParameters!K169))/SecondsPerHour,0) -> 0 | AI205: =IF(INDEX(StandardDeviationTable,DemandParameters!C169,5)=0,0,ReliabilityInsuranceTime(0.99, AH205, INDEX(StandardDeviationTable,DemandParameters!C169,5), Discount_Rate)) -> 0 | AJ205: =AH205*DemandParameters!L169*IF(DemandParameters!C169=Code_Offpeak,TimeValue_Person_Offpeak,TimeValue_Person_Peak) -> 0 | AK205: =AI205*DemandParameters!L169*IF(DemandParameters!C169=Code_Offpeak,TimeValue_Person_Offpeak,TimeValue_Person_Peak) -> 0 | AL205: =AH205*DemandParameters!M169*TimeValue_Truck -> 0 | AM205: =AI205*DemandParameters!M169*TimeValue_Truck -> 0 | AN205: =AH205*DemandParameters!N169*IF(DemandParameters!C169=Code_Offpeak,TimeValue_Person_Offpeak,TimeValue_Person_Peak) -> 0 | AO205: =AI205*DemandParameters!N169*IF(DemandParameters!C169=Code_Offpeak,TimeValue_Person_Offpeak,TimeValue_Person_Peak) -> 0
A206: 2014-01-01T03:00:00 | B206: =IF(DemandParameters!G170>0,EXP(AverageTravelTimeModel_Constant+AverageTravelTimeModel_LogVolumeParameter*LN(DemandParameters!G170))/SecondsPerHour,0) ->  | C206: =IF(INDEX(StandardDeviationTable,DemandParameters!C170,1)=0,0,ReliabilityInsuranceTime(0.99, B206, INDEX(StandardDeviationTable,DemandParameters!C170,1), Discount_Rate)) -> 0 | D206: =B206*DemandParameters!H170*IF(DemandParameters!C170=Code_Offpeak,TimeValue_Person_Offpeak,TimeValue_Person_Peak) ->  | E206: =C206*DemandParameters!H170*IF(DemandParameters!C170=Code_Offpeak,TimeValue_Person_Offpeak,TimeValue_Person_Peak) ->  | F206: =B206*DemandParameters!I170*TimeValue_Truck ->  | G206: =C206*DemandParameters!I170*TimeValue_Truck ->  | H206: =B206*DemandParameters!J170*IF(DemandParameters!C170=Code_Offpeak,TimeValue_Person_Offpeak,TimeValue_Person_Peak) ->  | I206: =C206*DemandParameters!J170*IF(DemandParameters!C170=Code_Offpeak,TimeValue_Person_Offpeak,TimeValue_Person_Peak) -> 0 | AH206: =IF(DemandParameters!K170>0,EXP(AverageTravelTimeModel_Constant+AverageTravelTimeModel_LogVolumeParameter*LN(DemandParameters!K170))/SecondsPerHour,0) -> 0 | AI206: =IF(INDEX(StandardDeviationTable,DemandParameters!C170,5)=0,0,ReliabilityInsuranceTime(0.99, AH206, INDEX(StandardDeviationTable,DemandParameters!C170,5), Discount_Rate)) -> 0 | AJ206: =AH206*DemandParameters!L170*IF(DemandParameters!C170=Code_Offpeak,TimeValue_Person_Offpeak,TimeValue_Person_Peak) -> 0 | AK206: =AI206*DemandParameters!L170*IF(DemandParameters!C170=Code_Offpeak,TimeValue_Person_Offpeak,TimeValue_Person_Peak) -> 0 | AL206: =AH206*DemandParameters!M170*TimeValue_Truck -> 0 | AM206: =AI206*DemandParameters!M170*TimeValue_Truck -> 0 | AN206: =AH206*DemandParameters!N170*IF(DemandParameters!C170=Code_Offpeak,TimeValue_Person_Offpeak,TimeValue_Person_Peak) -> 0 | AO206: =AI206*DemandParameters!N170*IF(DemandParameters!C170=Code_Offpeak,TimeValue_Person_Offpeak,TimeValue_Person_Peak) -> 0
A207: 2014-01-01T04:00:00 | B207: =IF(DemandParameters!G171>0,EXP(AverageTravelTimeModel_Constant+AverageTravelTimeModel_LogVolumeParameter*LN(DemandParameters!G171))/SecondsPerHour,0) ->  | C207: =IF(INDEX(StandardDeviationTable,DemandParameters!C171,1)=0,0,ReliabilityInsuranceTime(0.99, B207, INDEX(StandardDeviationTable,DemandParameters!C171,1), Discount_Rate)) -> 0 | D207: =B207*DemandParameters!H171*IF(DemandParameters!C171=Code_Offpeak,TimeValue_Person_Offpeak,TimeValue_Person_Peak) ->  | E207: =C207*DemandParameters!H171*IF(DemandParameters!C171=Code_Offpeak,TimeValue_Person_Offpeak,TimeValue_Person_Peak) ->  | F207: =B207*DemandParameters!I171*TimeValue_Truck ->  | G207: =C207*DemandParameters!I171*TimeValue_Truck ->  | H207: =B207*DemandParameters!J171*IF(DemandParameters!C171=Code_Offpeak,TimeValue_Person_Offpeak,TimeValue_Person_Peak) ->  | I207: =C207*DemandParameters!J171*IF(DemandParameters!C171=Code_Offpeak,TimeValue_Person_Offpeak,TimeValue_Person_Peak) -> 0 | AH207: =IF(DemandParameters!K171>0,EXP(AverageTravelTimeModel_Constant+AverageTravelTimeModel_LogVolumeParameter*LN(DemandParameters!K171))/SecondsPerHour,0) -> 0 | AI207: =IF(INDEX(StandardDeviationTable,DemandParameters!C171,5)=0,0,ReliabilityInsuranceTime(0.99, AH207, INDEX(StandardDeviationTable,DemandParameters!C171,5), Discount_Rate)) -> 0 | AJ207: =AH207*DemandParameters!L171*IF(DemandParameters!C171=Code_Offpeak,TimeValue_Person_Offpeak,TimeValue_Person_Peak) -> 0 | AK207: =AI207*DemandParameters!L171*IF(DemandParameters!C171=Code_Offpeak,TimeValue_Person_Offpeak,TimeValue_Person_Peak) -> 0 | AL207: =AH207*DemandParameters!M171*TimeValue_Truck -> 0 | AM207: =AI207*DemandParameters!M171*TimeValue_Truck -> 0 | AN207: =AH207*DemandParameters!N171*IF(DemandParameters!C171=Code_Offpeak,TimeValue_Person_Offpeak,TimeValue_Person_Peak) -> 0 | AO207: =AI207*DemandParameters!N171*IF(DemandParameters!C171=Code_Offpeak,TimeValue_Person_Offpeak,TimeValue_Person_Peak) -> 0
A208: 2014-01-01T05:00:00 | B208: =IF(DemandParameters!G172>0,EXP(AverageTravelTimeModel_Constant+AverageTravelTimeModel_LogVolumeParameter*LN(DemandParameters!G172))/SecondsPerHour,0) ->  | C208: =IF(INDEX(StandardDeviationTable,DemandParameters!C172,1)=0,0,ReliabilityInsuranceTime(0.99, B208, INDEX(StandardDeviationTable,DemandParameters!C172,1), Discount_Rate)) -> 0 | D208: =B208*DemandParameters!H172*IF(DemandParameters!C172=Code_Offpeak,TimeValue_Person_Offpeak,TimeValue_Person_Peak) ->  | E208: =C208*DemandParameters!H172*IF(DemandParameters!C172=Code_Offpeak,TimeValue_Person_Offpeak,TimeValue_Person_Peak) ->  | F208: =B208*DemandParameters!I172*TimeValue_Truck ->  | G208: =C208*DemandParameters!I172*TimeValue_Truck ->  | H208: =B208*DemandParameters!J172*IF(DemandParameters!C172=Code_Offpeak,TimeValue_Person_Offpeak,TimeValue_Person_Peak) ->  | I208: =C208*DemandParameters!J172*IF(DemandParameters!C172=Code_Offpeak,TimeValue_Person_Offpeak,TimeValue_Person_Peak) -> 0 | AH208: =IF(DemandParameters!K172>0,EXP(AverageTravelTimeModel_Constant+AverageTravelTimeModel_LogVolumeParameter*LN(DemandParameters!K172))/SecondsPerHour,0) -> 0 | AI208: =IF(INDEX(StandardDeviationTable,DemandParameters!C172,5)=0,0,ReliabilityInsuranceTime(0.99, AH208, INDEX(StandardDeviationTable,DemandParameters!C172,5), Discount_Rate)) -> 0 | AJ208: =AH208*DemandParameters!L172*IF(DemandParameters!C172=Code_Offpeak,TimeValue_Person_Offpeak,TimeValue_Person_Peak) -> 0 | AK208: =AI208*DemandParameters!L172*IF(DemandParameters!C172=Code_Offpeak,TimeValue_Person_Offpeak,TimeValue_Person_Peak) -> 0 | AL208: =AH208*DemandParameters!M172*TimeValue_Truck -> 0 | AM208: =AI208*DemandParameters!M172*TimeValue_Truck -> 0 | AN208: =AH208*DemandParameters!N172*IF(DemandParameters!C172=Code_Offpeak,TimeValue_Person_Offpeak,TimeValue_Person_Peak) -> 0 | AO208: =AI208*DemandParameters!N172*IF(DemandParameters!C172=Code_Offpeak,TimeValue_Person_Offpeak,TimeValue_Person_Peak) -> 0
A209: 2014-01-01T06:00:00 | B209: =IF(DemandParameters!G173>0,EXP(AverageTravelTimeModel_Constant+AverageTravelTimeModel_LogVolumeParameter*LN(DemandParameters!G173))/SecondsPerHour,0) ->  | C209: =IF(INDEX(StandardDeviationTable,DemandParameters!C173,1)=0,0,ReliabilityInsuranceTime(0.99, B209, INDEX(StandardDeviationTable,DemandParameters!C173,1), Discount_Rate)) -> 0 | D209: =B209*DemandParameters!H173*IF(DemandParameters!C173=Code_Offpeak,TimeValue_Person_Offpeak,TimeValue_Person_Peak) ->  | E209: =C209*DemandParameters!H173*IF(DemandParameters!C173=Code_Offpeak,TimeValue_Person_Offpeak,TimeValue_Person_Peak) ->  | F209: =B209*DemandParameters!I173*TimeValue_Truck ->  | G209: =C209*DemandParameters!I173*TimeValue_Truck ->  | H209: =B209*DemandParameters!J173*IF(DemandParameters!C173=Code_Offpeak,TimeValue_Person_Offpeak,TimeValue_Person_Peak) ->  | I209: =C209*DemandParameters!J173*IF(DemandParameters!C173=Code_Offpeak,TimeValue_Person_Offpeak,TimeValue_Person_Peak) -> 0 | AH209: =IF(DemandParameters!K173>0,EXP(AverageTravelTimeModel_Constant+AverageTravelTimeModel_LogVolumeParameter*LN(DemandParameters!K173))/SecondsPerHour,0) -> 0 | AI209: =IF(INDEX(StandardDeviationTable,DemandParameters!C173,5)=0,0,ReliabilityInsuranceTime(0.99, AH209, INDEX(StandardDeviationTable,DemandParameters!C173,5), Discount_Rate)) -> 0 | AJ209: =AH209*DemandParameters!L173*IF(DemandParameters!C173=Code_Offpeak,TimeValue_Person_Offpeak,TimeValue_Person_Peak) -> 0 | AK209: =AI209*DemandParameters!L173*IF(DemandParameters!C173=Code_Offpeak,TimeValue_Person_Offpeak,TimeValue_Person_Peak) -> 0 | AL209: =AH209*DemandParameters!M173*TimeValue_Truck -> 0 | AM209: =AI209*DemandParameters!M173*TimeValue_Truck -> 0 | AN209: =AH209*DemandParameters!N173*IF(DemandParameters!C173=Code_Offpeak,TimeValue_Person_Offpeak,TimeValue_Person_Peak) -> 0 | AO209: =AI209*DemandParameters!N173*IF(DemandParameters!C173=Code_Offpeak,TimeValue_Person_Offpeak,TimeValue_Person_Peak) -> 0
A210: 2014-01-01T07:00:00 | B210: =IF(DemandParameters!G174>0,EXP(AverageTravelTimeModel_Constant+AverageTravelTimeModel_LogVolumeParameter*LN(DemandParameters!G174))/SecondsPerHour,0) ->  | C210: =IF(INDEX(StandardDeviationTable,DemandParameters!C174,1)=0,0,ReliabilityInsuranceTime(0.99, B210, INDEX(StandardDeviationTable,DemandParameters!C174,1), Discount_Rate)) -> 0 | D210: =B210*DemandParameters!H174*IF(DemandParameters!C174=Code_Offpeak,TimeValue_Person_Offpeak,TimeValue_Person_Peak) ->  | E210: =C210*DemandParameters!H174*IF(DemandParameters!C174=Code_Offpeak,TimeValue_Person_Offpeak,TimeValue_Person_Peak) ->  | F210: =B210*DemandParameters!I174*TimeValue_Truck ->  | G210: =C210*DemandParameters!I174*TimeValue_Truck ->  | H210: =B210*DemandParameters!J174*IF(DemandParameters!C174=Code_Offpeak,TimeValue_Person_Offpeak,TimeValue_Person_Peak) ->  | I210: =C210*DemandParameters!J174*IF(DemandParameters!C174=Code_Offpeak,TimeValue_Person_Offpeak,TimeValue_Person_Peak) -> 0 | AH210: =IF(DemandParameters!K174>0,EXP(AverageTravelTimeModel_Constant+AverageTravelTimeModel_LogVolumeParameter*LN(DemandParameters!K174))/SecondsPerHour,0) -> 0 | AI210: =IF(INDEX(StandardDeviationTable,DemandParameters!C174,5)=0,0,ReliabilityInsuranceTime(0.99, AH210, INDEX(StandardDeviationTable,DemandParameters!C174,5), Discount_Rate)) -> 0 | AJ210: =AH210*DemandParameters!L174*IF(DemandParameters!C174=Code_Offpeak,TimeValue_Person_Offpeak,TimeValue_Person_Peak) -> 0 | AK210: =AI210*DemandParameters!L174*IF(DemandParameters!C174=Code_Offpeak,TimeValue_Person_Offpeak,TimeValue_Person_Peak) -> 0 | AL210: =AH210*DemandParameters!M174*TimeValue_Truck -> 0 | AM210: =AI210*DemandParameters!M174*TimeValue_Truck -> 0 | AN210: =AH210*DemandParameters!N174*IF(DemandParameters!C174=Code_Offpeak,TimeValue_Person_Offpeak,TimeValue_Person_Peak) -> 0 | AO210: =AI210*DemandParameters!N174*IF(DemandParameters!C174=Code_Offpeak,TimeValue_Person_Offpeak,TimeValue_Person_Peak) -> 0
A211: 2014-01-01T08:00:00 | B211: =IF(DemandParameters!G175>0,EXP(AverageTravelTimeModel_Constant+AverageTravelTimeModel_LogVolumeParameter*LN(DemandParameters!G175))/SecondsPerHour,0) ->  | C211: =IF(INDEX(StandardDeviationTable,DemandParameters!C175,1)=0,0,ReliabilityInsuranceTime(0.99, B211, INDEX(StandardDeviationTable,DemandParameters!C175,1), Discount_Rate)) -> 0 | D211: =B211*DemandParameters!H175*IF(DemandParameters!C175=Code_Offpeak,TimeValue_Person_Offpeak,TimeValue_Person_Peak) ->  | E211: =C211*DemandParameters!H175*IF(DemandParameters!C175=Code_Offpeak,TimeValue_Person_Offpeak,TimeValue_Person_Peak) ->  | F211: =B211*DemandParameters!I175*TimeValue_Truck ->  | G211: =C211*DemandParameters!I175*TimeValue_Truck ->  | H211: =B211*DemandParameters!J175*IF(DemandParameters!C175=Code_Offpeak,TimeValue_Person_Offpeak,TimeValue_Person_Peak) ->  | I211: =C211*DemandParameters!J175*IF(DemandParameters!C175=Code_Offpeak,TimeValue_Person_Offpeak,TimeValue_Person_Peak) -> 0 | AH211: =IF(DemandParameters!K175>0,EXP(AverageTravelTimeModel_Constant+AverageTravelTimeModel_LogVolumeParameter*LN(DemandParameters!K175))/SecondsPerHour,0) -> 0 | AI211: =IF(INDEX(StandardDeviationTable,DemandParameters!C175,5)=0,0,ReliabilityInsuranceTime(0.99, AH211, INDEX(StandardDeviationTable,DemandParameters!C175,5), Discount_Rate)) -> 0 | AJ211: =AH211*DemandParameters!L175*IF(DemandParameters!C175=Code_Offpeak,TimeValue_Person_Offpeak,TimeValue_Person_Peak) -> 0 | AK211: =AI211*DemandParameters!L175*IF(DemandParameters!C175=Code_Offpeak,TimeValue_Person_Offpeak,TimeValue_Person_Peak) -> 0 | AL211: =AH211*DemandParameters!M175*TimeValue_Truck -> 0 | AM211: =AI211*DemandParameters!M175*TimeValue_Truck -> 0 | AN211: =AH211*DemandParameters!N175*IF(DemandParameters!C175=Code_Offpeak,TimeValue_Person_Offpeak,TimeValue_Person_Peak) -> 0 | AO211: =AI211*DemandParameters!N175*IF(DemandParameters!C175=Code_Offpeak,TimeValue_Person_Offpeak,TimeValue_Person_Peak) -> 0
A212: 2014-01-01T09:00:00 | B212: =IF(DemandParameters!G176>0,EXP(AverageTravelTimeModel_Constant+AverageTravelTimeModel_LogVolumeParameter*LN(DemandParameters!G176))/SecondsPerHour,0) ->  | C212: =IF(INDEX(StandardDeviationTable,DemandParameters!C176,1)=0,0,ReliabilityInsuranceTime(0.99, B212, INDEX(StandardDeviationTable,DemandParameters!C176,1), Discount_Rate)) -> 0 | D212: =B212*DemandParameters!H176*IF(DemandParameters!C176=Code_Offpeak,TimeValue_Person_Offpeak,TimeValue_Person_Peak) ->  | E212: =C212*DemandParameters!H176*IF(DemandParameters!C176=Code_Offpeak,TimeValue_Person_Offpeak,TimeValue_Person_Peak) ->  | F212: =B212*DemandParameters!I176*TimeValue_Truck ->  | G212: =C212*DemandParameters!I176*TimeValue_Truck ->  | H212: =B212*DemandParameters!J176*IF(DemandParameters!C176=Code_Offpeak,TimeValue_Person_Offpeak,TimeValue_Person_Peak) ->  | I212: =C212*DemandParameters!J176*IF(DemandParameters!C176=Code_Offpeak,TimeValue_Person_Offpeak,TimeValue_Person_Peak) -> 0 | AH212: =IF(DemandParameters!K176>0,EXP(AverageTravelTimeModel_Constant+AverageTravelTimeModel_LogVolumeParameter*LN(DemandParameters!K176))/SecondsPerHour,0) -> 0 | AI212: =IF(INDEX(StandardDeviationTable,DemandParameters!C176,5)=0,0,ReliabilityInsuranceTime(0.99, AH212, INDEX(StandardDeviationTable,DemandParameters!C176,5), Discount_Rate)) -> 0 | AJ212: =AH212*DemandParameters!L176*IF(DemandParameters!C176=Code_Offpeak,TimeValue_Person_Offpeak,TimeValue_Person_Peak) -> 0 | AK212: =AI212*DemandParameters!L176*IF(DemandParameters!C176=Code_Offpeak,TimeValue_Person_Offpeak,TimeValue_Person_Peak) -> 0 | AL212: =AH212*DemandParameters!M176*TimeValue_Truck -> 0 | AM212: =AI212*DemandParameters!M176*TimeValue_Truck -> 0 | AN212: =AH212*DemandParameters!N176*IF(DemandParameters!C176=Code_Offpeak,TimeValue_Person_Offpeak,TimeValue_Person_Peak) -> 0 | AO212: =AI212*DemandParameters!N176*IF(DemandParameters!C176=Code_Offpeak,TimeValue_Person_Offpeak,TimeValue_Person_Peak) -> 0
A213: 2014-01-01T10:00:00 | B213: =IF(DemandParameters!G177>0,EXP(AverageTravelTimeModel_Constant+AverageTravelTimeModel_LogVolumeParameter*LN(DemandParameters!G177))/SecondsPerHour,0) ->  | C213: =IF(INDEX(StandardDeviationTable,DemandParameters!C177,1)=0,0,ReliabilityInsuranceTime(0.99, B213, INDEX(StandardDeviationTable,DemandParameters!C177,1), Discount_Rate)) -> 0 | D213: =B213*DemandParameters!H177*IF(DemandParameters!C177=Code_Offpeak,TimeValue_Person_Offpeak,TimeValue_Person_Peak) ->  | E213: =C213*DemandParameters!H177*IF(DemandParameters!C177=Code_Offpeak,TimeValue_Person_Offpeak,TimeValue_Person_Peak) ->  | F213: =B213*DemandParameters!I177*TimeValue_Truck ->  | G213: =C213*DemandParameters!I177*TimeValue_Truck ->  | H213: =B213*DemandParameters!J177*IF(DemandParameters!C177=Code_Offpeak,TimeValue_Person_Offpeak,TimeValue_Person_Peak) ->  | I213: =C213*DemandParameters!J177*IF(DemandParameters!C177=Code_Offpeak,TimeValue_Person_Offpeak,TimeValue_Person_Peak) -> 0 | AH213: =IF(DemandParameters!K177>0,EXP(AverageTravelTimeModel_Constant+AverageTravelTimeModel_LogVolumeParameter*LN(DemandParameters!K177))/SecondsPerHour,0) -> 0 | AI213: =IF(INDEX(StandardDeviationTable,DemandParameters!C177,5)=0,0,ReliabilityInsuranceTime(0.99, AH213, INDEX(StandardDeviationTable,DemandParameters!C177,5), Discount_Rate)) -> 0 | AJ213: =AH213*DemandParameters!L177*IF(DemandParameters!C177=Code_Offpeak,TimeValue_Person_Offpeak,TimeValue_Person_Peak) -> 0 | AK213: =AI213*DemandParameters!L177*IF(DemandParameters!C177=Code_Offpeak,TimeValue_Person_Offpeak,TimeValue_Person_Peak) -> 0 | AL213: =AH213*DemandParameters!M177*TimeValue_Truck -> 0 | AM213: =AI213*DemandParameters!M177*TimeValue_Truck -> 0 | AN213: =AH213*DemandParameters!N177*IF(DemandParameters!C177=Code_Offpeak,TimeValue_Person_Offpeak,TimeValue_Person_Peak) -> 0 | AO213: =AI213*DemandParameters!N177*IF(DemandParameters!C177=Code_Offpeak,TimeValue_Person_Offpeak,TimeValue_Person_Peak) -> 0
A214: 2014-01-01T11:00:00 | B214: =IF(DemandParameters!G178>0,EXP(AverageTravelTimeModel_Constant+AverageTravelTimeModel_LogVolumeParameter*LN(DemandParameters!G178))/SecondsPerHour,0) ->  | C214: =IF(INDEX(StandardDeviationTable,DemandParameters!C178,1)=0,0,ReliabilityInsuranceTime(0.99, B214, INDEX(StandardDeviationTable,DemandParameters!C178,1), Discount_Rate)) -> 0 | D214: =B214*DemandParameters!H178*IF(DemandParameters!C178=Code_Offpeak,TimeValue_Person_Offpeak,TimeValue_Person_Peak) ->  | E214: =C214*DemandParameters!H178*IF(DemandParameters!C178=Code_Offpeak,TimeValue_Person_Offpeak,TimeValue_Person_Peak) ->  | F214: =B214*DemandParameters!I178*TimeValue_Truck ->  | G214: =C214*DemandParameters!I178*TimeValue_Truck ->  | H214: =B214*DemandParameters!J178*IF(DemandParameters!C178=Code_Offpeak,TimeValue_Person_Offpeak,TimeValue_Person_Peak) ->  | I214: =C214*DemandParameters!J178*IF(DemandParameters!C178=Code_Offpeak,TimeValue_Person_Offpeak,TimeValue_Person_Peak) -> 0 | AH214: =IF(DemandParameters!K178>0,EXP(AverageTravelTimeModel_Constant+AverageTravelTimeModel_LogVolumeParameter*LN(DemandParameters!K178))/SecondsPerHour,0) -> 0 | AI214: =IF(INDEX(StandardDeviationTable,DemandParameters!C178,5)=0,0,ReliabilityInsuranceTime(0.99, AH214, INDEX(StandardDeviationTable,DemandParameters!C178,5), Discount_Rate)) -> 0 | AJ214: =AH214*DemandParameters!L178*IF(DemandParameters!C178=Code_Offpeak,TimeValue_Person_Offpeak,TimeValue_Person_Peak) -> 0 | AK214: =AI214*DemandParameters!L178*IF(DemandParameters!C178=Code_Offpeak,TimeValue_Person_Offpeak,TimeValue_Person_Peak) -> 0 | AL214: =AH214*DemandParameters!M178*TimeValue_Truck -> 0 | AM214: =AI214*DemandParameters!M178*TimeValue_Truck -> 0 | AN214: =AH214*DemandParameters!N178*IF(DemandParameters!C178=Code_Offpeak,TimeValue_Person_Offpeak,TimeValue_Person_Peak) -> 0 | AO214: =AI214*DemandParameters!N178*IF(DemandParameters!C178=Code_Offpeak,TimeValue_Person_Offpeak,TimeValue_Person_Peak) -> 0
A215: 2014-01-01T12:00:00 | B215: =IF(DemandParameters!G179>0,EXP(AverageTravelTimeModel_Constant+AverageTravelTimeModel_LogVolumeParameter*LN(DemandParameters!G179))/SecondsPerHour,0) ->  | C215: =IF(INDEX(StandardDeviationTable,DemandParameters!C179,1)=0,0,ReliabilityInsuranceTime(0.99, B215, INDEX(StandardDeviationTable,DemandParameters!C179,1), Discount_Rate)) -> 0 | D215: =B215*DemandParameters!H179*IF(DemandParameters!C179=Code_Offpeak,TimeValue_Person_Offpeak,TimeValue_Person_Peak) ->  | E215: =C215*DemandParameters!H179*IF(DemandParameters!C179=Code_Offpeak,TimeValue_Person_Offpeak,TimeValue_Person_Peak) ->  | F215: =B215*DemandParameters!I179*TimeValue_Truck ->  | G215: =C215*DemandParameters!I179*TimeValue_Truck ->  | H215: =B215*DemandParameters!J179*IF(DemandParameters!C179=Code_Offpeak,TimeValue_Person_Offpeak,TimeValue_Person_Peak) ->  | I215: =C215*DemandParameters!J179*IF(DemandParameters!C179=Code_Offpeak,TimeValue_Person_Offpeak,TimeValue_Person_Peak) -> 0 | AH215: =IF(DemandParameters!K179>0,EXP(AverageTravelTimeModel_Constant+AverageTravelTimeModel_LogVolumeParameter*LN(DemandParameters!K179))/SecondsPerHour,0) -> 0 | AI215: =IF(INDEX(StandardDeviationTable,DemandParameters!C179,5)=0,0,ReliabilityInsuranceTime(0.99, AH215, INDEX(StandardDeviationTable,DemandParameters!C179,5), Discount_Rate)) -> 0 | AJ215: =AH215*DemandParameters!L179*IF(DemandParameters!C179=Code_Offpeak,TimeValue_Person_Offpeak,TimeValue_Person_Peak) -> 0 | AK215: =AI215*DemandParameters!L179*IF(DemandParameters!C179=Code_Offpeak,TimeValue_Person_Offpeak,TimeValue_Person_Peak) -> 0 | AL215: =AH215*DemandParameters!M179*TimeValue_Truck -> 0 | AM215: =AI215*DemandParameters!M179*TimeValue_Truck -> 0 | AN215: =AH215*DemandParameters!N179*IF(DemandParameters!C179=Code_Offpeak,TimeValue_Person_Offpeak,TimeValue_Person_Peak) -> 0 | AO215: =AI215*DemandParameters!N179*IF(DemandParameters!C179=Code_Offpeak,TimeValue_Person_Offpeak,TimeValue_Person_Peak) -> 0
A216: 2014-01-01T13:00:00 | B216: =IF(DemandParameters!G180>0,EXP(AverageTravelTimeModel_Constant+AverageTravelTimeModel_LogVolumeParameter*LN(DemandParameters!G180))/SecondsPerHour,0) ->  | C216: =IF(INDEX(StandardDeviationTable,DemandParameters!C180,1)=0,0,ReliabilityInsuranceTime(0.99, B216, INDEX(StandardDeviationTable,DemandParameters!C180,1), Discount_Rate)) -> 0 | D216: =B216*DemandParameters!H180*IF(DemandParameters!C180=Code_Offpeak,TimeValue_Person_Offpeak,TimeValue_Person_Peak) ->  | E216: =C216*DemandParameters!H180*IF(DemandParameters!C180=Code_Offpeak,TimeValue_Person_Offpeak,TimeValue_Person_Peak) ->  | F216: =B216*DemandParameters!I180*TimeValue_Truck ->  | G216: =C216*DemandParameters!I180*TimeValue_Truck ->  | H216: =B216*DemandParameters!J180*IF(DemandParameters!C180=Code_Offpeak,TimeValue_Person_Offpeak,TimeValue_Person_Peak) ->  | I216: =C216*DemandParameters!J180*IF(DemandParameters!C180=Code_Offpeak,TimeValue_Person_Offpeak,TimeValue_Person_Peak) -> 0 | AH216: =IF(DemandParameters!K180>0,EXP(AverageTravelTimeModel_Constant+AverageTravelTimeModel_LogVolumeParameter*LN(DemandParameters!K180))/SecondsPerHour,0) -> 0 | AI216: =IF(INDEX(StandardDeviationTable,DemandParameters!C180,5)=0,0,ReliabilityInsuranceTime(0.99, AH216, INDEX(StandardDeviationTable,DemandParameters!C180,5), Discount_Rate)) -> 0 | AJ216: =AH216*DemandParameters!L180*IF(DemandParameters!C180=Code_Offpeak,TimeValue_Person_Offpeak,TimeValue_Person_Peak) -> 0 | AK216: =AI216*DemandParameters!L180*IF(DemandParameters!C180=Code_Offpeak,TimeValue_Person_Offpeak,TimeValue_Person_Peak) -> 0 | AL216: =AH216*DemandParameters!M180*TimeValue_Truck -> 0 | AM216: =AI216*DemandParameters!M180*TimeValue_Truck -> 0 | AN216: =AH216*DemandParameters!N180*IF(DemandParameters!C180=Code_Offpeak,TimeValue_Person_Offpeak,TimeValue_Person_Peak) -> 0 | AO216: =AI216*DemandParameters!N180*IF(DemandParameters!C180=Code_Offpeak,TimeValue_Person_Offpeak,TimeValue_Person_Peak) -> 0
A217: 2014-01-01T14:00:00 | B217: =IF(DemandParameters!G181>0,EXP(AverageTravelTimeModel_Constant+AverageTravelTimeModel_LogVolumeParameter*LN(DemandParameters!G181))/SecondsPerHour,0) ->  | C217: =IF(INDEX(StandardDeviationTable,DemandParameters!C181,1)=0,0,ReliabilityInsuranceTime(0.99, B217, INDEX(StandardDeviationTable,DemandParameters!C181,1), Discount_Rate)) -> 0 | D217: =B217*DemandParameters!H181*IF(DemandParameters!C181=Code_Offpeak,TimeValue_Person_Offpeak,TimeValue_Person_Peak) ->  | E217: =C217*DemandParameters!H181*IF(DemandParameters!C181=Code_Offpeak,TimeValue_Person_Offpeak,TimeValue_Person_Peak) ->  | F217: =B217*DemandParameters!I181*TimeValue_Truck ->  | G217: =C217*DemandParameters!I181*TimeValue_Truck ->  | H217: =B217*DemandParameters!J181*IF(DemandParameters!C181=Code_Offpeak,TimeValue_Person_Offpeak,TimeValue_Person_Peak) ->  | I217: =C217*DemandParameters!J181*IF(DemandParameters!C181=Code_Offpeak,TimeValue_Person_Offpeak,TimeValue_Person_Peak) -> 0 | AH217: =IF(DemandParameters!K181>0,EXP(AverageTravelTimeModel_Constant+AverageTravelTimeModel_LogVolumeParameter*LN(DemandParameters!K181))/SecondsPerHour,0) -> 0 | AI217: =IF(INDEX(StandardDeviationTable,DemandParameters!C181,5)=0,0,ReliabilityInsuranceTime(0.99, AH217, INDEX(StandardDeviationTable,DemandParameters!C181,5), Discount_Rate)) -> 0 | AJ217: =AH217*DemandParameters!L181*IF(DemandParameters!C181=Code_Offpeak,TimeValue_Person_Offpeak,TimeValue_Person_Peak) -> 0 | AK217: =AI217*DemandParameters!L181*IF(DemandParameters!C181=Code_Offpeak,TimeValue_Person_Offpeak,TimeValue_Person_Peak) -> 0 | AL217: =AH217*DemandParameters!M181*TimeValue_Truck -> 0 | AM217: =AI217*DemandParameters!M181*TimeValue_Truck -> 0 | AN217: =AH217*DemandParameters!N181*IF(DemandParameters!C181=Code_Offpeak,TimeValue_Person_Offpeak,TimeValue_Person_Peak) -> 0 | AO217: =AI217*DemandParameters!N181*IF(DemandParameters!C181=Code_Offpeak,TimeValue_Person_Offpeak,TimeValue_Person_Peak) -> 0
A218: 2014-01-01T15:00:00 | B218: =IF(DemandParameters!G182>0,EXP(AverageTravelTimeModel_Constant+AverageTravelTimeModel_LogVolumeParameter*LN(DemandParameters!G182))/SecondsPerHour,0) ->  | C218: =IF(INDEX(StandardDeviationTable,DemandParameters!C182,1)=0,0,ReliabilityInsuranceTime(0.99, B218, INDEX(StandardDeviationTable,DemandParameters!C182,1), Discount_Rate)) -> 0 | D218: =B218*DemandParameters!H182*IF(DemandParameters!C182=Code_Offpeak,TimeValue_Person_Offpeak,TimeValue_Person_Peak) ->  | E218: =C218*DemandParameters!H182*IF(DemandParameters!C182=Code_Offpeak,TimeValue_Person_Offpeak,TimeValue_Person_Peak) ->  | F218: =B218*DemandParameters!I182*TimeValue_Truck ->  | G218: =C218*DemandParameters!I182*TimeValue_Truck ->  | H218: =B218*DemandParameters!J182*IF(DemandParameters!C182=Code_Offpeak,TimeValue_Person_Offpeak,TimeValue_Person_Peak) ->  | I218: =C218*DemandParameters!J182*IF(DemandParameters!C182=Code_Offpeak,TimeValue_Person_Offpeak,TimeValue_Person_Peak) -> 0 | AH218: =IF(DemandParameters!K182>0,EXP(AverageTravelTimeModel_Constant+AverageTravelTimeModel_LogVolumeParameter*LN(DemandParameters!K182))/SecondsPerHour,0) -> 0 | AI218: =IF(INDEX(StandardDeviationTable,DemandParameters!C182,5)=0,0,ReliabilityInsuranceTime(0.99, AH218, INDEX(StandardDeviationTable,DemandParameters!C182,5), Discount_Rate)) -> 0 | AJ218: =AH218*DemandParameters!L182*IF(DemandParameters!C182=Code_Offpeak,TimeValue_Person_Offpeak,TimeValue_Person_Peak) -> 0 | AK218: =AI218*DemandParameters!L182*IF(DemandParameters!C182=Code_Offpeak,TimeValue_Person_Offpeak,TimeValue_Person_Peak) -> 0 | AL218: =AH218*DemandParameters!M182*TimeValue_Truck -> 0 | AM218: =AI218*DemandParameters!M182*TimeValue_Truck -> 0 | AN218: =AH218*DemandParameters!N182*IF(DemandParameters!C182=Code_Offpeak,TimeValue_Person_Offpeak,TimeValue_Person_Peak) -> 0 | AO218: =AI218*DemandParameters!N182*IF(DemandParameters!C182=Code_Offpeak,TimeValue_Person_Offpeak,TimeValue_Person_Peak) -> 0
A219: 2014-01-01T16:00:00 | B219: =IF(DemandParameters!G183>0,EXP(AverageTravelTimeModel_Constant+AverageTravelTimeModel_LogVolumeParameter*LN(DemandParameters!G183))/SecondsPerHour,0) ->  | C219: =IF(INDEX(StandardDeviationTable,DemandParameters!C183,1)=0,0,ReliabilityInsuranceTime(0.99, B219, INDEX(StandardDeviationTable,DemandParameters!C183,1), Discount_Rate)) -> 0 | D219: =B219*DemandParameters!H183*IF(DemandParameters!C183=Code_Offpeak,TimeValue_Person_Offpeak,TimeValue_Person_Peak) ->  | E219: =C219*DemandParameters!H183*IF(DemandParameters!C183=Code_Offpeak,TimeValue_Person_Offpeak,TimeValue_Person_Peak) ->  | F219: =B219*DemandParameters!I183*TimeValue_Truck ->  | G219: =C219*DemandParameters!I183*TimeValue_Truck ->  | H219: =B219*DemandParameters!J183*IF(DemandParameters!C183=Code_Offpeak,TimeValue_Person_Offpeak,TimeValue_Person_Peak) ->  | I219: =C219*DemandParameters!J183*IF(DemandParameters!C183=Code_Offpeak,TimeValue_Person_Offpeak,TimeValue_Person_Peak) -> 0 | AH219: =IF(DemandParameters!K183>0,EXP(AverageTravelTimeModel_Constant+AverageTravelTimeModel_LogVolumeParameter*LN(DemandParameters!K183))/SecondsPerHour,0) -> 0 | AI219: =IF(INDEX(StandardDeviationTable,DemandParameters!C183,5)=0,0,ReliabilityInsuranceTime(0.99, AH219, INDEX(StandardDeviationTable,DemandParameters!C183,5), Discount_Rate)) -> 0 | AJ219: =AH219*DemandParameters!L183*IF(DemandParameters!C183=Code_Offpeak,TimeValue_Person_Offpeak,TimeValue_Person_Peak) -> 0 | AK219: =AI219*DemandParameters!L183*IF(DemandParameters!C183=Code_Offpeak,TimeValue_Person_Offpeak,TimeValue_Person_Peak) -> 0 | AL219: =AH219*DemandParameters!M183*TimeValue_Truck -> 0 | AM219: =AI219*DemandParameters!M183*TimeValue_Truck -> 0 | AN219: =AH219*DemandParameters!N183*IF(DemandParameters!C183=Code_Offpeak,TimeValue_Person_Offpeak,TimeValue_Person_Peak) -> 0 | AO219: =AI219*DemandParameters!N183*IF(DemandParameters!C183=Code_Offpeak,TimeValue_Person_Offpeak,TimeValue_Person_Peak) -> 0
A220: 2014-01-01T17:00:00 | B220: =IF(DemandParameters!G184>0,EXP(AverageTravelTimeModel_Constant+AverageTravelTimeModel_LogVolumeParameter*LN(DemandParameters!G184))/SecondsPerHour,0) ->  | C220: =IF(INDEX(StandardDeviationTable,DemandParameters!C184,1)=0,0,ReliabilityInsuranceTime(0.99, B220, INDEX(StandardDeviationTable,DemandParameters!C184,1), Discount_Rate)) -> 0 | D220: =B220*DemandParameters!H184*IF(DemandParameters!C184=Code_Offpeak,TimeValue_Person_Offpeak,TimeValue_Person_Peak) ->  | E220: =C220*DemandParameters!H184*IF(DemandParameters!C184=Code_Offpeak,TimeValue_Person_Offpeak,TimeValue_Person_Peak) ->  | F220: =B220*DemandParameters!I184*TimeValue_Truck ->  | G220: =C220*DemandParameters!I184*TimeValue_Truck ->  | H220: =B220*DemandParameters!J184*IF(DemandParameters!C184=Code_Offpeak,TimeValue_Person_Offpeak,TimeValue_Person_Peak) ->  | I220: =C220*DemandParameters!J184*IF(DemandParameters!C184=Code_Offpeak,TimeValue_Person_Offpeak,TimeValue_Person_Peak) -> 0 | AH220: =IF(DemandParameters!K184>0,EXP(AverageTravelTimeModel_Constant+AverageTravelTimeModel_LogVolumeParameter*LN(DemandParameters!K184))/SecondsPerHour,0) -> 0 | AI220: =IF(INDEX(StandardDeviationTable,DemandParameters!C184,5)=0,0,ReliabilityInsuranceTime(0.99, AH220, INDEX(StandardDeviationTable,DemandParameters!C184,5), Discount_Rate)) -> 0 | AJ220: =AH220*DemandParameters!L184*IF(DemandParameters!C184=Code_Offpeak,TimeValue_Person_Offpeak,TimeValue_Person_Peak) -> 0 | AK220: =AI220*DemandParameters!L184*IF(DemandParameters!C184=Code_Offpeak,TimeValue_Person_Offpeak,TimeValue_Person_Peak) -> 0 | AL220: =AH220*DemandParameters!M184*TimeValue_Truck -> 0 | AM220: =AI220*DemandParameters!M184*TimeValue_Truck -> 0 | AN220: =AH220*DemandParameters!N184*IF(DemandParameters!C184=Code_Offpeak,TimeValue_Person_Offpeak,TimeValue_Person_Peak) -> 0 | AO220: =AI220*DemandParameters!N184*IF(DemandParameters!C184=Code_Offpeak,TimeValue_Person_Offpeak,TimeValue_Person_Peak) -> 0
A221: 2014-01-01T18:00:00 | B221: =IF(DemandParameters!G185>0,EXP(AverageTravelTimeModel_Constant+AverageTravelTimeModel_LogVolumeParameter*LN(DemandParameters!G185))/SecondsPerHour,0) ->  | C221: =IF(INDEX(StandardDeviationTable,DemandParameters!C185,1)=0,0,ReliabilityInsuranceTime(0.99, B221, INDEX(StandardDeviationTable,DemandParameters!C185,1), Discount_Rate)) -> 0 | D221: =B221*DemandParameters!H185*IF(DemandParameters!C185=Code_Offpeak,TimeValue_Person_Offpeak,TimeValue_Person_Peak) ->  | E221: =C221*DemandParameters!H185*IF(DemandParameters!C185=Code_Offpeak,TimeValue_Person_Offpeak,TimeValue_Person_Peak) ->  | F221: =B221*DemandParameters!I185*TimeValue_Truck ->  | G221: =C221*DemandParameters!I185*TimeValue_Truck ->  | H221: =B221*DemandParameters!J185*IF(DemandParameters!C185=Code_Offpeak,TimeValue_Person_Offpeak,TimeValue_Person_Peak) ->  | I221: =C221*DemandParameters!J185*IF(DemandParameters!C185=Code_Offpeak,TimeValue_Person_Offpeak,TimeValue_Person_Peak) -> 0 | AH221: =IF(DemandParameters!K185>0,EXP(AverageTravelTimeModel_Constant+AverageTravelTimeModel_LogVolumeParameter*LN(DemandParameters!K185))/SecondsPerHour,0) -> 0 | AI221: =IF(INDEX(StandardDeviationTable,DemandParameters!C185,5)=0,0,ReliabilityInsuranceTime(0.99, AH221, INDEX(StandardDeviationTable,DemandParameters!C185,5), Discount_Rate)) -> 0 | AJ221: =AH221*DemandParameters!L185*IF(DemandParameters!C185=Code_Offpeak,TimeValue_Person_Offpeak,TimeValue_Person_Peak) -> 0 | AK221: =AI221*DemandParameters!L185*IF(DemandParameters!C185=Code_Offpeak,TimeValue_Person_Offpeak,TimeValue_Person_Peak) -> 0 | AL221: =AH221*DemandParameters!M185*TimeValue_Truck -> 0 | AM221: =AI221*DemandParameters!M185*TimeValue_Truck -> 0 | AN221: =AH221*DemandParameters!N185*IF(DemandParameters!C185=Code_Offpeak,TimeValue_Person_Offpeak,TimeValue_Person_Peak) -> 0 | AO221: =AI221*DemandParameters!N185*IF(DemandParameters!C185=Code_Offpeak,TimeValue_Person_Offpeak,TimeValue_Person_Peak) -> 0
A222: 2014-01-01T19:00:00 | B222: =IF(DemandParameters!G186>0,EXP(AverageTravelTimeModel_Constant+AverageTravelTimeModel_LogVolumeParameter*LN(DemandParameters!G186))/SecondsPerHour,0) ->  | C222: =IF(INDEX(StandardDeviationTable,DemandParameters!C186,1)=0,0,ReliabilityInsuranceTime(0.99, B222, INDEX(StandardDeviationTable,DemandParameters!C186,1), Discount_Rate)) -> 0 | D222: =B222*DemandParameters!H186*IF(DemandParameters!C186=Code_Offpeak,TimeValue_Person_Offpeak,TimeValue_Person_Peak) ->  | E222: =C222*DemandParameters!H186*IF(DemandParameters!C186=Code_Offpeak,TimeValue_Person_Offpeak,TimeValue_Person_Peak) ->  | F222: =B222*DemandParameters!I186*TimeValue_Truck ->  | G222: =C222*DemandParameters!I186*TimeValue_Truck ->  | H222: =B222*DemandParameters!J186*IF(DemandParameters!C186=Code_Offpeak,TimeValue_Person_Offpeak,TimeValue_Person_Peak) ->  | I222: =C222*DemandParameters!J186*IF(DemandParameters!C186=Code_Offpeak,TimeValue_Person_Offpeak,TimeValue_Person_Peak) -> 0 | AH222: =IF(DemandParameters!K186>0,EXP(AverageTravelTimeModel_Constant+AverageTravelTimeModel_LogVolumeParameter*LN(DemandParameters!K186))/SecondsPerHour,0) -> 0 | AI222: =IF(INDEX(StandardDeviationTable,DemandParameters!C186,5)=0,0,ReliabilityInsuranceTime(0.99, AH222, INDEX(StandardDeviationTable,DemandParameters!C186,5), Discount_Rate)) -> 0 | AJ222: =AH222*DemandParameters!L186*IF(DemandParameters!C186=Code_Offpeak,TimeValue_Person_Offpeak,TimeValue_Person_Peak) -> 0 | AK222: =AI222*DemandParameters!L186*IF(DemandParameters!C186=Code_Offpeak,TimeValue_Person_Offpeak,TimeValue_Person_Peak) -> 0 | AL222: =AH222*DemandParameters!M186*TimeValue_Truck -> 0 | AM222: =AI222*DemandParameters!M186*TimeValue_Truck -> 0 | AN222: =AH222*DemandParameters!N186*IF(DemandParameters!C186=Code_Offpeak,TimeValue_Person_Offpeak,TimeValue_Person_Peak) -> 0 | AO222: =AI222*DemandParameters!N186*IF(DemandParameters!C186=Code_Offpeak,TimeValue_Person_Offpeak,TimeValue_Person_Peak) -> 0
A223: 2014-01-01T20:00:00 | B223: =IF(DemandParameters!G187>0,EXP(AverageTravelTimeModel_Constant+AverageTravelTimeModel_LogVolumeParameter*LN(DemandParameters!G187))/SecondsPerHour,0) ->  | C223: =IF(INDEX(StandardDeviationTable,DemandParameters!C187,1)=0,0,ReliabilityInsuranceTime(0.99, B223, INDEX(StandardDeviationTable,DemandParameters!C187,1), Discount_Rate)) -> 0 | D223: =B223*DemandParameters!H187*IF(DemandParameters!C187=Code_Offpeak,TimeValue_Person_Offpeak,TimeValue_Person_Peak) ->  | E223: =C223*DemandParameters!H187*IF(DemandParameters!C187=Code_Offpeak,TimeValue_Person_Offpeak,TimeValue_Person_Peak) ->  | F223: =B223*DemandParameters!I187*TimeValue_Truck ->  | G223: =C223*DemandParameters!I187*TimeValue_Truck ->  | H223: =B223*DemandParameters!J187*IF(DemandParameters!C187=Code_Offpeak,TimeValue_Person_Offpeak,TimeValue_Person_Peak) ->  | I223: =C223*DemandParameters!J187*IF(DemandParameters!C187=Code_Offpeak,TimeValue_Person_Offpeak,TimeValue_Person_Peak) -> 0 | AH223: =IF(DemandParameters!K187>0,EXP(AverageTravelTimeModel_Constant+AverageTravelTimeModel_LogVolumeParameter*LN(DemandParameters!K187))/SecondsPerHour,0) -> 0 | AI223: =IF(INDEX(StandardDeviationTable,DemandParameters!C187,5)=0,0,ReliabilityInsuranceTime(0.99, AH223, INDEX(StandardDeviationTable,DemandParameters!C187,5), Discount_Rate)) -> 0 | AJ223: =AH223*DemandParameters!L187*IF(DemandParameters!C187=Code_Offpeak,TimeValue_Person_Offpeak,TimeValue_Person_Peak) -> 0 | AK223: =AI223*DemandParameters!L187*IF(DemandParameters!C187=Code_Offpeak,TimeValue_Person_Offpeak,TimeValue_Person_Peak) -> 0 | AL223: =AH223*DemandParameters!M187*TimeValue_Truck -> 0 | AM223: =AI223*DemandParameters!M187*TimeValue_Truck -> 0 | AN223: =AH223*DemandParameters!N187*IF(DemandParameters!C187=Code_Offpeak,TimeValue_Person_Offpeak,TimeValue_Person_Peak) -> 0 | AO223: =AI223*DemandParameters!N187*IF(DemandParameters!C187=Code_Offpeak,TimeValue_Person_Offpeak,TimeValue_Person_Peak) -> 0
A224: 2014-01-01T21:00:00 | B224: =IF(DemandParameters!G188>0,EXP(AverageTravelTimeModel_Constant+AverageTravelTimeModel_LogVolumeParameter*LN(DemandParameters!G188))/SecondsPerHour,0) ->  | C224: =IF(INDEX(StandardDeviationTable,DemandParameters!C188,1)=0,0,ReliabilityInsuranceTime(0.99, B224, INDEX(StandardDeviationTable,DemandParameters!C188,1), Discount_Rate)) -> 0 | D224: =B224*DemandParameters!H188*IF(DemandParameters!C188=Code_Offpeak,TimeValue_Person_Offpeak,TimeValue_Person_Peak) ->  | E224: =C224*DemandParameters!H188*IF(DemandParameters!C188=Code_Offpeak,TimeValue_Person_Offpeak,TimeValue_Person_Peak) ->  | F224: =B224*DemandParameters!I188*TimeValue_Truck ->  | G224: =C224*DemandParameters!I188*TimeValue_Truck ->  | H224: =B224*DemandParameters!J188*IF(DemandParameters!C188=Code_Offpeak,TimeValue_Person_Offpeak,TimeValue_Person_Peak) ->  | I224: =C224*DemandParameters!J188*IF(DemandParameters!C188=Code_Offpeak,TimeValue_Person_Offpeak,TimeValue_Person_Peak) -> 0 | AH224: =IF(DemandParameters!K188>0,EXP(AverageTravelTimeModel_Constant+AverageTravelTimeModel_LogVolumeParameter*LN(DemandParameters!K188))/SecondsPerHour,0) -> 0 | AI224: =IF(INDEX(StandardDeviationTable,DemandParameters!C188,5)=0,0,ReliabilityInsuranceTime(0.99, AH224, INDEX(StandardDeviationTable,DemandParameters!C188,5), Discount_Rate)) -> 0 | AJ224: =AH224*DemandParameters!L188*IF(DemandParameters!C188=Code_Offpeak,TimeValue_Person_Offpeak,TimeValue_Person_Peak) -> 0 | AK224: =AI224*DemandParameters!L188*IF(DemandParameters!C188=Code_Offpeak,TimeValue_Person_Offpeak,TimeValue_Person_Peak) -> 0 | AL224: =AH224*DemandParameters!M188*TimeValue_Truck -> 0 | AM224: =AI224*DemandParameters!M188*TimeValue_Truck -> 0 | AN224: =AH224*DemandParameters!N188*IF(DemandParameters!C188=Code_Offpeak,TimeValue_Person_Offpeak,TimeValue_Person_Peak) -> 0 | AO224: =AI224*DemandParameters!N188*IF(DemandParameters!C188=Code_Offpeak,TimeValue_Person_Offpeak,TimeValue_Person_Peak) -> 0
A225: 2014-01-01T22:00:00 | B225: =IF(DemandParameters!G189>0,EXP(AverageTravelTimeModel_Constant+AverageTravelTimeModel_LogVolumeParameter*LN(DemandParameters!G189))/SecondsPerHour,0) ->  | C225: =IF(INDEX(StandardDeviationTable,DemandParameters!C189,1)=0,0,ReliabilityInsuranceTime(0.99, B225, INDEX(StandardDeviationTable,DemandParameters!C189,1), Discount_Rate)) -> 0 | D225: =B225*DemandParameters!H189*IF(DemandParameters!C189=Code_Offpeak,TimeValue_Person_Offpeak,TimeValue_Person_Peak) ->  | E225: =C225*DemandParameters!H189*IF(DemandParameters!C189=Code_Offpeak,TimeValue_Person_Offpeak,TimeValue_Person_Peak) ->  | F225: =B225*DemandParameters!I189*TimeValue_Truck ->  | G225: =C225*DemandParameters!I189*TimeValue_Truck ->  | H225: =B225*DemandParameters!J189*IF(DemandParameters!C189=Code_Offpeak,TimeValue_Person_Offpeak,TimeValue_Person_Peak) ->  | I225: =C225*DemandParameters!J189*IF(DemandParameters!C189=Code_Offpeak,TimeValue_Person_Offpeak,TimeValue_Person_Peak) -> 0 | AH225: =IF(DemandParameters!K189>0,EXP(AverageTravelTimeModel_Constant+AverageTravelTimeModel_LogVolumeParameter*LN(DemandParameters!K189))/SecondsPerHour,0) -> 0 | AI225: =IF(INDEX(StandardDeviationTable,DemandParameters!C189,5)=0,0,ReliabilityInsuranceTime(0.99, AH225, INDEX(StandardDeviationTable,DemandParameters!C189,5), Discount_Rate)) -> 0 | AJ225: =AH225*DemandParameters!L189*IF(DemandParameters!C189=Code_Offpeak,TimeValue_Person_Offpeak,TimeValue_Person_Peak) -> 0 | AK225: =AI225*DemandParameters!L189*IF(DemandParameters!C189=Code_Offpeak,TimeValue_Person_Offpeak,TimeValue_Person_Peak) -> 0 | AL225: =AH225*DemandParameters!M189*TimeValue_Truck -> 0 | AM225: =AI225*DemandParameters!M189*TimeValue_Truck -> 0 | AN225: =AH225*DemandParameters!N189*IF(DemandParameters!C189=Code_Offpeak,TimeValue_Person_Offpeak,TimeValue_Person_Peak) -> 0 | AO225: =AI225*DemandParameters!N189*IF(DemandParameters!C189=Code_Offpeak,TimeValue_Person_Offpeak,TimeValue_Person_Peak) -> 0
A226: 2014-01-01T23:00:00 | B226: =IF(DemandParameters!G190>0,EXP(AverageTravelTimeModel_Constant+AverageTravelTimeModel_LogVolumeParameter*LN(DemandParameters!G190))/SecondsPerHour,0) ->  | C226: =IF(INDEX(StandardDeviationTable,DemandParameters!C190,1)=0,0,ReliabilityInsuranceTime(0.99, B226, INDEX(StandardDeviationTable,DemandParameters!C190,1), Discount_Rate)) -> 0 | D226: =B226*DemandParameters!H190*IF(DemandParameters!C190=Code_Offpeak,TimeValue_Person_Offpeak,TimeValue_Person_Peak) ->  | E226: =C226*DemandParameters!H190*IF(DemandParameters!C190=Code_Offpeak,TimeValue_Person_Offpeak,TimeValue_Person_Peak) ->  | F226: =B226*DemandParameters!I190*TimeValue_Truck ->  | G226: =C226*DemandParameters!I190*TimeValue_Truck ->  | H226: =B226*DemandParameters!J190*IF(DemandParameters!C190=Code_Offpeak,TimeValue_Person_Offpeak,TimeValue_Person_Peak) ->  | I226: =C226*DemandParameters!J190*IF(DemandParameters!C190=Code_Offpeak,TimeValue_Person_Offpeak,TimeValue_Person_Peak) -> 0 | AH226: =IF(DemandParameters!K190>0,EXP(AverageTravelTimeModel_Constant+AverageTravelTimeModel_LogVolumeParameter*LN(DemandParameters!K190))/SecondsPerHour,0) -> 0 | AI226: =IF(INDEX(StandardDeviationTable,DemandParameters!C190,5)=0,0,ReliabilityInsuranceTime(0.99, AH226, INDEX(StandardDeviationTable,DemandParameters!C190,5), Discount_Rate)) -> 0 | AJ226: =AH226*DemandParameters!L190*IF(DemandParameters!C190=Code_Offpeak,TimeValue_Person_Offpeak,TimeValue_Person_Peak) -> 0 | AK226: =AI226*DemandParameters!L190*IF(DemandParameters!C190=Code_Offpeak,TimeValue_Person_Offpeak,TimeValue_Person_Peak) -> 0 | AL226: =AH226*DemandParameters!M190*TimeValue_Truck -> 0 | AM226: =AI226*DemandParameters!M190*TimeValue_Truck -> 0 | AN226: =AH226*DemandParameters!N190*IF(DemandParameters!C190=Code_Offpeak,TimeValue_Person_Offpeak,TimeValue_Person_Peak) -> 0 | AO226: =AI226*DemandParameters!N190*IF(DemandParameters!C190=Code_Offpeak,TimeValue_Person_Offpeak,TimeValue_Person_Peak) -> 0
A227: 2014-01-02 | B227: =IF(DemandParameters!G191>0,EXP(AverageTravelTimeModel_Constant+AverageTravelTimeModel_LogVolumeParameter*LN(DemandParameters!G191))/SecondsPerHour,0) ->  | C227: =IF(INDEX(StandardDeviationTable,DemandParameters!C191,1)=0,0,ReliabilityInsuranceTime(0.99, B227, INDEX(StandardDeviationTable,DemandParameters!C191,1), Discount_Rate)) -> 0 | D227: =B227*DemandParameters!H191*IF(DemandParameters!C191=Code_Offpeak,TimeValue_Person_Offpeak,TimeValue_Person_Peak) ->  | E227: =C227*DemandParameters!H191*IF(DemandParameters!C191=Code_Offpeak,TimeValue_Person_Offpeak,TimeValue_Person_Peak) ->  | F227: =B227*DemandParameters!I191*TimeValue_Truck ->  | G227: =C227*DemandParameters!I191*TimeValue_Truck ->  | H227: =B227*DemandParameters!J191*IF(DemandParameters!C191=Code_Offpeak,TimeValue_Person_Offpeak,TimeValue_Person_Peak) ->  | I227: =C227*DemandParameters!J191*IF(DemandParameters!C191=Code_Offpeak,TimeValue_Person_Offpeak,TimeValue_Person_Peak) -> 0 | AH227: =IF(DemandParameters!K191>0,EXP(AverageTravelTimeModel_Constant+AverageTravelTimeModel_LogVolumeParameter*LN(DemandParameters!K191))/SecondsPerHour,0) -> 0 | AI227: =IF(INDEX(StandardDeviationTable,DemandParameters!C191,5)=0,0,ReliabilityInsuranceTime(0.99, AH227, INDEX(StandardDeviationTable,DemandParameters!C191,5), Discount_Rate)) -> 0 | AJ227: =AH227*DemandParameters!L191*IF(DemandParameters!C191=Code_Offpeak,TimeValue_Person_Offpeak,TimeValue_Person_Peak) -> 0 | AK227: =AI227*DemandParameters!L191*IF(DemandParameters!C191=Code_Offpeak,TimeValue_Person_Offpeak,TimeValue_Person_Peak) -> 0 | AL227: =AH227*DemandParameters!M191*TimeValue_Truck -> 0 | AM227: =AI227*DemandParameters!M191*TimeValue_Truck -> 0 | AN227: =AH227*DemandParameters!N191*IF(DemandParameters!C191=Code_Offpeak,TimeValue_Person_Offpeak,TimeValue_Person_Peak) -> 0 | AO227: =AI227*DemandParameters!N191*IF(DemandParameters!C191=Code_Offpeak,TimeValue_Person_Offpeak,TimeValue_Person_Peak) -> 0
A228: 2014-01-02T01:00:00 | B228: =IF(DemandParameters!G192>0,EXP(AverageTravelTimeModel_Constant+AverageTravelTimeModel_LogVolumeParameter*LN(DemandParameters!G192))/SecondsPerHour,0) ->  | C228: =IF(INDEX(StandardDeviationTable,DemandParameters!C192,1)=0,0,ReliabilityInsuranceTime(0.99, B228, INDEX(StandardDeviationTable,DemandParameters!C192,1), Discount_Rate)) -> 0 | D228: =B228*DemandParameters!H192*IF(DemandParameters!C192=Code_Offpeak,TimeValue_Person_Offpeak,TimeValue_Person_Peak) ->  | E228: =C228*DemandParameters!H192*IF(DemandParameters!C192=Code_Offpeak,TimeValue_Person_Offpeak,TimeValue_Person_Peak) ->  | F228: =B228*DemandParameters!I192*TimeValue_Truck ->  | G228: =C228*DemandParameters!I192*TimeValue_Truck ->  | H228: =B228*DemandParameters!J192*IF(DemandParameters!C192=Code_Offpeak,TimeValue_Person_Offpeak,TimeValue_Person_Peak) ->  | I228: =C228*DemandParameters!J192*IF(DemandParameters!C192=Code_Offpeak,TimeValue_Person_Offpeak,TimeValue_Person_Peak) -> 0 | AH228: =IF(DemandParameters!K192>0,EXP(AverageTravelTimeModel_Constant+AverageTravelTimeModel_LogVolumeParameter*LN(DemandParameters!K192))/SecondsPerHour,0) -> 0 | AI228: =IF(INDEX(StandardDeviationTable,DemandParameters!C192,5)=0,0,ReliabilityInsuranceTime(0.99, AH228, INDEX(StandardDeviationTable,DemandParameters!C192,5), Discount_Rate)) -> 0 | AJ228: =AH228*DemandParameters!L192*IF(DemandParameters!C192=Code_Offpeak,TimeValue_Person_Offpeak,TimeValue_Person_Peak) -> 0 | AK228: =AI228*DemandParameters!L192*IF(DemandParameters!C192=Code_Offpeak,TimeValue_Person_Offpeak,TimeValue_Person_Peak) -> 0 | AL228: =AH228*DemandParameters!M192*TimeValue_Truck -> 0 | AM228: =AI228*DemandParameters!M192*TimeValue_Truck -> 0 | AN228: =AH228*DemandParameters!N192*IF(DemandParameters!C192=Code_Offpeak,TimeValue_Person_Offpeak,TimeValue_Person_Peak) -> 0 | AO228: =AI228*DemandParameters!N192*IF(DemandParameters!C192=Code_Offpeak,TimeValue_Person_Offpeak,TimeValue_Person_Peak) -> 0
A229: 2014-01-02T02:00:00 | B229: =IF(DemandParameters!G193>0,EXP(AverageTravelTimeModel_Constant+AverageTravelTimeModel_LogVolumeParameter*LN(DemandParameters!G193))/SecondsPerHour,0) ->  | C229: =IF(INDEX(StandardDeviationTable,DemandParameters!C193,1)=0,0,ReliabilityInsuranceTime(0.99, B229, INDEX(StandardDeviationTable,DemandParameters!C193,1), Discount_Rate)) -> 0 | D229: =B229*DemandParameters!H193*IF(DemandParameters!C193=Code_Offpeak,TimeValue_Person_Offpeak,TimeValue_Person_Peak) ->  | E229: =C229*DemandParameters!H193*IF(DemandParameters!C193=Code_Offpeak,TimeValue_Person_Offpeak,TimeValue_Person_Peak) ->  | F229: =B229*DemandParameters!I193*TimeValue_Truck ->  | G229: =C229*DemandParameters!I193*TimeValue_Truck ->  | H229: =B229*DemandParameters!J193*IF(DemandParameters!C193=Code_Offpeak,TimeValue_Person_Offpeak,TimeValue_Person_Peak) ->  | I229: =C229*DemandParameters!J193*IF(DemandParameters!C193=Code_Offpeak,TimeValue_Person_Offpeak,TimeValue_Person_Peak) -> 0 | AH229: =IF(DemandParameters!K193>0,EXP(AverageTravelTimeModel_Constant+AverageTravelTimeModel_LogVolumeParameter*LN(DemandParameters!K193))/SecondsPerHour,0) -> 0 | AI229: =IF(INDEX(StandardDeviationTable,DemandParameters!C193,5)=0,0,ReliabilityInsuranceTime(0.99, AH229, INDEX(StandardDeviationTable,DemandParameters!C193,5), Discount_Rate)) -> 0 | AJ229: =AH229*DemandParameters!L193*IF(DemandParameters!C193=Code_Offpeak,TimeValue_Person_Offpeak,TimeValue_Person_Peak) -> 0 | AK229: =AI229*DemandParameters!L193*IF(DemandParameters!C193=Code_Offpeak,TimeValue_Person_Offpeak,TimeValue_Person_Peak) -> 0 | AL229: =AH229*DemandParameters!M193*TimeValue_Truck -> 0 | AM229: =AI229*DemandParameters!M193*TimeValue_Truck -> 0 | AN229: =AH229*DemandParameters!N193*IF(DemandParameters!C193=Code_Offpeak,TimeValue_Person_Offpeak,TimeValue_Person_Peak) -> 0 | AO229: =AI229*DemandParameters!N193*IF(DemandParameters!C193=Code_Offpeak,TimeValue_Person_Offpeak,TimeValue_Person_Peak) -> 0
A230: 2014-01-02T03:00:00 | B230: =IF(DemandParameters!G194>0,EXP(AverageTravelTimeModel_Constant+AverageTravelTimeModel_LogVolumeParameter*LN(DemandParameters!G194))/SecondsPerHour,0) ->  | C230: =IF(INDEX(StandardDeviationTable,DemandParameters!C194,1)=0,0,ReliabilityInsuranceTime(0.99, B230, INDEX(StandardDeviationTable,DemandParameters!C194,1), Discount_Rate)) -> 0 | D230: =B230*DemandParameters!H194*IF(DemandParameters!C194=Code_Offpeak,TimeValue_Person_Offpeak,TimeValue_Person_Peak) ->  | E230: =C230*DemandParameters!H194*IF(DemandParameters!C194=Code_Offpeak,TimeValue_Person_Offpeak,TimeValue_Person_Peak) ->  | F230: =B230*DemandParameters!I194*TimeValue_Truck ->  | G230: =C230*DemandParameters!I194*TimeValue_Truck ->  | H230: =B230*DemandParameters!J194*IF(DemandParameters!C194=Code_Offpeak,TimeValue_Person_Offpeak,TimeValue_Person_Peak) ->  | I230: =C230*DemandParameters!J194*IF(DemandParameters!C194=Code_Offpeak,TimeValue_Person_Offpeak,TimeValue_Person_Peak) -> 0 | AH230: =IF(DemandParameters!K194>0,EXP(AverageTravelTimeModel_Constant+AverageTravelTimeModel_LogVolumeParameter*LN(DemandParameters!K194))/SecondsPerHour,0) -> 0 | AI230: =IF(INDEX(StandardDeviationTable,DemandParameters!C194,5)=0,0,ReliabilityInsuranceTime(0.99, AH230, INDEX(StandardDeviationTable,DemandParameters!C194,5), Discount_Rate)) -> 0 | AJ230: =AH230*DemandParameters!L194*IF(DemandParameters!C194=Code_Offpeak,TimeValue_Person_Offpeak,TimeValue_Person_Peak) -> 0 | AK230: =AI230*DemandParameters!L194*IF(DemandParameters!C194=Code_Offpeak,TimeValue_Person_Offpeak,TimeValue_Person_Peak) -> 0 | AL230: =AH230*DemandParameters!M194*TimeValue_Truck -> 0 | AM230: =AI230*DemandParameters!M194*TimeValue_Truck -> 0 | AN230: =AH230*DemandParameters!N194*IF(DemandParameters!C194=Code_Offpeak,TimeValue_Person_Offpeak,TimeValue_Person_Peak) -> 0 | AO230: =AI230*DemandParameters!N194*IF(DemandParameters!C194=Code_Offpeak,TimeValue_Person_Offpeak,TimeValue_Person_Peak) -> 0
A231: 2014-01-02T04:00:00 | B231: =IF(DemandParameters!G195>0,EXP(AverageTravelTimeModel_Constant+AverageTravelTimeModel_LogVolumeParameter*LN(DemandParameters!G195))/SecondsPerHour,0) ->  | C231: =IF(INDEX(StandardDeviationTable,DemandParameters!C195,1)=0,0,ReliabilityInsuranceTime(0.99, B231, INDEX(StandardDeviationTable,DemandParameters!C195,1), Discount_Rate)) -> 0 | D231: =B231*DemandParameters!H195*IF(DemandParameters!C195=Code_Offpeak,TimeValue_Person_Offpeak,TimeValue_Person_Peak) ->  | E231: =C231*DemandParameters!H195*IF(DemandParameters!C195=Code_Offpeak,TimeValue_Person_Offpeak,TimeValue_Person_Peak) ->  | F231: =B231*DemandParameters!I195*TimeValue_Truck ->  | G231: =C231*DemandParameters!I195*TimeValue_Truck ->  | H231: =B231*DemandParameters!J195*IF(DemandParameters!C195=Code_Offpeak,TimeValue_Person_Offpeak,TimeValue_Person_Peak) ->  | I231: =C231*DemandParameters!J195*IF(DemandParameters!C195=Code_Offpeak,TimeValue_Person_Offpeak,TimeValue_Person_Peak) -> 0 | AH231: =IF(DemandParameters!K195>0,EXP(AverageTravelTimeModel_Constant+AverageTravelTimeModel_LogVolumeParameter*LN(DemandParameters!K195))/SecondsPerHour,0) -> 0 | AI231: =IF(INDEX(StandardDeviationTable,DemandParameters!C195,5)=0,0,ReliabilityInsuranceTime(0.99, AH231, INDEX(StandardDeviationTable,DemandParameters!C195,5), Discount_Rate)) -> 0 | AJ231: =AH231*DemandParameters!L195*IF(DemandParameters!C195=Code_Offpeak,TimeValue_Person_Offpeak,TimeValue_Person_Peak) -> 0 | AK231: =AI231*DemandParameters!L195*IF(DemandParameters!C195=Code_Offpeak,TimeValue_Person_Offpeak,TimeValue_Person_Peak) -> 0 | AL231: =AH231*DemandParameters!M195*TimeValue_Truck -> 0 | AM231: =AI231*DemandParameters!M195*TimeValue_Truck -> 0 | AN231: =AH231*DemandParameters!N195*IF(DemandParameters!C195=Code_Offpeak,TimeValue_Person_Offpeak,TimeValue_Person_Peak) -> 0 | AO231: =AI231*DemandParameters!N195*IF(DemandParameters!C195=Code_Offpeak,TimeValue_Person_Offpeak,TimeValue_Person_Peak) -> 0
A232: 2014-01-02T05:00:00 | B232: =IF(DemandParameters!G196>0,EXP(AverageTravelTimeModel_Constant+AverageTravelTimeModel_LogVolumeParameter*LN(DemandParameters!G196))/SecondsPerHour,0) ->  | C232: =IF(INDEX(StandardDeviationTable,DemandParameters!C196,1)=0,0,ReliabilityInsuranceTime(0.99, B232, INDEX(StandardDeviationTable,DemandParameters!C196,1), Discount_Rate)) -> 0 | D232: =B232*DemandParameters!H196*IF(DemandParameters!C196=Code_Offpeak,TimeValue_Person_Offpeak,TimeValue_Person_Peak) ->  | E232: =C232*DemandParameters!H196*IF(DemandParameters!C196=Code_Offpeak,TimeValue_Person_Offpeak,TimeValue_Person_Peak) ->  | F232: =B232*DemandParameters!I196*TimeValue_Truck ->  | G232: =C232*DemandParameters!I196*TimeValue_Truck ->  | H232: =B232*DemandParameters!J196*IF(DemandParameters!C196=Code_Offpeak,TimeValue_Person_Offpeak,TimeValue_Person_Peak) ->  | I232: =C232*DemandParameters!J196*IF(DemandParameters!C196=Code_Offpeak,TimeValue_Person_Offpeak,TimeValue_Person_Peak) -> 0 | AH232: =IF(DemandParameters!K196>0,EXP(AverageTravelTimeModel_Constant+AverageTravelTimeModel_LogVolumeParameter*LN(DemandParameters!K196))/SecondsPerHour,0) -> 0 | AI232: =IF(INDEX(StandardDeviationTable,DemandParameters!C196,5)=0,0,ReliabilityInsuranceTime(0.99, AH232, INDEX(StandardDeviationTable,DemandParameters!C196,5), Discount_Rate)) -> 0 | AJ232: =AH232*DemandParameters!L196*IF(DemandParameters!C196=Code_Offpeak,TimeValue_Person_Offpeak,TimeValue_Person_Peak) -> 0 | AK232: =AI232*DemandParameters!L196*IF(DemandParameters!C196=Code_Offpeak,TimeValue_Person_Offpeak,TimeValue_Person_Peak) -> 0 | AL232: =AH232*DemandParameters!M196*TimeValue_Truck -> 0 | AM232: =AI232*DemandParameters!M196*TimeValue_Truck -> 0 | AN232: =AH232*DemandParameters!N196*IF(DemandParameters!C196=Code_Offpeak,TimeValue_Person_Offpeak,TimeValue_Person_Peak) -> 0 | AO232: =AI232*DemandParameters!N196*IF(DemandParameters!C196=Code_Offpeak,TimeValue_Person_Offpeak,TimeValue_Person_Peak) -> 0
A233: 2014-01-02T06:00:00 | B233: =IF(DemandParameters!G197>0,EXP(AverageTravelTimeModel_Constant+AverageTravelTimeModel_LogVolumeParameter*LN(DemandParameters!G197))/SecondsPerHour,0) ->  | C233: =IF(INDEX(StandardDeviationTable,DemandParameters!C197,1)=0,0,ReliabilityInsuranceTime(0.99, B233, INDEX(StandardDeviationTable,DemandParameters!C197,1), Discount_Rate)) -> 0 | D233: =B233*DemandParameters!H197*IF(DemandParameters!C197=Code_Offpeak,TimeValue_Person_Offpeak,TimeValue_Person_Peak) ->  | E233: =C233*DemandParameters!H197*IF(DemandParameters!C197=Code_Offpeak,TimeValue_Person_Offpeak,TimeValue_Person_Peak) ->  | F233: =B233*DemandParameters!I197*TimeValue_Truck ->  | G233: =C233*DemandParameters!I197*TimeValue_Truck ->  | H233: =B233*DemandParameters!J197*IF(DemandParameters!C197=Code_Offpeak,TimeValue_Person_Offpeak,TimeValue_Person_Peak) ->  | I233: =C233*DemandParameters!J197*IF(DemandParameters!C197=Code_Offpeak,TimeValue_Person_Offpeak,TimeValue_Person_Peak) -> 0 | AH233: =IF(DemandParameters!K197>0,EXP(AverageTravelTimeModel_Constant+AverageTravelTimeModel_LogVolumeParameter*LN(DemandParameters!K197))/SecondsPerHour,0) -> 0 | AI233: =IF(INDEX(StandardDeviationTable,DemandParameters!C197,5)=0,0,ReliabilityInsuranceTime(0.99, AH233, INDEX(StandardDeviationTable,DemandParameters!C197,5), Discount_Rate)) -> 0 | AJ233: =AH233*DemandParameters!L197*IF(DemandParameters!C197=Code_Offpeak,TimeValue_Person_Offpeak,TimeValue_Person_Peak) -> 0 | AK233: =AI233*DemandParameters!L197*IF(DemandParameters!C197=Code_Offpeak,TimeValue_Person_Offpeak,TimeValue_Person_Peak) -> 0 | AL233: =AH233*DemandParameters!M197*TimeValue_Truck -> 0 | AM233: =AI233*DemandParameters!M197*TimeValue_Truck -> 0 | AN233: =AH233*DemandParameters!N197*IF(DemandParameters!C197=Code_Offpeak,TimeValue_Person_Offpeak,TimeValue_Person_Peak) -> 0 | AO233: =AI233*DemandParameters!N197*IF(DemandParameters!C197=Code_Offpeak,TimeValue_Person_Offpeak,TimeValue_Person_Peak) -> 0
... 2017 more rows

Sheet Outputs
A1: Outputs
C3: This sheet compiles the data from summary tables in individual alternatives sheets.
A6: Analysis Summary
A7: Cost Categories | B7: Net Present Value of Costs
B8: Alternative 0 - Base Case
A9: Planning & Construction Costs | B9: 0 | L9: To exclude cost categories from the comparison clear all values in the row. Selecting the "Compile Analysis Summary" button will repopulate all values from the alternatives sheets.
A10: Post-Opening Costs | B10: 0
A11: Auto Passenger Time | B11: --
A12: Auto Passenger Reliability | B12: --
A13: Truck Time | B13: --
A14: Truck Reliability | B14: --
A15: Transit Passenger Time | B15: --
A16: Transit Passenger Reliability | B16: --
A17: Bicyclist Time | B17: --
A18: Pedestrian Time | B18: --
A19: Safety | B19: --
A20: Greenhouse Gases | B20: --
A21: Criteria Pollutants | B21: --
A22: Total cost | B22: =IF(SUM(B9:B21)=0,"",SUM(B9:B21)) ->  | C22: =IF(SUM(C9:C21)=0,"",SUM(C9:C21)) -> 
A24: Benefit Categories | B24: Net Present Value of Benefits Relative to Base Case
C25: =IF(C8<>"",C8,"") ->  | D25: =IF(D8<>"",D8,"") ->  | E25: =IF(E8<>"",E8,"") -> 
A26: Auto Passenger Time | C26: =IF(ISNUMBER(C11),$B11-C11,"") ->  | D26: =IF(ISNUMBER(D11),$B11-D11,"") ->  | E26: =IF(ISNUMBER(E11),$B11-E11,"") -> 
A27: =A12 -> Auto Passenger Reliability | C27: =IF(ISNUMBER(C12),$B12-C12,"") ->  | D27: =IF(ISNUMBER(D12),$B12-D12,"") -> 
A28: Truck Time | D28: =IF(ISNUMBER(D13),$B13-D13,"") -> 
A29: Truck Reliability
A30: Transit Passenger Time
A31: Transit Passenger Reliability
A32: Bicyclist Time
A33: Pedestrian Time
A34: Safety
A35: Greenhouse Gases
A36: Criteria Pollutants
A37: Net Present Value of Benefits | C37: =IF(SUM(C26:C36)<>0,SUM(C26:C36),"") ->  | D37: =IF(SUM(D26:D36)<>0,SUM(D26:D36),"") -> 
A38: Net Present Value of Costs | C38: =IF(SUM(C9:C10)<>0,SUM(C9:C10)-SUM($B9:$B10),"") ->  | D38: =IF(SUM(D9:D10)<>0,SUM(D9:D10)-SUM($B9:$B10),"") -> 
A39: Present Value of Net Benefits | C39: =IF(AND(C37<>"",C38<>""),C37-C38,"") ->  | D39: =IF(AND(D37<>"",D38<>""),D37-D38,"") -> 
A40: Benefit-Cost Ratio | C40: =IF(AND(C37<>"",C38<>""),C37/C38,"") ->  | D40: =IF(AND(D37<>"",D38<>""),D37/D38,"") -> 
A98: Warnings and Error Log
A99: [Not used]

Sheet NameDefinitionsForMacros
A1: Name references for macros | E1: VBA declaration
E2: Public Const Name_xxx = "xxx"
E4: =IF(AND(ISBLANK(A4),NOT(ISBLANK(A5))),"'"&REPT("*",100),IF(NOT(ISBLANK(A4)),"' ** "&A4,IF(NOT(ISBLANK(B4)),"' -- "&B4,IF(NOT(ISBLANK(C4)),SUBSTITUTE($E$2,"xxx",C4),"")))) -> '****************************************************************************************************
A5: Worksheet entry names | E5: =IF(AND(ISBLANK(A5),NOT(ISBLANK(A6))),"'"&REPT("*",100),IF(NOT(ISBLANK(A5)),"' ** "&A5,IF(NOT(ISBLANK(B5)),"' -- "&B5,IF(NOT(ISBLANK(C5)),SUBSTITUTE($E$2,"xxx",C5),"")))) -> ' ** Worksheet entry names
B6: Worksheet names | E6: ' -- Worksheet names
C7: AlternativesWorksheetName | D7: =WorksheetNameFromCellAddress(CELL("address",Alternatives_MasterList!A1)) -> Alternatives_MasterList | E7: Public Const Name_AlternativesWorksheetName = "AlternativesWorksheetName"
C8: BaseCaseWorksheetName | D8: =WorksheetNameFromCellAddress(CELL("address",BaseCase!A1)) -> BaseCase | E8: Public Const Name_BaseCaseWorksheetName = "BaseCaseWorksheetName"
C9: BaseAlternativeNumber | D9: 0 | E9: Public Const Name_BaseAlternativeNumber = "BaseAlternativeNumber"
C10: AlternativeWorksheetNameBase | D10: Alternative_ | E10: Public Const Name_AlternativeWorksheetNameBase = "AlternativeWorksheetNameBase"
C11: AlternativeDesignation | D11: Alternative | E11: Public Const Name_AlternativeDesignation = "AlternativeDesignation"
C12: DemandParametersWorksheetName | D12: =WorksheetNameFromCellAddress(CELL("address",DemandParameters!A1)) -> DemandParameters | E12: Public Const Name_DemandParametersWorksheetName = "DemandParametersWorksheetName"
C13: OutputsWorksheetName | D13: =MID(CELL("address",Outputs!A1),FIND("]",CELL("address",Outputs!A1))+1,FIND("!",CELL("address",Outputs!A1))-FIND("]",CELL("address",Outputs!A1))-1) -> Outputs | E13: Public Const Name_OutputsWorksheetName = "OutputsWorksheetName"
B16: Entries in Alternatives Master sheet | E16: ' -- Entries in Alternatives Master sheet
C17: Alternatives_DefaultAlternativeShortName | D17: (Enter short name here) | E17: Public Const Name_Alternatives_DefaultAlternativeShortName = "Alternatives_DefaultAlternativeShortName"
C18: Alternatives_DefaultAlternativeDescription | D18: (Enter description of alternative here) | E18: Public Const Name_Alternatives_DefaultAlternativeDescription = "Alternatives_DefaultAlternativeDescription"
B20: Prompts in user inputs sheet | E20: ' -- Prompts in user inputs sheet
C21: DefinedAlternative_Prompt_AlternativeShortName | D21: (Please enter short name for alternative on Alternatives worksheet) | E21: Public Const Name_DefinedAlternative_Prompt_AlternativeShortName = "DefinedAlternative_Prompt_AlternativeShortName"
C22: DefinedAlternative_Prompt_AlternativeDescription | D22: (Please enter description of alternative on Alternatives worksheet) | E22: Public Const Name_DefinedAlternative_Prompt_AlternativeDescription = "DefinedAlternative_Prompt_AlternativeDescription"
C23: DefinedAlternative_Prompt_Year | D23: (Year?) | E23: Public Const Name_DefinedAlternative_Prompt_Year = "DefinedAlternative_Prompt_Year"
B25: Crash categories | E25: ' -- Crash categories
C26: CrashCategoryLabel_KABCO | D26: KABCO | E26: Public Const Name_CrashCategoryLabel_KABCO = "CrashCategoryLabel_KABCO"
C27: CrashCategoryLabel_FatalInjuryPDO | D27: Fatality, injury, PDO | E27: Public Const Name_CrashCategoryLabel_FatalInjuryPDO = "CrashCategoryLabel_FatalInjuryPDO"
C28: CrashCategoryLabel_TotalCrashes | D28: Total crashes | E28: Public Const Name_CrashCategoryLabel_TotalCrashes = "CrashCategoryLabel_TotalCrashes"
C29: CrashCategoryLabel_UserDefined | D29: User defined categories | E29: Public Const Name_CrashCategoryLabel_UserDefined = "CrashCategoryLabel_UserDefined"
B31: Crash types | E31: ' -- Crash types
C32: CrashTypeLabel_K_Fatality | D32: K - Fatality crashes | E32: Public Const Name_CrashTypeLabel_K_Fatality = "CrashTypeLabel_K_Fatality"
C33: CrashTypeLabel_A_SevereInjury | D33: A - Severe injury crashes | E33: Public Const Name_CrashTypeLabel_A_SevereInjury = "CrashTypeLabel_A_SevereInjury"
C34: CrashTypeLabel_B_ModerateInjury | D34: B - Moderate injury crashes | E34: Public Const Name_CrashTypeLabel_B_ModerateInjury = "CrashTypeLabel_B_ModerateInjury"
C35: CrashTypeLabel_C_MinorInjury | D35: C - Minor injury crashes | E35: Public Const Name_CrashTypeLabel_C_MinorInjury = "CrashTypeLabel_C_MinorInjury"
C36: CrashTypeLabel_O_NoInjury | D36: O - No injury crashes | E36: Public Const Name_CrashTypeLabel_O_NoInjury = "CrashTypeLabel_O_NoInjury"
C37: CrashTypeLabel_Fatality | D37: Fatality crashes | E37: Public Const Name_CrashTypeLabel_Fatality = "CrashTypeLabel_Fatality"
C38: CrashTypeLabel_Injury | D38: Injury crashes | E38: Public Const Name_CrashTypeLabel_Injury = "CrashTypeLabel_Injury"
C39: CrashTypeLabel_PDO | D39: Property damage only crashes | E39: Public Const Name_CrashTypeLabel_PDO = "CrashTypeLabel_PDO"
C40: CrashTypeLabel_TotalCrashes | D40: Total crashes | E40: Public Const Name_CrashTypeLabel_TotalCrashes = "CrashTypeLabel_TotalCrashes"
C41: Prompt_CrashType_UserDefined | D41: (Enter user defined categories) | E41: Public Const Name_Prompt_CrashType_UserDefined = "Prompt_CrashType_UserDefined"
E42: '****************************************************************************************************
A43: Criteria pollutants | E43: ' ** Criteria pollutants
C44: CriteriaPollutantCategoryLabel_FederalMethod | D44: Federal Method (Exec. Order 12866) | E44: Public Const Name_CriteriaPollutantCategoryLabel_FederalMethod = "CriteriaPollutantCategoryLabel_FederalMethod"
C45: CriteriaPollutantCategoryLabel_CriteriaPollutantsByType | D45: Criteria pollutants by type | E45: Public Const Name_CriteriaPollutantCategoryLabel_CriteriaPollutantsByType = "CriteriaPollutantCategoryLabel_CriteriaPollutantsByType"
C46: CriteriaPollutantCategoryLabel_UserDefined | D46: User defined categories | E46: Public Const Name_CriteriaPollutantCategoryLabel_UserDefined = "CriteriaPollutantCategoryLabel_UserDefined"
C47: CriteriaPollutantType_TotalCriteriaPollutants | D47: Total criteria pollutants | E47: Public Const Name_CriteriaPollutantType_TotalCriteriaPollutants = "CriteriaPollutantType_TotalCriteriaPollutants"
C48: CriteriaPollutantType_CO | D48: CO | E48: Public Const Name_CriteriaPollutantType_CO = "CriteriaPollutantType_CO"
C49: CriteriaPollutantType_NOx | D49: NOx | E49: Public Const Name_CriteriaPollutantType_NOx = "CriteriaPollutantType_NOx"
C50: CriteriaPollutantType_HC | D50: HC | E50: Public Const Name_CriteriaPollutantType_HC = "CriteriaPollutantType_HC"
C51: CriteriaPollutantType_O3 | D51: O3 | E51: Public Const Name_CriteriaPollutantType_O3 = "CriteriaPollutantType_O3"
C52: CriteriaPollutantType_PM10 | D52: PM 10 | E52: Public Const Name_CriteriaPollutantType_PM10 = "CriteriaPollutantType_PM10"
C53: CriteriaPollutantType_PM2_5 | D53: PM 2.5 | E53: Public Const Name_CriteriaPollutantType_PM2_5 = "CriteriaPollutantType_PM2_5"
C54: Prompt_CriteriaPollutantCategory_UserDefined | D54: (Enter user defined categories) | E54: Public Const Name_Prompt_CriteriaPollutantCategory_UserDefined = "Prompt_CriteriaPollutantCategory_UserDefined"
E56: '****************************************************************************************************
A57: Alternatives worksheet | E57: ' ** Alternatives worksheet
B58: Base alternative reference | E58: ' -- Base alternative reference
C59: Alternatives_BaseAlternativeBegin_Row | D59: =CELL("row",Alternatives_MasterList!A9) -> 9 | E59: Public Const Name_Alternatives_BaseAlternativeBegin_Row = "Alternatives_BaseAlternativeBegin_Row"
C60: Alternatives_BaseAlternativeEnd_Row | D60: =CELL("row",Alternatives_MasterList!D9) -> 9 | E60: Public Const Name_Alternatives_BaseAlternativeEnd_Row = "Alternatives_BaseAlternativeEnd_Row"
C61: Alternatives_BaseAlternativeBegin_Column | D61: =CELL("col",Alternatives_MasterList!A9) -> 1 | E61: Public Const Name_Alternatives_BaseAlternativeBegin_Column = "Alternatives_BaseAlternativeBegin_Column"
C62: Alternatives_BaseAlternativeEnd_Column | D62: =CELL("col",Alternatives_MasterList!D9) -> 4 | E62: Public Const Name_Alternatives_BaseAlternativeEnd_Column = "Alternatives_BaseAlternativeEnd_Column"
B63: Alternative information | E63: ' -- Alternative information
C64: Alternatives_AlternativeNumber_Column | D64: =CELL("col",Alternatives_MasterList!A9) -> 1 | E64: Public Const Name_Alternatives_AlternativeNumber_Column = "Alternatives_AlternativeNumber_Column"
C65: Alternatives_AlternativeShortName_Column | D65: =CELL("col",Alternatives_MasterList!B9) -> 2 | E65: Public Const Name_Alternatives_AlternativeShortName_Column = "Alternatives_AlternativeShortName_Column"
C66: Alternatives_AlternativeDescription_Column | D66: =CELL("col",Alternatives_MasterList!C9) -> 3 | E66: Public Const Name_Alternatives_AlternativeDescription_Column = "Alternatives_AlternativeDescription_Column"
C67: Alternatives_AlternativeNotesColumn | D67: =CELL("col",Alternatives_MasterList!D9) -> 4 | E67: Public Const Name_Alternatives_AlternativeNotesColumn = "Alternatives_AlternativeNotesColumn"
E69: =IF(AND(ISBLANK(A69),NOT(ISBLANK(A70))),"'"&REPT("*",100),IF(NOT(ISBLANK(A69)),"' ** "&A69,IF(NOT(ISBLANK(B69)),"' -- "&B69,IF(NOT(ISBLANK(C69)),SUBSTITUTE($E$2,"xxx",C69),"")))) -> 
E70: '****************************************************************************************************
A71: Defined alternative (specific alternative) | E71: ' ** Defined alternative (specific alternative)
B72: Alternative information | E72: ' -- Alternative information
C73: DefinedAlternative_ShortName_Row | D73: =CELL("row",BaseCase!B1) -> 1 | E73: Public Const Name_DefinedAlternative_ShortName_Row = "DefinedAlternative_ShortName_Row"
C74: DefinedAlternative_ShortName_Column | D74: =CELL("col",BaseCase!A1) -> 1 | E74: Public Const Name_DefinedAlternative_ShortName_Column = "DefinedAlternative_ShortName_Column"
C75: DefinedAlternative_AlternativeDescription_Row | D75: =CELL("row",BaseCase!B3) -> 3 | E75: Public Const Name_DefinedAlternative_AlternativeDescription_Row = "DefinedAlternative_AlternativeDescription_Row"
C76: DefinedAlternative_AlternativeDescription_Column | D76: =CELL("col",BaseCase!B3) -> 2 | E76: Public Const Name_DefinedAlternative_AlternativeDescription_Column = "DefinedAlternative_AlternativeDescription_Column"
B78: User defined years | E78: ' -- User defined years
C79: DefinedAlternative_YearSpecification_Column | D79: =CELL("col",BaseCase!C5) -> 3 | E79: Public Const Name_DefinedAlternative_YearSpecification_Column = "DefinedAlternative_YearSpecification_Column"
C80: DefinedAlternative_Year_BeginPlanningConstruction_Row | D80: =CELL("row",BaseCase!C5) -> 5 | E80: Public Const Name_DefinedAlternative_Year_BeginPlanningConstruction_Row = "DefinedAlternative_Year_BeginPlanningConstruction_Row"
C81: DefinedAlternative_Year_Opening_Row | D81: =CELL("row",BaseCase!C6) -> 6 | E81: Public Const Name_DefinedAlternative_Year_Opening_Row = "DefinedAlternative_Year_Opening_Row"
C82: DefinedAlternative_Year_Interim_First_Row | D82: =CELL("row",BaseCase!C7) -> 7 | E82: Public Const Name_DefinedAlternative_Year_Interim_First_Row = "DefinedAlternative_Year_Interim_First_Row"
C83: DefinedAlternative_Year_Interim_Last_Row | D83: =CELL("row",BaseCase!C9) -> 9 | E83: Public Const Name_DefinedAlternative_Year_Interim_Last_Row = "DefinedAlternative_Year_Interim_Last_Row"
C84: DefinedAlternative_Year_End_Row | D84: =CELL("row",BaseCase!C10) -> 10 | E84: Public Const Name_DefinedAlternative_Year_End_Row = "DefinedAlternative_Year_End_Row"
C85: DefinedAlternative_InterimYearWarning_Row | D85: =CELL("row",BaseCase!H7) -> 7 | E85: Public Const Name_DefinedAlternative_InterimYearWarning_Row = "DefinedAlternative_InterimYearWarning_Row"
C86: DefinedAlternative_InterimYearWarning_Column | D86: =CELL("col",BaseCase!H7) -> 8 | E86: Public Const Name_DefinedAlternative_InterimYearWarning_Column = "DefinedAlternative_InterimYearWarning_Column"
B89: Planning & construction costs | E89: ' -- Planning & construction costs
C90: DefinedAlternative_OtherPlanningConstructionCosts_Prompt | D90: (Other planning & construction costs) | E90: Public Const Name_DefinedAlternative_OtherPlanningConstructionCosts_Prompt = "DefinedAlternative_OtherPlanningConstructionCosts_Prompt"
C91: DefinedAlternative_OtherPlanningConstructionCosts_Labels_BeginRow | D91: =CELL("row",BaseCase!A21) -> 21 | E91: Public Const Name_DefinedAlternative_OtherPlanningConstructionCosts_Labels_BeginRow = "DefinedAlternative_OtherPlanningConstructionCosts_Labels_BeginRow"
C92: DefinedAlternative_OtherPlanningConstructionCosts_Labels_BeginColumn | D92: =CELL("col",BaseCase!A21) -> 1 | E92: Public Const Name_DefinedAlternative_OtherPlanningConstructionCosts_Labels_BeginColumn = "DefinedAlternative_OtherPlanningConstructionCosts_Labels_BeginColumn"
C93: DefinedAlternative_OtherPlanningConstructionCosts_Labels_EndRow | D93: =CELL("row",BaseCase!A30) -> 30 | E93: Public Const Name_DefinedAlternative_OtherPlanningConstructionCosts_Labels_EndRow = "DefinedAlternative_OtherPlanningConstructionCosts_Labels_EndRow"
C94: DefinedAlternative_OtherPlanningConstructionCosts_Labels_EndColumn | D94: =CELL("col",BaseCase!A30) -> 1 | E94: Public Const Name_DefinedAlternative_OtherPlanningConstructionCosts_Labels_EndColumn = "DefinedAlternative_OtherPlanningConstructionCosts_Labels_EndColumn"
C95: DefinedAlternative_PlanningConstructionCosts_Values_BeginRow | D95: =CELL("row",BaseCase!C14) -> 14 | E95: Public Const Name_DefinedAlternative_PlanningConstructionCosts_Values_BeginRow = "DefinedAlternative_PlanningConstructionCosts_Values_BeginRow"
C96: DefinedAlternative_PlanningConstructionCosts_Values_BeginColumn | D96: =CELL("col",BaseCase!C14) -> 3 | E96: Public Const Name_DefinedAlternative_PlanningConstructionCosts_Values_BeginColumn = "DefinedAlternative_PlanningConstructionCosts_Values_BeginColumn"
C97: DefinedAlternative_PlanningConstructionCosts_Values_EndRow | D97: =CELL("row",BaseCase!H30) -> 30 | E97: Public Const Name_DefinedAlternative_PlanningConstructionCosts_Values_EndRow = "DefinedAlternative_PlanningConstructionCosts_Values_EndRow"
C98: DefinedAlternative_PlanningConstructionCosts_Values_EndColumn | D98: =CELL("col",BaseCase!H30) -> 8 | E98: Public Const Name_DefinedAlternative_PlanningConstructionCosts_Values_EndColumn = "DefinedAlternative_PlanningConstructionCosts_Values_EndColumn"
B100: Post opening costs | E100: ' -- Post opening costs
C101: DefinedAlternative_OtherOMCosts_Prompt | D101: (Other O&M costs) | E101: Public Const Name_DefinedAlternative_OtherOMCosts_Prompt = "DefinedAlternative_OtherOMCosts_Prompt"
C102: DefinedAlternative_OtherOMCosts_Labels_BeginRow | D102: =CELL("row",BaseCase!A37) -> 37 | E102: Public Const Name_DefinedAlternative_OtherOMCosts_Labels_BeginRow = "DefinedAlternative_OtherOMCosts_Labels_BeginRow"
C103: DefinedAlternative_OtherOMCosts_Labels_BeginColumn | D103: =CELL("col",BaseCase!A37) -> 1 | E103: Public Const Name_DefinedAlternative_OtherOMCosts_Labels_BeginColumn = "DefinedAlternative_OtherOMCosts_Labels_BeginColumn"
C104: DefinedAlternative_OtherOMCosts_Labels_EndRow | D104: =CELL("row",BaseCase!A46) -> 46 | E104: Public Const Name_DefinedAlternative_OtherOMCosts_Labels_EndRow = "DefinedAlternative_OtherOMCosts_Labels_EndRow"
C105: DefinedAlternative_OtherOMCosts_Labels_EndColumn | D105: =CELL("col",BaseCase!A46) -> 1 | E105: Public Const Name_DefinedAlternative_OtherOMCosts_Labels_EndColumn = "DefinedAlternative_OtherOMCosts_Labels_EndColumn"
C106: DefinedAlternative_OMCosts_Values_BeginRow | D106: =CELL("row",BaseCase!C33) -> 33 | E106: Public Const Name_DefinedAlternative_OMCosts_Values_BeginRow = "DefinedAlternative_OMCosts_Values_BeginRow"
C107: DefinedAlternative_OMCosts_Values_BeginColumn | D107: =CELL("col",BaseCase!C33) -> 3 | E107: Public Const Name_DefinedAlternative_OMCosts_Values_BeginColumn = "DefinedAlternative_OMCosts_Values_BeginColumn"
C108: DefinedAlternative_OMCosts_Values_EndRow | D108: =CELL("row",BaseCase!F46) -> 46 | E108: Public Const Name_DefinedAlternative_OMCosts_Values_EndRow = "DefinedAlternative_OMCosts_Values_EndRow"
C109: DefinedAlternative_OMCosts_Values_EndColumn | D109: =CELL("col",BaseCase!F46) -> 6 | E109: Public Const Name_DefinedAlternative_OMCosts_Values_EndColumn = "DefinedAlternative_OMCosts_Values_EndColumn"
B111: Demand & travel time - user inputs | E111: ' -- Demand & travel time - user inputs
C112: DefinedAlternative_UserInput_DemandTravelTime_BeginRow | D112: =CELL("row",BaseCase!D50) -> 50 | E112: Public Const Name_DefinedAlternative_UserInput_DemandTravelTime_BeginRow = "DefinedAlternative_UserInput_DemandTravelTime_BeginRow"
C113: DefinedAlternative_UserInput_DemandTravelTime_BeginColumn | D113: =CELL("col",BaseCase!D50) -> 4 | E113: Public Const Name_DefinedAlternative_UserInput_DemandTravelTime_BeginColumn = "DefinedAlternative_UserInput_DemandTravelTime_BeginColumn"
C114: DefinedAlternative_UserInput_DemandTravelTime_EndRow | D114: =CELL("row",BaseCase!D57) -> 57 | E114: Public Const Name_DefinedAlternative_UserInput_DemandTravelTime_EndRow = "DefinedAlternative_UserInput_DemandTravelTime_EndRow"
C115: DefinedAlternative_UserInput_DemandTravelTime_EndColumn | D115: =CELL("col",BaseCase!H57) -> 8 | E115: Public Const Name_DefinedAlternative_UserInput_DemandTravelTime_EndColumn = "DefinedAlternative_UserInput_DemandTravelTime_EndColumn"
B117: Safety | E117: ' -- Safety
C118: DefinedAlternative_Safety_Values_BeginRow | D118: =CELL("row",BaseCase!D60) -> 60 | E118: Public Const Name_DefinedAlternative_Safety_Values_BeginRow = "DefinedAlternative_Safety_Values_BeginRow"
C119: DefinedAlternative_Safety_Values_BeginColumn | D119: =CELL("col",BaseCase!D60) -> 4 | E119: Public Const Name_DefinedAlternative_Safety_Values_BeginColumn = "DefinedAlternative_Safety_Values_BeginColumn"
C120: DefinedAlternative_Safety_Values_EndRow | D120: =CELL("row",BaseCase!J64) -> 64 | E120: Public Const Name_DefinedAlternative_Safety_Values_EndRow = "DefinedAlternative_Safety_Values_EndRow"
C121: DefinedAlternative_Safety_Values_EndColumn | D121: =CELL("col",BaseCase!I64) -> 9 | E121: Public Const Name_DefinedAlternative_Safety_Values_EndColumn = "DefinedAlternative_Safety_Values_EndColumn"
B123: Emissions | E123: ' -- Emissions
C124: DefinedAlternative_Emissions_Values_BeginRow | D124: =CELL("row",BaseCase!D67) -> 67 | E124: Public Const Name_DefinedAlternative_Emissions_Values_BeginRow = "DefinedAlternative_Emissions_Values_BeginRow"
C125: DefinedAlternative_Emissions_Values_BeginColumn | D125: =CELL("col",BaseCase!D67) -> 4 | E125: Public Const Name_DefinedAlternative_Emissions_Values_BeginColumn = "DefinedAlternative_Emissions_Values_BeginColumn"
C126: DefinedAlternative_Emissions_Values_EndRow | D126: =CELL("row",BaseCase!J71) -> 71 | E126: =IF(AND(ISBLANK(A126),NOT(ISBLANK(A127))),"'"&REPT("*",100),IF(NOT(ISBLANK(A126)),"' ** "&A126,IF(NOT(ISBLANK(B126)),"' -- "&B126,IF(NOT(ISBLANK(C126)),SUBSTITUTE($E$2,"xxx",C126),"")))) -> Public Const Name_DefinedAlternative_Emissions_Values_EndRow = "DefinedAlternative_Emissions_Values_EndRow"
C127: DefinedAlternative_Emissions_Values_EndColumn | D127: =CELL("col",BaseCase!J71) -> 10 | E127: =IF(AND(ISBLANK(A127),NOT(ISBLANK(A128))),"'"&REPT("*",100),IF(NOT(ISBLANK(A127)),"' ** "&A127,IF(NOT(ISBLANK(B127)),"' -- "&B127,IF(NOT(ISBLANK(C127)),SUBSTITUTE($E$2,"xxx",C127),"")))) -> Public Const Name_DefinedAlternative_Emissions_Values_EndColumn = "DefinedAlternative_Emissions_Values_EndColumn"
B129: Hourly user cost calculations | E129: ' -- Hourly user cost calculations
C130: DefinedAlternative_HourlyUserCostCalculations_BeginRow | D130: =CELL("row",BaseCase!B203) -> 203 | E130: Public Const Name_DefinedAlternative_HourlyUserCostCalculations_BeginRow = "DefinedAlternative_HourlyUserCostCalculations_BeginRow"
C131: DefinedAlternative_HourlyUserCostCalculations_BeginColumn | D131: =CELL("col",BaseCase!B203) -> 2 | E131: Public Const Name_DefinedAlternative_HourlyUserCostCalculations_BeginColumn = "DefinedAlternative_HourlyUserCostCalculations_BeginColumn"
C132: DefinedAlternative_HourlyUserCostCalculations_EndRow | D132: =CELL("row",BaseCase!AO8962) -> 8962 | E132: Public Const Name_DefinedAlternative_HourlyUserCostCalculations_EndRow = "DefinedAlternative_HourlyUserCostCalculations_EndRow"
C133: DefinedAlternative_HourlyUserCostCalculations_EndColumn | D133: =CELL("col",BaseCase!AQ203) -> 43 | E133: =IF(AND(ISBLANK(A133),NOT(ISBLANK(A134))),"'"&REPT("*",100),IF(NOT(ISBLANK(A133)),"' ** "&A133,IF(NOT(ISBLANK(B133)),"' -- "&B133,IF(NOT(ISBLANK(C133)),SUBSTITUTE($E$2,"xxx",C133),"")))) -> Public Const Name_DefinedAlternative_HourlyUserCostCalculations_EndColumn = "DefinedAlternative_HourlyUserCostCalculations_EndColumn"
B135: Travel time model -- log volumes | E135: ' -- Travel time model -- log volumes
C136: DefinedAlternative_TravelTimeModel_LogVolume_BeginColumn | D136: =CELL("col",BaseCase!D84) -> 4 | E136: Public Const Name_DefinedAlternative_TravelTimeModel_LogVolume_BeginColumn = "DefinedAlternative_TravelTimeModel_LogVolume_BeginColumn"
C137: DefinedAlternative_TravelTimeModel_LogVolume_PeakHour_AM_Row | D137: =CELL("row",BaseCase!D84) -> 84 | E137: Public Const Name_DefinedAlternative_TravelTimeModel_LogVolume_PeakHour_AM_Row = "DefinedAlternative_TravelTimeModel_LogVolume_PeakHour_AM_Row"
C138: DefinedAlternative_TravelTimeModel_LogVolume_PeakHour_PM_Row | D138: =CELL("row",BaseCase!D85) -> 85 | E138: =IF(AND(ISBLANK(A138),NOT(ISBLANK(A139))),"'"&REPT("*",100),IF(NOT(ISBLANK(A138)),"' ** "&A138,IF(NOT(ISBLANK(B138)),"' -- "&B138,IF(NOT(ISBLANK(C138)),SUBSTITUTE($E$2,"xxx",C138),"")))) -> Public Const Name_DefinedAlternative_TravelTimeModel_LogVolume_PeakHour_PM_Row = "DefinedAlternative_TravelTimeModel_LogVolume_PeakHour_PM_Row"
C139: DefinedAlternative_TravelTimeModel_LogVolume_AverageHourly_Offpeak_Row | D139: =CELL("row",BaseCase!D86) -> 86 | E139: Public Const Name_DefinedAlternative_TravelTimeModel_LogVolume_AverageHourly_Offpeak_Row = "DefinedAlternative_TravelTimeModel_LogVolume_AverageHourly_Offpeak_Row"
C140: DefinedAlternative_TravelTimeModel_LogVolume_EndColumn | D140: =CELL("col",BaseCase!H84) -> 8 | E140: =IF(AND(ISBLANK(A140),NOT(ISBLANK(A142))),"'"&REPT("*",100),IF(NOT(ISBLANK(A140)),"' ** "&A140,IF(NOT(ISBLANK(B140)),"' -- "&B140,IF(NOT(ISBLANK(C140)),SUBSTITUTE($E$2,"xxx",C140),"")))) -> Public Const Name_DefinedAlternative_TravelTimeModel_LogVolume_EndColumn = "DefinedAlternative_TravelTimeModel_LogVolume_EndColumn"
B142: Demand & travel time - copied values in hourly user cost calculations sections | E142: ' -- Demand & travel time - copied values in hourly user cost calculations sections
C143: DefinedAlternative_HourlyUserCostCalculations_OpeningYear_BeginColumn | D143: =CELL("col",BaseCase!B203) -> 2 | E143: Public Const Name_DefinedAlternative_HourlyUserCostCalculations_OpeningYear_BeginColumn = "DefinedAlternative_HourlyUserCostCalculations_OpeningYear_BeginColumn"
C144: DefinedAlternative_HourlyUserCostCalculations_EndYear_BeginColumn | D144: =CELL("col",BaseCase!AH203) -> 34 | E144: Public Const Name_DefinedAlternative_HourlyUserCostCalculations_EndYear_BeginColumn = "DefinedAlternative_HourlyUserCostCalculations_EndYear_BeginColumn"
C145: DefinedAlternative_HourlyUserCostCalculations_InterimYears_BeginColumn | D145: =CELL("col",BaseCase!J203) -> 10 | E145: Public Const Name_DefinedAlternative_HourlyUserCostCalculations_InterimYears_BeginColumn = "DefinedAlternative_HourlyUserCostCalculations_InterimYears_BeginColumn"
C146: DefinedAlternative_HourlyUserCostCalculations_ColumnOffset_AverageTravelTime | D146: =CELL("col",BaseCase!B203)-CELL("col",BaseCase!B203) -> 0 | E146: Public Const Name_DefinedAlternative_HourlyUserCostCalculations_ColumnOffset_AverageTravelTime = "DefinedAlternative_HourlyUserCostCalculations_ColumnOffset_AverageTravelTime"
C147: DefinedAlternative_HourlyUserCostCalculations_ColumnOffset_ReliabilityInsuranceTime | D147: =CELL("col",BaseCase!C203)-CELL("col",BaseCase!B203) -> 1 | E147: Public Const Name_DefinedAlternative_HourlyUserCostCalculations_ColumnOffset_ReliabilityInsuranceTime = "DefinedAlternative_HourlyUserCostCalculations_ColumnOffset_ReliabilityInsuranceTime"
C148: DefinedAlternative_HourlyUserCostCalculations_ColumnOffset_AutoPassengerTimeCost | D148: =CELL("col",BaseCase!D203)-CELL("col",BaseCase!B203) -> 2 | E148: Public Const Name_DefinedAlternative_HourlyUserCostCalculations_ColumnOffset_AutoPassengerTimeCost = "DefinedAlternative_HourlyUserCostCalculations_ColumnOffset_AutoPassengerTimeCost"
C149: DefinedAlternative_HourlyUserCostCalculations_ColumnOffset_AutoPassengerReliabilityCost | D149: =CELL("col",BaseCase!E203)-CELL("col",BaseCase!B203) -> 3 | E149: Public Const Name_DefinedAlternative_HourlyUserCostCalculations_ColumnOffset_AutoPassengerReliabilityCost = "DefinedAlternative_HourlyUserCostCalculations_ColumnOffset_AutoPassengerReliabilityCost"
C150: DefinedAlternative_HourlyUserCostCalculations_ColumnOffset_TruckTimeCost | D150: =CELL("col",BaseCase!F203)-CELL("col",BaseCase!B203) -> 4 | E150: Public Const Name_DefinedAlternative_HourlyUserCostCalculations_ColumnOffset_TruckTimeCost = "DefinedAlternative_HourlyUserCostCalculations_ColumnOffset_TruckTimeCost"
C151: DefinedAlternative_HourlyUserCostCalculations_ColumnOffset_TruckReliabilityCost | D151: =CELL("col",BaseCase!G203)-CELL("col",BaseCase!B203) -> 5 | E151: Public Const Name_DefinedAlternative_HourlyUserCostCalculations_ColumnOffset_TruckReliabilityCost = "DefinedAlternative_HourlyUserCostCalculations_ColumnOffset_TruckReliabilityCost"
C152: DefinedAlternative_HourlyUserCostCalculations_ColumnOffset_TransitPassengerTimeCost | D152: =CELL("col",BaseCase!H203)-CELL("col",BaseCase!B203) -> 6 | E152: Public Const Name_DefinedAlternative_HourlyUserCostCalculations_ColumnOffset_TransitPassengerTimeCost = "DefinedAlternative_HourlyUserCostCalculations_ColumnOffset_TransitPassengerTimeCost"
C153: DefinedAlternative_HourlyUserCostCalculations_ColumnOffset_TransitPassengerReliabilityCost | D153: =CELL("col",BaseCase!I203)-CELL("col",BaseCase!B203) -> 7 | E153: Public Const Name_DefinedAlternative_HourlyUserCostCalculations_ColumnOffset_TransitPassengerReliabilityCost = "DefinedAlternative_HourlyUserCostCalculations_ColumnOffset_TransitPassengerReliabilityCost"
C154: DefinedAlternative_HourlyUserCostCalculations_N_ColumnsPerYear | D154: =CELL("col",BaseCase!I203)-CELL("col",BaseCase!B203)+1 -> 8 | E154: Public Const Name_DefinedAlternative_HourlyUserCostCalculations_N_ColumnsPerYear = "DefinedAlternative_HourlyUserCostCalculations_N_ColumnsPerYear"
C155: DefinedAlternative_HourlyUserCostCalculations_YearRow | D155: =CELL("row",BaseCase!B198) -> 198 | E155: Public Const Name_DefinedAlternative_HourlyUserCostCalculations_YearRow = "DefinedAlternative_HourlyUserCostCalculations_YearRow"
C156: DefinedAlternative_YearIndexRow | D156: =CELL("row",BaseCase!B200) -> 200 | E156: Public Const Name_DefinedAlternative_YearIndexRow = "DefinedAlternative_YearIndexRow"
B159: Bikes and peds handled differently - assume average time across the board | E159: ' -- Bikes and peds handled differently - assume average time across the board
C160: DefinedAlternative_Bicycle_TimeCost_Row | D160: =CELL("row",BaseCase!D168) -> 168 | E160: Public Const Name_DefinedAlternative_Bicycle_TimeCost_Row = "DefinedAlternative_Bicycle_TimeCost_Row"
C161: DefinedAlternative_Bicycle_TimeCost_BeginColumn | D161: =CELL("col",BaseCase!D168) -> 4 | E161: Public Const Name_DefinedAlternative_Bicycle_TimeCost_BeginColumn = "DefinedAlternative_Bicycle_TimeCost_BeginColumn"
C162: DefinedAlternative_Pedestrian_TimeCost_Row | D162: =CELL("row",BaseCase!D169) -> 169 | E162: Public Const Name_DefinedAlternative_Pedestrian_TimeCost_Row = "DefinedAlternative_Pedestrian_TimeCost_Row"
C163: DefinedAlternative_Pedestrian_TimeCost_BeginColumn | D163: =CELL("col",BaseCase!D155) -> 4 | E163: Public Const Name_DefinedAlternative_Pedestrian_TimeCost_BeginColumn = "DefinedAlternative_Pedestrian_TimeCost_BeginColumn"
C164: DefinedAlternative_Bicycle_AverageTime_Row | D164: =CELL("row",BaseCase!D56) -> 56 | E164: Public Const Name_DefinedAlternative_Bicycle_AverageTime_Row = "DefinedAlternative_Bicycle_AverageTime_Row"
C165: =SUBSTITUTE(C164,"Row","BeginColumn") -> DefinedAlternative_Bicycle_AverageTime_BeginColumn | D165: =CELL("col",BaseCase!D57) -> 4 | E165: Public Const Name_DefinedAlternative_Bicycle_AverageTime_BeginColumn = "DefinedAlternative_Bicycle_AverageTime_BeginColumn"
C166: =SUBSTITUTE(C164,"Bicycle","Pedestrian") -> DefinedAlternative_Pedestrian_AverageTime_Row | D166: =CELL("row",BaseCase!D57) -> 57 | E166: Public Const Name_DefinedAlternative_Pedestrian_AverageTime_Row = "DefinedAlternative_Pedestrian_AverageTime_Row"
C167: DefinedAlternative_Pedestrian_AverageTime_BeginColumn | D167: =CELL("col",BaseCase!D57) -> 4 | E167: Public Const Name_DefinedAlternative_Pedestrian_AverageTime_BeginColumn = "DefinedAlternative_Pedestrian_AverageTime_BeginColumn"
B169: Summary user & nonuser costs for specified years | E169: ' -- Summary user & nonuser costs for specified years
C170: DefinedAlternative_SummaryCostsForSpecifiedYears_BeginRow | D170: =CELL("row",BaseCase!D162) -> 162 | E170: Public Const Name_DefinedAlternative_SummaryCostsForSpecifiedYears_BeginRow = "DefinedAlternative_SummaryCostsForSpecifiedYears_BeginRow"
C171: DefinedAlternative_SummaryCostsForSpecifiedYears_OpeningYear_Column | D171: =CELL("col",BaseCase!D162) -> 4 | E171: Public Const Name_DefinedAlternative_SummaryCostsForSpecifiedYears_OpeningYear_Column = "DefinedAlternative_SummaryCostsForSpecifiedYears_OpeningYear_Column"
C172: DefinedAlternative_SummaryCostsForSpecifiedYears_InterimYears_BeginColumn | D172: =CELL("col",BaseCase!E162) -> 5 | E172: Public Const Name_DefinedAlternative_SummaryCostsForSpecifiedYears_InterimYears_BeginColumn = "DefinedAlternative_SummaryCostsForSpecifiedYears_InterimYears_BeginColumn"
C173: DefinedAlternative_SummaryCostsForSpecifiedYears_EndYear_Column | D173: =CELL("col",BaseCase!H162) -> 8 | E173: Public Const Name_DefinedAlternative_SummaryCostsForSpecifiedYears_EndYear_Column = "DefinedAlternative_SummaryCostsForSpecifiedYears_EndYear_Column"
B175: Annual cost streams for user & nonuser costs | E175: ' -- Annual cost streams for user & nonuser costs
C176: DefinedAlternative_AnnualCostStream_BeginRow | D176: =CELL("row",BaseCase!L162) -> 162 | E176: Public Const Name_DefinedAlternative_AnnualCostStream_BeginRow = "DefinedAlternative_AnnualCostStream_BeginRow"
C177: DefinedAlternative_AnnualCostStream_BeginColumn | D177: =CELL("col",BaseCase!L162) -> 12 | E177: Public Const Name_DefinedAlternative_AnnualCostStream_BeginColumn = "DefinedAlternative_AnnualCostStream_BeginColumn"
C178: DefinedAlternative_AnnualCostStream_EndRow | D178: =CELL("row",BaseCase!L172) -> 172 | E178: Public Const Name_DefinedAlternative_AnnualCostStream_EndRow = "DefinedAlternative_AnnualCostStream_EndRow"
C179: DefinedAlternative_AnnualCostStream_EndColumn | D179: =CELL("col",BaseCase!DG162) -> 111 | E179: Public Const Name_DefinedAlternative_AnnualCostStream_EndColumn = "DefinedAlternative_AnnualCostStream_EndColumn"
C180: DefinedAlternative_AnnualCostStream_YearRow | D180: =CELL("row",BaseCase!L128) -> 128 | E180: Public Const Name_DefinedAlternative_AnnualCostStream_YearRow = "DefinedAlternative_AnnualCostStream_YearRow"
E182: '****************************************************************************************************
A183: DemandParameters sheet | E183: ' ** DemandParameters sheet
C184: DemandParameters_MaxYears | D184: =CELL("col",DemandParameters!L28)-CELL("col",DemandParameters!C28)+1 -> 10 | E184: Public Const Name_DemandParameters_MaxYears = "DemandParameters_MaxYears"
C185: DemandParameters_Header_YearNumber_Row | D185: =CELL("row",DemandParameters!C28) -> 28 | E185: Public Const Name_DemandParameters_Header_YearNumber_Row = "DemandParameters_Header_YearNumber_Row"
C186: DemandParameters_Header_Year_Row | D186: =CELL("row",DemandParameters!C29) -> 29 | E186: Public Const Name_DemandParameters_Header_Year_Row = "DemandParameters_Header_Year_Row"
C187: DemandParameters_Header_YearBegin_Column | D187: =CELL("col",DemandParameters!C29) -> 3 | E187: Public Const Name_DemandParameters_Header_YearBegin_Column = "DemandParameters_Header_YearBegin_Column"
C188: DemandParameters_Header_TotalEnteringVehicles_Row | D188: =CELL("row",DemandParameters!C23) -> 23 | E188: =IF(AND(ISBLANK(A188),NOT(ISBLANK(A192))),"'"&REPT("*",100),IF(NOT(ISBLANK(A188)),"' ** "&A188,IF(NOT(ISBLANK(B188)),"' -- "&B188,IF(NOT(ISBLANK(C188)),SUBSTITUTE($E$2,"xxx",C188),"")))) -> Public Const Name_DemandParameters_Header_TotalEnteringVehicles_Row = "DemandParameters_Header_TotalEnteringVehicles_Row"
C189: DemandParameters_Header_HourlyVolume_PeakHour_AM_Row | D189: =CELL("row",DemandParameters!C31) -> 31 | E189: =IF(AND(ISBLANK(A189),NOT(ISBLANK(A193))),"'"&REPT("*",100),IF(NOT(ISBLANK(A189)),"' ** "&A189,IF(NOT(ISBLANK(B189)),"' -- "&B189,IF(NOT(ISBLANK(C189)),SUBSTITUTE($E$2,"xxx",C189),"")))) -> Public Const Name_DemandParameters_Header_HourlyVolume_PeakHour_AM_Row = "DemandParameters_Header_HourlyVolume_PeakHour_AM_Row"
C190: DemandParameters_Header_HourlyVolume_PeakHour_PM_Row | D190: =CELL("row",DemandParameters!C32) -> 32 | E190: Public Const Name_DemandParameters_Header_HourlyVolume_PeakHour_PM_Row = "DemandParameters_Header_HourlyVolume_PeakHour_PM_Row"
C191: DemandParameters_Header_HourlyVolume_AverageHourly_Offpeak_Row | D191: =CELL("row",DemandParameters!C33) -> 33 | E191: Public Const Name_DemandParameters_Header_HourlyVolume_AverageHourly_Offpeak_Row = "DemandParameters_Header_HourlyVolume_AverageHourly_Offpeak_Row"
C192: DemandParameters_Header_AverageAutoOccupancy_Row | D192: =CELL("row",DemandParameters!C34) -> 34 | E192: Public Const Name_DemandParameters_Header_AverageAutoOccupancy_Row = "DemandParameters_Header_AverageAutoOccupancy_Row"
C193: DemandParameters_Header_TruckPercent_Row | D193: =CELL("row",DemandParameters!C35) -> 35 | E193: Public Const Name_DemandParameters_Header_TruckPercent_Row = "DemandParameters_Header_TruckPercent_Row"
C194: DemandParameters_Header_TransitPassengers_Row | D194: =CELL("row",DemandParameters!C36) -> 36 | E194: Public Const Name_DemandParameters_Header_TransitPassengers_Row = "DemandParameters_Header_TransitPassengers_Row"
C195: DemandParameters_Header_Bicycles_Row | D195: =CELL("row",DemandParameters!C37) -> 37 | E195: Public Const Name_DemandParameters_Header_Bicycles_Row = "DemandParameters_Header_Bicycles_Row"
C196: DemandParameters_Header_Pedestrians_Row | D196: =CELL("row",DemandParameters!C38) -> 38 | E196: Public Const Name_DemandParameters_Header_Pedestrians_Row = "DemandParameters_Header_Pedestrians_Row"
C197: DemandParameters_HourlyData_Year_Row | D197: =CELL("row",DemandParameters!G165) -> 165 | E197: Public Const Name_DemandParameters_HourlyData_Year_Row = "DemandParameters_HourlyData_Year_Row"
C198: DemandParameters_HourlyData_DateTime_Column | D198: =CELL("col",DemandParameters!A167) -> 1 | E198: Public Const Name_DemandParameters_HourlyData_DateTime_Column = "DemandParameters_HourlyData_DateTime_Column"
C199: DemandParameters_HourlyData_DayType_Column | D199: =CELL("col",DemandParameters!B167) -> 2 | E199: Public Const Name_DemandParameters_HourlyData_DayType_Column = "DemandParameters_HourlyData_DayType_Column"
C200: DemandParameters_HourlyData_TimeOfDay_Column | D200: =CELL("col",DemandParameters!C167) -> 3 | E200: Public Const Name_DemandParameters_HourlyData_TimeOfDay_Column = "DemandParameters_HourlyData_TimeOfDay_Column"
C201: DemandParameters_HourlyData_BeginRow | D201: =CELL("row",DemandParameters!C167) -> 167 | E201: =IF(AND(ISBLANK(A201),NOT(ISBLANK(A202))),"'"&REPT("*",100),IF(NOT(ISBLANK(A201)),"' ** "&A201,IF(NOT(ISBLANK(B201)),"' -- "&B201,IF(NOT(ISBLANK(C201)),SUBSTITUTE($E$2,"xxx",C201),"")))) -> Public Const Name_DemandParameters_HourlyData_BeginRow = "DemandParameters_HourlyData_BeginRow"
C202: DemandParameters_HourlyData_DemandData_BeginColumn | D202: =CELL("col",DemandParameters!G167) -> 7 | E202: Public Const Name_DemandParameters_HourlyData_DemandData_BeginColumn = "DemandParameters_HourlyData_DemandData_BeginColumn"
C203: DemandParameters_HourlyData_EndRow | D203: =CELL("row",DemandParameters!G8926) -> 8926 | E203: Public Const Name_DemandParameters_HourlyData_EndRow = "DemandParameters_HourlyData_EndRow"
C204: DemandParameters_HourlyData_TotalVehicleVolume_ColumnOffset | D204: 0 | E204: Public Const Name_DemandParameters_HourlyData_TotalVehicleVolume_ColumnOffset = "DemandParameters_HourlyData_TotalVehicleVolume_ColumnOffset"
C205: DemandParameters_HourlyData_AutoPassengers_ColumnOffset | D205: 1 | E205: Public Const Name_DemandParameters_HourlyData_AutoPassengers_ColumnOffset = "DemandParameters_HourlyData_AutoPassengers_ColumnOffset"
C206: DemandParameters_HourlyData_Trucks_ColumnOffset | D206: 2 | E206: Public Const Name_DemandParameters_HourlyData_Trucks_ColumnOffset = "DemandParameters_HourlyData_Trucks_ColumnOffset"
C207: DemandParameters_HourlyData_TransitPassengers_ColumnOffset | D207: 3 | E207: Public Const Name_DemandParameters_HourlyData_TransitPassengers_ColumnOffset = "DemandParameters_HourlyData_TransitPassengers_ColumnOffset"
C208: DemandParameters_HourlyData_NColumnsPerYear | D208: =CELL("col",DemandParameters!J167)-CELL("col",DemandParameters!G167)+1 -> 4 | E208: Public Const Name_DemandParameters_HourlyData_NColumnsPerYear = "DemandParameters_HourlyData_NColumnsPerYear"
E209: =IF(AND(ISBLANK(A209),NOT(ISBLANK(A210))),"'"&REPT("*",100),IF(NOT(ISBLANK(A209)),"' ** "&A209,IF(NOT(ISBLANK(B209)),"' -- "&B209,IF(NOT(ISBLANK(C209)),SUBSTITUTE($E$2,"xxx",C209),"")))) -> 
E210: '****************************************************************************************************
A211: Defined in individual worksheets | E211: ' ** Defined in individual worksheets
B212: Alternatives sheet | E212: ' -- Alternatives sheet
C213: BaseYear | D213: (defined in worksheet) | E213: Public Const Name_BaseYear = "BaseYear"
C214: AlternativeNumber_0 | D214: (defined in worksheet) | E214: Public Const Name_AlternativeNumber_0 = "AlternativeNumber_0"
C215: AlternativeShortName_0 | D215: (defined in worksheet) | E215: Public Const Name_AlternativeShortName_0 = "AlternativeShortName_0"
C216: AlternativeDescription_0 | D216: (defined in worksheet) | E216: Public Const Name_AlternativeDescription_0 = "AlternativeDescription_0"
B217: Cost parameters | E217: ' -- Cost parameters
C218: Discount_Rate | D218: (defined in worksheet) | E218: Public Const Name_Discount_Rate = "Discount_Rate"
C219: TimeValue_Person_Peak | D219: (defined in worksheet) | E219: Public Const Name_TimeValue_Person_Peak = "TimeValue_Person_Peak"
C220: TimeValue_Person_Offpeak | D220: (defined in worksheet) | E220: Public Const Name_TimeValue_Person_Offpeak = "TimeValue_Person_Offpeak"
C221: TimeValue_Truck | D221: (defined in worksheet) | E221: Public Const Name_TimeValue_Truck = "TimeValue_Truck"
C222: GHG_InitialValuationYear | D222: (defined in worksheet) | E222: Public Const Name_GHG_InitialValuationYear = "GHG_InitialValuationYear"
C223: GHG_InitialYearValuation | D223: (defined in worksheet) | E223: Public Const Name_GHG_InitialYearValuation = "GHG_InitialYearValuation"
... 7 more rows

Sheet NumericValues
A1: Numeric Values
A3: Day of week
A4: 1 | B4: Mon
A5: 2 | B5: Tue
A6: 3 | B6: Wed
A7: 4 | B7: Thu
A8: 5 | B8: Fri
A9: 6 | B9: Sat
A10: 7 | B10: Sun
A12: Time period
A13: 1 | B13: AM peak
A14: 2 | B14: PM peak
A15: 3 | B15: Offpeak
A17: HoursPerYear | B17: =24*365 -> 8760
A18: SecondsPerHour | B18: =3600 -> 3600
A20: Dropdown/Validation Options
A21: Rural Interstate
A22: Rural Principal Arterial
A23: Rural Minor Arterial
A24: Rural Major Collector
A25: Rural Minor Collector
A26: Urban Interstate
A27: Urban Other Frwy & Expwy
A28: Urban Principal Arterial
A29: Urban Minor Arterial
A31: Average Annual Volume
A32: Specific Day/Month
A34: 00:00:00
A35: 01:00:00
A36: 02:00:00
A37: 03:00:00
A38: 04:00:00
A39: 05:00:00
A40: 06:00:00
A41: 07:00:00
A42: 08:00:00
A43: 09:00:00
A44: 10:00:00
A45: 11:00:00
A46: 12:00:00
A47: 13:00:00
A48: 14:00:00
A49: 15:00:00
A50: 16:00:00
A51: 17:00:00
A52: 18:00:00
A53: 19:00:00
A54: 20:00:00
A55: 21:00:00
A56: 22:00:00
A57: 23:00:00

Sheet UserSelections
A1: User Selections
A3: Crash categories
A4: IsChecked_CrashCategories_KABCO | B4: TRUE
A5: IsChecked_CrashCategories_FatalityInjuryPDO | B5: FALSE
A6: IsChecked_CrashCategories_TotalCrashes | B6: FALSE
A7: IsChecked_CrashCategories_UserDefined | B7: FALSE
A9: Greenhouse gas values
A10: IsChecked_GHG_Values_FederalMethod | B10: TRUE
A11: IsChecked_GHG_Values_UserDefined | B11: FALSE
A13: Criteria pollutants
A14: IsChecked_CriteriaPollutantCategories_ByType | B14: TRUE
A15: IsChecked_CriteriaPollutantCategories_UserDefined | B15: FALSE
A17: Facility types | C17: old
A18: Presentation order
A19: Urban interstate | B19: 6
A20: Urban other freeway / expressway | B20: 7
A21: Urban principal arterial | B21: 8
A22: Urban minor arterial | B22: 9
A23: Urban major collector | B23: -1
A24: Urban minor collector | B24: -1
A25: Rural interstate | B25: 1
A26: Rural principal arterial | B26: 2
A27: Rural minor arterial | B27: 3
A28: Rural major collector | B28: 4
A29: Rural minor collector | B29: 5
A31: User selected facility type | B31: Name | C31: Number
B32: Urban interstate | C32: =VLOOKUP(FacilityTypeSelection,$A$35:$B$45,2,FALSE) -> 6
A34: Alpha order
A35: Rural interstate | B35: 1
A36: Rural major collector | B36: 4
A37: Rural minor arterial | B37: 3
A38: Rural minor collector | B38: 5
A39: Rural principal arterial | B39: 2
A40: Urban interstate | B40: 6
A41: Urban major collector | B41: -1
A42: Urban minor arterial | B42: 9
A43: Urban minor collector | B43: -1
A44: Urban other freeway / expressway | B44: 7
A45: Urban principal arterial | B45: 8

Sheet FormulaTemplates
A1: Formula Templates
B3: Referenced in VBA macros for formula entries in cells | E3: VBA declaration
E4: Public Const Name_xxx = "xxx"
B5: Note that cell references in formula templates are preceded and followed by underscores (as in _cellReferenceAlternativeNumber_) in order to stand out better.
E6: ' ****************************************************************************************************
E7: ="' "&"** FORMULAS" -> ' ** FORMULAS
A8: Worksheet name | B8: Type | C8: Name | D8: Value
E10: =IF(AND(ISBLANK(A10),NOT(ISBLANK(A11))),"' "&REPT("*",100),IF(NOT(ISBLANK(A10)),"' ** "&A10,IF(NOT(ISBLANK(B10)),"' -- "&B10,IF(NOT(ISBLANK(C10)),SUBSTITUTE($E$4,"xxx",C10),"")))) -> ' ****************************************************************************************************
A11: Worksheet for defined alternative | E11: =IF(AND(ISBLANK(A11),NOT(ISBLANK(A12))),"' "&REPT("*",100),IF(NOT(ISBLANK(A11)),"' ** "&A11,IF(NOT(ISBLANK(B11)),"' -- "&B11,IF(NOT(ISBLANK(C11)),SUBSTITUTE($E$4,"xxx",C11),"")))) -> ' ** Worksheet for defined alternative
B12: Formulas | E12: =IF(AND(ISBLANK(A12),NOT(ISBLANK(A15))),"' "&REPT("*",100),IF(NOT(ISBLANK(A12)),"' ** "&A12,IF(NOT(ISBLANK(B12)),"' -- "&B12,IF(NOT(ISBLANK(C12)),SUBSTITUTE($E$4,"xxx",C12),"")))) -> ' -- Formulas
C13: Formula_AlternativeShortName | D13: =_AlternativeNumber_&" - "&IF(OR(_AlternativeShortName_="",_AlternativeShortName_=Alternatives_DefaultAlternativeShortName),DefinedAlternative_Prompt_AlternativeShortName,_AlternativeShortName_) | E13: Public Const Name_Formula_AlternativeShortName = "Formula_AlternativeShortName"
C14: Formula_AlternativeDescription | D14: =IF(OR(_AlternativeDescription_="",_AlternativeDescription_=Alternatives_DefaultAlternativeDescription),DefinedAlternative_Prompt_AlternativeDescription,_AlternativeDescription_) | E14: Public Const Name_Formula_AlternativeDescription = "Formula_AlternativeDescription"
C15: Formula_AverageTravelTime | D15: =if(_TotalVehicleVolume_>0,EXP(AveragetravelTimeModel_Constant+AverageTravelTimeModel_LogVolumeParameter*LN(_TotalVehicleVolume_))/SecondsPerHour,0) | E15: Public Const Name_Formula_AverageTravelTime = "Formula_AverageTravelTime"
C16: Formula_ReliabilityInsuranceTime | D16: =IF(INDEX(StandardDeviationTable,_TimePeriod_,_YearIndex_)=0,0,ReliabilityInsuranceTime(0.99, _AverageTravelTime_, INDEX(StandardDeviationTable,_TimePeriod_,_YearIndex_), Discount_Rate)) | E16: Public Const Name_Formula_ReliabilityInsuranceTime = "Formula_ReliabilityInsuranceTime"
C17: Formula_AutoPassenger_TimeCost | D17: =_AverageTravelTime_*_AutoPassengers_*IF(_TimePeriod_=Code_Offpeak,TimeValue_Person_Offpeak,TimeValue_Person_Peak) | E17: Public Const Name_Formula_AutoPassenger_TimeCost = "Formula_AutoPassenger_TimeCost"
C18: Formula_AutoPassenger_ReliabilityCost | D18: =_ReliabilityInsuranceTime_*_AutoPassengers_*IF(_TimePeriod_=Code_Offpeak,TimeValue_Person_Offpeak,TimeValue_Person_Peak) | E18: Public Const Name_Formula_AutoPassenger_ReliabilityCost = "Formula_AutoPassenger_ReliabilityCost"
C19: Formula_Truck_TimeCost | D19: =_AverageTravelTime_*_Trucks_*TimeValue_Truck | E19: Public Const Name_Formula_Truck_TimeCost = "Formula_Truck_TimeCost"
C20: Formula_Truck_ReliabilityCost | D20: =_ReliabilityInsuranceTime_*_Trucks_*TimeValue_Truck | E20: Public Const Name_Formula_Truck_ReliabilityCost = "Formula_Truck_ReliabilityCost"
C21: Formula_TransitPassenger_TimeCost | D21: =_AverageTravelTime_*_TransitPassengers_*IF(_TimePeriod_=Code_Offpeak,TimeValue_Person_Offpeak,TimeValue_Person_Peak) | E21: Public Const Name_Formula_TransitPassenger_TimeCost = "Formula_TransitPassenger_TimeCost"
C22: Formula_TransitPassenger_ReliabilityCost | D22: =_ReliabilityInsuranceTime_*_TransitPassengers_*IF(_TimePeriod_=Code_Offpeak,TimeValue_Person_Offpeak,TimeValue_Person_Peak) | E22: Public Const Name_Formula_TransitPassenger_ReliabilityCost = "Formula_TransitPassenger_ReliabilityCost"
C23: Formula_Bicycle_TimeCost | D23: =_Bicycles_*(_AverageBicycleTime_/SecondsPerHour)*DaysPerYear*TimeValue_Person_Offpeak | E23: Public Const Name_Formula_Bicycle_TimeCost = "Formula_Bicycle_TimeCost"
C24: Formula_Pedestrian_TimeCost | D24: =_Pedestrians_*(_AveragePedestrianTime_/SecondsPerHour)*DaysPerYear*TimeValue_Person_Offpeak | E24: Public Const Name_Formula_Pedestrian_TimeCost = "Formula_Pedestrian_TimeCost"
E27: ' ****************************************************************************************************
A28: Demand parameters sheet | E28: ' ** Demand parameters sheet
B29: Formulas | E29: ' -- Formulas
C30: Formula_TotalVehicleVolume | D30: =_AverageDailyEnteringVehicles_*INDEX(FunctionalClassMonthTable,MONTH(_DateTime_),FunctionalClassSelectionNumber)*IF(_DayOfWeek_<=5,INDEX(FunctionalClassHourlyTable_Weekday,HOUR(_DateTime_)+1,FunctionalClassSelectionNumber),INDEX(FunctionalClassHourlyTable_Weekend,HOUR(_DateTime_)+1,FunctionalClassSelectionNumber)) | E30: Public Const Name_Formula_TotalVehicleVolume = "Formula_TotalVehicleVolume"
C31: Formula_AutoPassengers | D31: =_HourlyEnteringVehicles_*(1-_TruckPercent_)*_AverageAutoOccupancy_ | E31: Public Const Name_Formula_AutoPassengers = "Formula_AutoPassengers"
C32: Formula_Trucks | D32: =_HourlyEnteringVehicles_*_TruckPercent_ | E32: Public Const Name_Formula_Trucks = "Formula_Trucks"
C33: Formula_TransitPassengers | D33: =_AverageDailyTransitPassengers_*INDEX(TransitSplit_DayType,DayTypeIndexFromDayOfWeekNumber(_DayOfWeek_))*INDEX(TransitSplit_Hour,HOUR(_DateTime_)+1,DayTypeIndexFromDayOfWeekNumber(_DayOfWeek_)) | E33: Public Const Name_Formula_TransitPassengers = "Formula_TransitPassengers"

Sheet Messages
A1: Messages
C2: Public Const Warning_xxx = "yyy"
A4: Warnings | C4: =IF(LEN(TRIM(A4))=0,"",IF(LEN(TRIM(B4))=0,"' "&A4,SUBSTITUTE(SUBSTITUTE($C$2,"xxx",A4),"yyy",B4))) -> ' Warnings
A6: YearNotSpecified | B6: Year not specified | C6: Public Const Warning_YearNotSpecified = "Year not specified"
A7: YearEarlierThanBeginPlanningConstructionYear | B7: Year is earlier than begin planning & construction year | C7: Public Const Warning_YearEarlierThanBeginPlanningConstructionYear = "Year is earlier than begin planning & construction year"
A8: YearEarlierThanOpeningYear | B8: Year is earlier than opening year | C8: Public Const Warning_YearEarlierThanOpeningYear = "Year is earlier than opening year"
A9: YearLaterThanEndYear | B9: Year is later than end year | C9: Public Const Warning_YearLaterThanEndYear = "Year is later than end year"
A12: Warning_InconsistentTravelVolumesTravelTimes | B12: Note: Each entry for vehicle volume should have a corresponding travel time/delay entry.
A13: Warning_InsufficientNumberOfVolumesTravelTimes | B13: Note: At least two sets of vehicle volumes and travel times/delays are needed in order to calculate travel times.
A15: For O&M costs
A16: Warning_BeginYearEarlierThanOpeningYear
A17: Warning_BeginYearLaterThanEndYear
